Body,Body Name,Transaction No,Invoice Ref.,Vendor Name,Expense Code,Expense Type,Date,Amount
http://statistics.data.gov.uk/id/local-authority-district/23UB,Cheltenham Borough Council,452946,1-2/HC850/E2111,DAVID ADAMSON  AND PARTNERS LIMITED,C-H22600-3531,Community Servs-Housing Conditions Surve,08-Jul-11,"12,460.00"
http://statistics.data.gov.uk/id/local-authority-district/23UB,Cheltenham Borough Council,453864,19174690-15,ADT FIRE AND SECURITY,C-D13100-1114,Muni Off Blgs-Security systems,22-Jul-11,229.56
http://statistics.data.gov.uk/id/local-authority-district/23UB,Cheltenham Borough Council,453773,19276558-15,ADT FIRE AND SECURITY,C-L21100-1114,Town Hall-Security systems,22-Jul-11,579.97
http://statistics.data.gov.uk/id/local-authority-district/23UB,Cheltenham Borough Council,453409,141711,A&E FIRE EQUIPMENT LTD,C-H46200-1104,Fire. Syst.Serv-Council House repairs,15-Jul-11,15.70
http://statistics.data.gov.uk/id/local-authority-district/23UB,Cheltenham Borough Council,453410,141710,A&E FIRE EQUIPMENT LTD,C-H46200-1104,Fire. Syst.Serv-Council House repairs,15-Jul-11,15.05
http://statistics.data.gov.uk/id/local-authority-district/23UB,Cheltenham Borough Council,453442,141708,A&E FIRE EQUIPMENT LTD,C-H46200-1104,Fire. Syst.Serv-Council House repairs,15-Jul-11,43.00
http://statistics.data.gov.uk/id/local-authority-district/23UB,Cheltenham Borough Council,453422,141722,A&E FIRE EQUIPMENT LTD,C-H46200-1104,Fire. Syst.Serv-Council House repairs,15-Jul-11,250.53
http://statistics.data.gov.uk/id/local-authority-district/23UB,Cheltenham Borough Council,453421,141718,A&E FIRE EQUIPMENT LTD,C-H46200-1104,Fire. Syst.Serv-Council House repairs,15-Jul-11,94.69
http://statistics.data.gov.uk/id/local-authority-district/23UB,Cheltenham Borough Council,453420,141712,A&E FIRE EQUIPMENT LTD,C-H46200-1104,Fire. Syst.Serv-Council House repairs,15-Jul-11,52.21
http://statistics.data.gov.uk/id/local-authority-district/23UB,Cheltenham Borough Council,453419,141709,A&E FIRE EQUIPMENT LTD,C-H46200-1104,Fire. Syst.Serv-Council House repairs,15-Jul-11,31.39
http://statistics.data.gov.uk/id/local-authority-district/23UB,Cheltenham Borough Council,453418,141707,A&E FIRE EQUIPMENT LTD,C-H46200-1104,Fire. Syst.Serv-Council House repairs,15-Jul-11,44.44
http://statistics.data.gov.uk/id/local-authority-district/23UB,Cheltenham Borough Council,453417,141713,A&E FIRE EQUIPMENT LTD,C-H46200-1104,Fire. Syst.Serv-Council House repairs,15-Jul-11,20.65
http://statistics.data.gov.uk/id/local-authority-district/23UB,Cheltenham Borough Council,453416,141717,A&E FIRE EQUIPMENT LTD,C-H46200-1104,Fire. Syst.Serv-Council House repairs,15-Jul-11,114.65
http://statistics.data.gov.uk/id/local-authority-district/23UB,Cheltenham Borough Council,453415,141716,A&E FIRE EQUIPMENT LTD,C-H46200-1104,Fire. Syst.Serv-Council House repairs,15-Jul-11,72.73
http://statistics.data.gov.uk/id/local-authority-district/23UB,Cheltenham Borough Council,453414,141715,A&E FIRE EQUIPMENT LTD,C-H46200-1104,Fire. Syst.Serv-Council House repairs,15-Jul-11,20.00
http://statistics.data.gov.uk/id/local-authority-district/23UB,Cheltenham Borough Council,453413,141714,A&E FIRE EQUIPMENT LTD,C-H46200-1104,Fire. Syst.Serv-Council House repairs,15-Jul-11,20.65
http://statistics.data.gov.uk/id/local-authority-district/23UB,Cheltenham Borough Council,453411,141721,A&E FIRE EQUIPMENT LTD,C-H46200-1104,Fire. Syst.Serv-Council House repairs,15-Jul-11,58.72
http://statistics.data.gov.uk/id/local-authority-district/23UB,Cheltenham Borough Council,453412,141735,A&E FIRE EQUIPMENT LTD,C-H46200-1104,Fire. Syst.Serv-Council House repairs,15-Jul-11,58.25
http://statistics.data.gov.uk/id/local-authority-district/23UB,Cheltenham Borough Council,453439,141860,A&E FIRE EQUIPMENT LTD,C-H46200-1104,Fire. Syst.Serv-Council House repairs,15-Jul-11,28.70
http://statistics.data.gov.uk/id/local-authority-district/23UB,Cheltenham Borough Council,453440,141977,A&E FIRE EQUIPMENT LTD,C-H46200-1104,Fire. Syst.Serv-Council House repairs,15-Jul-11,17.00
http://statistics.data.gov.uk/id/local-authority-district/23UB,Cheltenham Borough Council,453465,141976,A&E FIRE EQUIPMENT LTD,C-H46200-1104,Fire. Syst.Serv-Council House repairs,15-Jul-11,52.76
http://statistics.data.gov.uk/id/local-authority-district/23UB,Cheltenham Borough Council,453443,141974,A&E FIRE EQUIPMENT LTD,C-H46200-1104,Fire. Syst.Serv-Council House repairs,15-Jul-11,32.05
http://statistics.data.gov.uk/id/local-authority-district/23UB,Cheltenham Borough Council,453441,141975,A&E FIRE EQUIPMENT LTD,C-H46200-1104,Fire. Syst.Serv-Council House repairs,15-Jul-11,20.90
http://statistics.data.gov.uk/id/local-authority-district/23UB,Cheltenham Borough Council,453408,142070,A&E FIRE EQUIPMENT LTD,C-H46200-1104,Fire. Syst.Serv-Council House repairs,15-Jul-11,10.34
http://statistics.data.gov.uk/id/local-authority-district/23UB,Cheltenham Borough Council,453462,142080,A&E FIRE EQUIPMENT LTD,C-H46200-1104,Fire. Syst.Serv-Council House repairs,15-Jul-11,57.90
http://statistics.data.gov.uk/id/local-authority-district/23UB,Cheltenham Borough Council,453461,142079,A&E FIRE EQUIPMENT LTD,C-H46200-1104,Fire. Syst.Serv-Council House repairs,15-Jul-11,1.88
http://statistics.data.gov.uk/id/local-authority-district/23UB,Cheltenham Borough Council,453460,142078,A&E FIRE EQUIPMENT LTD,C-H46200-1104,Fire. Syst.Serv-Council House repairs,15-Jul-11,7.52
http://statistics.data.gov.uk/id/local-authority-district/23UB,Cheltenham Borough Council,453459,142071,A&E FIRE EQUIPMENT LTD,C-H46200-1104,Fire. Syst.Serv-Council House repairs,15-Jul-11,2.82
http://statistics.data.gov.uk/id/local-authority-district/23UB,Cheltenham Borough Council,453474,142082,A&E FIRE EQUIPMENT LTD,C-H46200-1104,Fire. Syst.Serv-Council House repairs,15-Jul-11,15.04
http://statistics.data.gov.uk/id/local-authority-district/23UB,Cheltenham Borough Council,453472,142081,A&E FIRE EQUIPMENT LTD,C-H46200-1104,Fire. Syst.Serv-Council House repairs,15-Jul-11,60.16
http://statistics.data.gov.uk/id/local-authority-district/23UB,Cheltenham Borough Council,453470,142072,A&E FIRE EQUIPMENT LTD,C-H46200-1104,Fire. Syst.Serv-Council House repairs,15-Jul-11,2.82
http://statistics.data.gov.uk/id/local-authority-district/23UB,Cheltenham Borough Council,453463,142206,A&E FIRE EQUIPMENT LTD,C-H46200-1104,Fire. Syst.Serv-Council House repairs,15-Jul-11,15.04
http://statistics.data.gov.uk/id/local-authority-district/23UB,Cheltenham Borough Council,453473,142208,A&E FIRE EQUIPMENT LTD,C-H46200-1104,Fire. Syst.Serv-Council House repairs,15-Jul-11,24.44
http://statistics.data.gov.uk/id/local-authority-district/23UB,Cheltenham Borough Council,453466,142205,A&E FIRE EQUIPMENT LTD,C-H46200-1104,Fire. Syst.Serv-Council House repairs,15-Jul-11,15.04
http://statistics.data.gov.uk/id/local-authority-district/23UB,Cheltenham Borough Council,453468,142237,A&E FIRE EQUIPMENT LTD,C-H44600-1104,J D Court-Council House repairs,15-Jul-11,53.58
http://statistics.data.gov.uk/id/local-authority-district/23UB,Cheltenham Borough Council,453464,142235,A&E FIRE EQUIPMENT LTD,C-H46200-1104,Fire. Syst.Serv-Council House repairs,15-Jul-11,23.50
http://statistics.data.gov.uk/id/local-authority-district/23UB,Cheltenham Borough Council,453471,142236,A&E FIRE EQUIPMENT LTD,C-H46200-1104,Fire. Syst.Serv-Council House repairs,15-Jul-11,40.42
http://statistics.data.gov.uk/id/local-authority-district/23UB,Cheltenham Borough Council,453469,142238,A&E FIRE EQUIPMENT LTD,C-H46200-1104,Fire. Syst.Serv-Council House repairs,15-Jul-11,9.40
http://statistics.data.gov.uk/id/local-authority-district/23UB,Cheltenham Borough Council,453444,142286,A&E FIRE EQUIPMENT LTD,C-H46200-1104,Fire. Syst.Serv-Council House repairs,15-Jul-11,205.00
http://statistics.data.gov.uk/id/local-authority-district/23UB,Cheltenham Borough Council,453467,142295,A&E FIRE EQUIPMENT LTD,C-H46200-1104,Fire. Syst.Serv-Council House repairs,15-Jul-11,100.32
http://statistics.data.gov.uk/id/local-authority-district/23UB,Cheltenham Borough Council,453438,142356,A&E FIRE EQUIPMENT LTD,C-H46200-1104,Fire. Syst.Serv-Council House repairs,15-Jul-11,6.58
http://statistics.data.gov.uk/id/local-authority-district/23UB,Cheltenham Borough Council,453432,142349,A&E FIRE EQUIPMENT LTD,C-H46200-1104,Fire. Syst.Serv-Council House repairs,15-Jul-11,16.92
http://statistics.data.gov.uk/id/local-authority-district/23UB,Cheltenham Borough Council,453431,142351,A&E FIRE EQUIPMENT LTD,C-H46200-1104,Fire. Syst.Serv-Council House repairs,15-Jul-11,1.88
http://statistics.data.gov.uk/id/local-authority-district/23UB,Cheltenham Borough Council,453458,142346,A&E FIRE EQUIPMENT LTD,C-H46200-1104,Fire. Syst.Serv-Council House repairs,15-Jul-11,13.75
http://statistics.data.gov.uk/id/local-authority-district/23UB,Cheltenham Borough Council,453457,142348,A&E FIRE EQUIPMENT LTD,C-H46200-1104,Fire. Syst.Serv-Council House repairs,15-Jul-11,60.16
http://statistics.data.gov.uk/id/local-authority-district/23UB,Cheltenham Borough Council,453448,142347,A&E FIRE EQUIPMENT LTD,C-H46200-1104,Fire. Syst.Serv-Council House repairs,15-Jul-11,13.75
http://statistics.data.gov.uk/id/local-authority-district/23UB,Cheltenham Borough Council,453447,142359,A&E FIRE EQUIPMENT LTD,C-H46200-1104,Fire. Syst.Serv-Council House repairs,15-Jul-11,6.58
http://statistics.data.gov.uk/id/local-authority-district/23UB,Cheltenham Borough Council,453446,142357,A&E FIRE EQUIPMENT LTD,C-H46200-1104,Fire. Syst.Serv-Council House repairs,15-Jul-11,6.58
http://statistics.data.gov.uk/id/local-authority-district/23UB,Cheltenham Borough Council,453445,142350,A&E FIRE EQUIPMENT LTD,C-H46200-1104,Fire. Syst.Serv-Council House repairs,15-Jul-11,15.04
http://statistics.data.gov.uk/id/local-authority-district/23UB,Cheltenham Borough Council,453426,142352,A&E FIRE EQUIPMENT LTD,C-H46200-1104,Fire. Syst.Serv-Council House repairs,15-Jul-11,2.82
http://statistics.data.gov.uk/id/local-authority-district/23UB,Cheltenham Borough Council,453423,142358,A&E FIRE EQUIPMENT LTD,C-H46200-1104,Fire. Syst.Serv-Council House repairs,15-Jul-11,13.75
http://statistics.data.gov.uk/id/local-authority-district/23UB,Cheltenham Borough Council,453430,142355,A&E FIRE EQUIPMENT LTD,C-H46200-1104,Fire. Syst.Serv-Council House repairs,15-Jul-11,7.52
http://statistics.data.gov.uk/id/local-authority-district/23UB,Cheltenham Borough Council,453434,142431,A&E FIRE EQUIPMENT LTD,C-H46200-1104,Fire. Syst.Serv-Council House repairs,15-Jul-11,23.50
http://statistics.data.gov.uk/id/local-authority-district/23UB,Cheltenham Borough Council,453437,142536,A&E FIRE EQUIPMENT LTD,C-H44600-1104,J D Court-Council House repairs,15-Jul-11,53.58
http://statistics.data.gov.uk/id/local-authority-district/23UB,Cheltenham Borough Council,453436,142534,A&E FIRE EQUIPMENT LTD,C-H46200-1104,Fire. Syst.Serv-Council House repairs,15-Jul-11,45.08
http://statistics.data.gov.uk/id/local-authority-district/23UB,Cheltenham Borough Council,453435,142537,A&E FIRE EQUIPMENT LTD,C-H46200-1104,Fire. Syst.Serv-Council House repairs,15-Jul-11,15.04
http://statistics.data.gov.uk/id/local-authority-district/23UB,Cheltenham Borough Council,453433,142538,A&E FIRE EQUIPMENT LTD,C-H46200-1104,Fire. Syst.Serv-Council House repairs,15-Jul-11,15.04
http://statistics.data.gov.uk/id/local-authority-district/23UB,Cheltenham Borough Council,453428,142535,A&E FIRE EQUIPMENT LTD,C-H46200-1104,Fire. Syst.Serv-Council House repairs,15-Jul-11,24.44
http://statistics.data.gov.uk/id/local-authority-district/23UB,Cheltenham Borough Council,453429,142539,A&E FIRE EQUIPMENT LTD,C-H46200-1104,Fire. Syst.Serv-Council House repairs,15-Jul-11,2.82
http://statistics.data.gov.uk/id/local-authority-district/23UB,Cheltenham Borough Council,453424,142582,A&E FIRE EQUIPMENT LTD,C-H46200-1104,Fire. Syst.Serv-Council House repairs,15-Jul-11,26.25
http://statistics.data.gov.uk/id/local-authority-district/23UB,Cheltenham Borough Council,453427,142574,A&E FIRE EQUIPMENT LTD,C-H46200-1104,Fire. Syst.Serv-Council House repairs,15-Jul-11,40.42
http://statistics.data.gov.uk/id/local-authority-district/23UB,Cheltenham Borough Council,453425,142573,A&E FIRE EQUIPMENT LTD,C-H46200-1104,Fire. Syst.Serv-Council House repairs,15-Jul-11,9.40
http://statistics.data.gov.uk/id/local-authority-district/23UB,Cheltenham Borough Council,453881,142316,A&E FIRE EQUIPMENT LTD,C-D13550-1115,Area Off -E.Hse-Fire prevention,22-Jul-11,6.56
http://statistics.data.gov.uk/id/local-authority-district/23UB,Cheltenham Borough Council,453882,142353,A&E FIRE EQUIPMENT LTD,C-D14100-1808,Depot Building-RM-Routine works,22-Jul-11,60.16
http://statistics.data.gov.uk/id/local-authority-district/23UB,Cheltenham Borough Council,453883,142354,A&E FIRE EQUIPMENT LTD,C-D30200-1124,Misc Props & Ld-Berkeley Mews  Repairs,22-Jul-11,8.46
http://statistics.data.gov.uk/id/local-authority-district/23UB,Cheltenham Borough Council,453884,142393,A&E FIRE EQUIPMENT LTD,C-C22120-1808,Sports & Open S-RM-Routine works,22-Jul-11,5.82
http://statistics.data.gov.uk/id/local-authority-district/23UB,Cheltenham Borough Council,453888,142396,A&E FIRE EQUIPMENT LTD,C-C22120-1808,Sports & Open S-RM-Routine works,22-Jul-11,10.34
http://statistics.data.gov.uk/id/local-authority-district/23UB,Cheltenham Borough Council,453893,142402,A&E FIRE EQUIPMENT LTD,C-C22120-1808,Sports & Open S-RM-Routine works,22-Jul-11,7.88
http://statistics.data.gov.uk/id/local-authority-district/23UB,Cheltenham Borough Council,453894,142404,A&E FIRE EQUIPMENT LTD,C-C22120-1808,Sports & Open S-RM-Routine works,22-Jul-11,3.38
http://statistics.data.gov.uk/id/local-authority-district/23UB,Cheltenham Borough Council,453897,142407,A&E FIRE EQUIPMENT LTD,C-C22120-1808,Sports & Open S-RM-Routine works,22-Jul-11,3.00
http://statistics.data.gov.uk/id/local-authority-district/23UB,Cheltenham Borough Council,453896,142406,A&E FIRE EQUIPMENT LTD,C-C22120-1808,Sports & Open S-RM-Routine works,22-Jul-11,8.82
http://statistics.data.gov.uk/id/local-authority-district/23UB,Cheltenham Borough Council,453895,142405,A&E FIRE EQUIPMENT LTD,C-C22120-1808,Sports & Open S-RM-Routine works,22-Jul-11,13.90
http://statistics.data.gov.uk/id/local-authority-district/23UB,Cheltenham Borough Council,453889,142398,A&E FIRE EQUIPMENT LTD,C-C22120-1808,Sports & Open S-RM-Routine works,22-Jul-11,12.58
http://statistics.data.gov.uk/id/local-authority-district/23UB,Cheltenham Borough Council,453887,142397,A&E FIRE EQUIPMENT LTD,C-C22120-1808,Sports & Open S-RM-Routine works,22-Jul-11,5.26
http://statistics.data.gov.uk/id/local-authority-district/23UB,Cheltenham Borough Council,453886,142395,A&E FIRE EQUIPMENT LTD,C-C22120-1808,Sports & Open S-RM-Routine works,22-Jul-11,13.34
http://statistics.data.gov.uk/id/local-authority-district/23UB,Cheltenham Borough Council,453885,142394,A&E FIRE EQUIPMENT LTD,C-C22120-1808,Sports & Open S-RM-Routine works,22-Jul-11,2.82
http://statistics.data.gov.uk/id/local-authority-district/23UB,Cheltenham Borough Council,453890,142399,A&E FIRE EQUIPMENT LTD,C-C23140-1808,Public Convnces-RM-Routine works,22-Jul-11,2.82
http://statistics.data.gov.uk/id/local-authority-district/23UB,Cheltenham Borough Council,453891,142400,A&E FIRE EQUIPMENT LTD,C-C23140-1808,Public Convnces-RM-Routine works,22-Jul-11,2.82
http://statistics.data.gov.uk/id/local-authority-district/23UB,Cheltenham Borough Council,453892,142401,A&E FIRE EQUIPMENT LTD,C-C23140-1808,Public Convnces-RM-Routine works,22-Jul-11,9.40
http://statistics.data.gov.uk/id/local-authority-district/23UB,Cheltenham Borough Council,453898,142409,A&E FIRE EQUIPMENT LTD,C-L21200-1808,Pump Room-RM-Routine works,22-Jul-11,163.36
http://statistics.data.gov.uk/id/local-authority-district/23UB,Cheltenham Borough Council,453901,142436,A&E FIRE EQUIPMENT LTD,C-D33950-1808,Resource Centre-RM-Routine works,22-Jul-11,127.90
http://statistics.data.gov.uk/id/local-authority-district/23UB,Cheltenham Borough Council,453899,142434,A&E FIRE EQUIPMENT LTD,C-E21100-1808,Car Prks-Off St-RM-Routine works,22-Jul-11,81.78
http://statistics.data.gov.uk/id/local-authority-district/23UB,Cheltenham Borough Council,453900,142435,A&E FIRE EQUIPMENT LTD,C-E21100-1808,Car Prks-Off St-RM-Routine works,22-Jul-11,47.00
http://statistics.data.gov.uk/id/local-authority-district/23UB,Cheltenham Borough Council,453912,142680,A&E FIRE EQUIPMENT LTD,C-L21200-1808,Pump Room-RM-Routine works,22-Jul-11,334.12
http://statistics.data.gov.uk/id/local-authority-district/23UB,Cheltenham Borough Council,453902,142568,A&E FIRE EQUIPMENT LTD,C-L11500-1808,Rec Facilities-RM-Routine works,22-Jul-11,33.82
http://statistics.data.gov.uk/id/local-authority-district/23UB,Cheltenham Borough Council,453903,142569,A&E FIRE EQUIPMENT LTD,C-L11500-1808,Rec Facilities-RM-Routine works,22-Jul-11,392.76
http://statistics.data.gov.uk/id/local-authority-district/23UB,Cheltenham Borough Council,453904,142570,A&E FIRE EQUIPMENT LTD,C-L11500-1808,Rec Facilities-RM-Routine works,22-Jul-11,33.26
http://statistics.data.gov.uk/id/local-authority-district/23UB,Cheltenham Borough Council,453909,142636,A&E FIRE EQUIPMENT LTD,C-C22120-1808,Sports & Open S-RM-Routine works,22-Jul-11,88.57
http://statistics.data.gov.uk/id/local-authority-district/23UB,Cheltenham Borough Council,453908,142635,A&E FIRE EQUIPMENT LTD,C-C22120-1808,Sports & Open S-RM-Routine works,22-Jul-11,30.23
http://statistics.data.gov.uk/id/local-authority-district/23UB,Cheltenham Borough Council,453906,142616,A&E FIRE EQUIPMENT LTD,C-D13550-1115,Area Off -E.Hse-Fire prevention,22-Jul-11,491.76
http://statistics.data.gov.uk/id/local-authority-district/23UB,Cheltenham Borough Council,453905,142614,A&E FIRE EQUIPMENT LTD,C-L41100-1808,AG & M-RM-Routine works,22-Jul-11,14.10
http://statistics.data.gov.uk/id/local-authority-district/23UB,Cheltenham Borough Council,453907,142615,A&E FIRE EQUIPMENT LTD,C-L41100-1808,AG & M-RM-Routine works,22-Jul-11,180.84
http://statistics.data.gov.uk/id/local-authority-district/23UB,Cheltenham Borough Council,453911,142653,A&E FIRE EQUIPMENT LTD,C-L21100-1808,Town Hall-RM-Routine works,22-Jul-11,342.19
http://statistics.data.gov.uk/id/local-authority-district/23UB,Cheltenham Borough Council,453910,142652,A&E FIRE EQUIPMENT LTD,C-L21200-1808,Pump Room-RM-Routine works,22-Jul-11,228.87
http://statistics.data.gov.uk/id/local-authority-district/23UB,Cheltenham Borough Council,453914,142794,A&E FIRE EQUIPMENT LTD,C-L11500-1808,Rec Facilities-RM-Routine works,22-Jul-11,49.96
http://statistics.data.gov.uk/id/local-authority-district/23UB,Cheltenham Borough Council,453913,142791,A&E FIRE EQUIPMENT LTD,C-L21100-1808,Town Hall-RM-Routine works,22-Jul-11,23.50
http://statistics.data.gov.uk/id/local-authority-district/23UB,Cheltenham Borough Council,453915,142815,A&E FIRE EQUIPMENT LTD,C-D13550-1115,Area Off -E.Hse-Fire prevention,22-Jul-11,71.00
http://statistics.data.gov.uk/id/local-authority-district/23UB,Cheltenham Borough Council,453916,142838,A&E FIRE EQUIPMENT LTD,C-L21200-1808,Pump Room-RM-Routine works,22-Jul-11,192.50
http://statistics.data.gov.uk/id/local-authority-district/23UB,Cheltenham Borough Council,453917,142864,A&E FIRE EQUIPMENT LTD,C-L11500-1808,Rec Facilities-RM-Routine works,22-Jul-11,885.41
http://statistics.data.gov.uk/id/local-authority-district/23UB,Cheltenham Borough Council,453918,142949,A&E FIRE EQUIPMENT LTD,C-L11500-1808,Rec Facilities-RM-Routine works,22-Jul-11,27.00
http://statistics.data.gov.uk/id/local-authority-district/23UB,Cheltenham Borough Council,453919,142950,A&E FIRE EQUIPMENT LTD,C-L11500-1808,Rec Facilities-RM-Routine works,22-Jul-11,129.00
http://statistics.data.gov.uk/id/local-authority-district/23UB,Cheltenham Borough Council,453920,2063,A&E FIRE EQUIPMENT LTD,C-D13100-1115,Muni Off Blgs-Fire prevention,22-Jul-11,-202.00
http://statistics.data.gov.uk/id/local-authority-district/23UB,Cheltenham Borough Council,453083,51266,ALPHA COLOUR PRINTERS LTD,C-1T10F1-3406,Katy Ashworth-Printing-Promotion/Mkting,13-Jul-11,65.00
http://statistics.data.gov.uk/id/local-authority-district/23UB,Cheltenham Borough Council,453081,51294,ALPHA COLOUR PRINTERS LTD,C-D21190-3403,O&S Committees-Printing-Committee Papers,13-Jul-11,561.00
http://statistics.data.gov.uk/id/local-authority-district/23UB,Cheltenham Borough Council,453082,51297,ALPHA COLOUR PRINTERS LTD,C-D21190-3412,O&S Committees-Printing - Cabinet Papers,13-Jul-11,175.00
http://statistics.data.gov.uk/id/local-authority-district/23UB,Cheltenham Borough Council,453080,51250,ALPHA COLOUR PRINTERS LTD,C-D38100-3196,C.Dev.Strategy-Fiesta in the park,13-Jul-11,389.00
http://statistics.data.gov.uk/id/local-authority-district/23UB,Cheltenham Borough Council,453080,51250,ALPHA COLOUR PRINTERS LTD,C-D38100-3196,C.Dev.Strategy-Fiesta in the park,13-Jul-11,75.00
http://statistics.data.gov.uk/id/local-authority-district/23UB,Cheltenham Borough Council,453220,51245,ALPHA COLOUR PRINTERS LTD,C-E63100-3401,Cemetery & Crem-Printing - general,13-Jul-11,85.00
http://statistics.data.gov.uk/id/local-authority-district/23UB,Cheltenham Borough Council,453220,51245,ALPHA COLOUR PRINTERS LTD,C-E63100-3401,Cemetery & Crem-Printing - general,13-Jul-11,174.00
http://statistics.data.gov.uk/id/local-authority-district/23UB,Cheltenham Borough Council,453221,51243,ALPHA COLOUR PRINTERS LTD,C-E63100-3401,Cemetery & Crem-Printing - general,13-Jul-11,157.00
http://statistics.data.gov.uk/id/local-authority-district/23UB,Cheltenham Borough Council,453176,51265,ALPHA COLOUR PRINTERS LTD,C-E72500-3401,Built Env Div-Printing - general,13-Jul-11,25.00
http://statistics.data.gov.uk/id/local-authority-district/23UB,Cheltenham Borough Council,452954,250000121520,AON RISK SERVICES LIMITED,C-L41100-3256,AG & M-Fine Form Horse Parade exp,08-Jul-11,530.00
http://statistics.data.gov.uk/id/local-authority-district/23UB,Cheltenham Borough Council,453033,PREMIUM APR-JU,AON RISK SERVICES LIMITED,C-P12270-9101,Tenants Ins-Payments,08-Jul-11,"7,269.73"
http://statistics.data.gov.uk/id/local-authority-district/23UB,Cheltenham Borough Council,454302,25314,ARKELL AND HURCOMBE BRONZE WORK LTD,C-E63100-3111,Cemetery & Crem-Goods purch for resale,27-Jul-11,380.00
http://statistics.data.gov.uk/id/local-authority-district/23UB,Cheltenham Borough Council,454304,25315,ARKELL AND HURCOMBE BRONZE WORK LTD,C-E63100-3111,Cemetery & Crem-Goods purch for resale,27-Jul-11,25.00
http://statistics.data.gov.uk/id/local-authority-district/23UB,Cheltenham Borough Council,454305,25316,ARKELL AND HURCOMBE BRONZE WORK LTD,C-E63100-3111,Cemetery & Crem-Goods purch for resale,27-Jul-11,100.00
http://statistics.data.gov.uk/id/local-authority-district/23UB,Cheltenham Borough Council,454306,25353,ARKELL AND HURCOMBE BRONZE WORK LTD,C-E63100-3111,Cemetery & Crem-Goods purch for resale,27-Jul-11,98.00
http://statistics.data.gov.uk/id/local-authority-district/23UB,Cheltenham Borough Council,454306,25353,ARKELL AND HURCOMBE BRONZE WORK LTD,C-E63100-3111,Cemetery & Crem-Goods purch for resale,27-Jul-11,180.00
http://statistics.data.gov.uk/id/local-authority-district/23UB,Cheltenham Borough Council,454307,25318,ARKELL AND HURCOMBE BRONZE WORK LTD,C-E63100-3111,Cemetery & Crem-Goods purch for resale,27-Jul-11,25.00
http://statistics.data.gov.uk/id/local-authority-district/23UB,Cheltenham Borough Council,454306,25353,ARKELL AND HURCOMBE BRONZE WORK LTD,C-E63100-3111,Cemetery & Crem-Goods purch for resale,27-Jul-11,10.00
http://statistics.data.gov.uk/id/local-authority-district/23UB,Cheltenham Borough Council,454305,25316,ARKELL AND HURCOMBE BRONZE WORK LTD,C-E63100-3111,Cemetery & Crem-Goods purch for resale,27-Jul-11,25.00
http://statistics.data.gov.uk/id/local-authority-district/23UB,Cheltenham Borough Council,454304,25315,ARKELL AND HURCOMBE BRONZE WORK LTD,C-E63100-3111,Cemetery & Crem-Goods purch for resale,27-Jul-11,38.00
http://statistics.data.gov.uk/id/local-authority-district/23UB,Cheltenham Borough Council,454303,25317,ARKELL AND HURCOMBE BRONZE WORK LTD,C-E63100-3111,Cemetery & Crem-Goods purch for resale,27-Jul-11,38.00
http://statistics.data.gov.uk/id/local-authority-district/23UB,Cheltenham Borough Council,454302,25314,ARKELL AND HURCOMBE BRONZE WORK LTD,C-E63100-3111,Cemetery & Crem-Goods purch for resale,27-Jul-11,49.00
http://statistics.data.gov.uk/id/local-authority-district/23UB,Cheltenham Borough Council,454303,25317,ARKELL AND HURCOMBE BRONZE WORK LTD,C-E63100-3111,Cemetery & Crem-Goods purch for resale,27-Jul-11,570.00
http://statistics.data.gov.uk/id/local-authority-district/23UB,Cheltenham Borough Council,454302,25314,ARKELL AND HURCOMBE BRONZE WORK LTD,C-E63100-3111,Cemetery & Crem-Goods purch for resale,27-Jul-11,5.00
http://statistics.data.gov.uk/id/local-authority-district/23UB,Cheltenham Borough Council,452908,10552,ARTFUL LIMITED,C-B51120-3920,Develt Con-Advertising,08-Jul-11,"1,902.16"
http://statistics.data.gov.uk/id/local-authority-district/23UB,Cheltenham Borough Council,453171,13088,ART WORKS DESIGN CONSULTANTS (CHELT) LTD,C-1T04H1-3406,BSO-Printing-Promotion/Mkting,13-Jul-11,405.00
http://statistics.data.gov.uk/id/local-authority-district/23UB,Cheltenham Borough Council,453171,13088,ART WORKS DESIGN CONSULTANTS (CHELT) LTD,C-1T04H1-3527,BSO-Distribution/Mailing,13-Jul-11,43.56
http://statistics.data.gov.uk/id/local-authority-district/23UB,Cheltenham Borough Council,453171,13088,ART WORKS DESIGN CONSULTANTS (CHELT) LTD,C-1T10M1-3406,Halle-Printing-Promotion/Mkting,13-Jul-11,405.00
http://statistics.data.gov.uk/id/local-authority-district/23UB,Cheltenham Borough Council,453171,13088,ART WORKS DESIGN CONSULTANTS (CHELT) LTD,C-1T10M1-3527,Halle-Distribution/Mailing,13-Jul-11,43.55
http://statistics.data.gov.uk/id/local-authority-district/23UB,Cheltenham Borough Council,453171,13088,ART WORKS DESIGN CONSULTANTS (CHELT) LTD,C-1T17F1-3406,BBC NOW-Printing-Promotion/Mkting,13-Jul-11,405.00
http://statistics.data.gov.uk/id/local-authority-district/23UB,Cheltenham Borough Council,453258,13101,ART WORKS DESIGN CONSULTANTS (CHELT) LTD,C-1T17F1-3406,BBC NOW-Printing-Promotion/Mkting,13-Jul-11,6.67
http://statistics.data.gov.uk/id/local-authority-district/23UB,Cheltenham Borough Council,453258,13101,ART WORKS DESIGN CONSULTANTS (CHELT) LTD,C-1T17F1-3406,BBC NOW-Printing-Promotion/Mkting,13-Jul-11,6.67
http://statistics.data.gov.uk/id/local-authority-district/23UB,Cheltenham Borough Council,453258,13101,ART WORKS DESIGN CONSULTANTS (CHELT) LTD,C-1T17F1-3406,BBC NOW-Printing-Promotion/Mkting,13-Jul-11,6.67
http://statistics.data.gov.uk/id/local-authority-district/23UB,Cheltenham Borough Council,453258,13101,ART WORKS DESIGN CONSULTANTS (CHELT) LTD,C-1T17F1-3406,BBC NOW-Printing-Promotion/Mkting,13-Jul-11,6.67
http://statistics.data.gov.uk/id/local-authority-district/23UB,Cheltenham Borough Council,453258,13101,ART WORKS DESIGN CONSULTANTS (CHELT) LTD,C-1T17F1-3406,BBC NOW-Printing-Promotion/Mkting,13-Jul-11,6.67
http://statistics.data.gov.uk/id/local-authority-district/23UB,Cheltenham Borough Council,453258,13101,ART WORKS DESIGN CONSULTANTS (CHELT) LTD,C-1T17F1-3406,BBC NOW-Printing-Promotion/Mkting,13-Jul-11,6.66
http://statistics.data.gov.uk/id/local-authority-district/23UB,Cheltenham Borough Council,453258,13101,ART WORKS DESIGN CONSULTANTS (CHELT) LTD,C-1T17F1-3406,BBC NOW-Printing-Promotion/Mkting,13-Jul-11,6.66
http://statistics.data.gov.uk/id/local-authority-district/23UB,Cheltenham Borough Council,453258,13101,ART WORKS DESIGN CONSULTANTS (CHELT) LTD,C-1T17F1-3406,BBC NOW-Printing-Promotion/Mkting,13-Jul-11,6.66
http://statistics.data.gov.uk/id/local-authority-district/23UB,Cheltenham Borough Council,453258,13101,ART WORKS DESIGN CONSULTANTS (CHELT) LTD,C-1T17F1-3406,BBC NOW-Printing-Promotion/Mkting,13-Jul-11,6.67
http://statistics.data.gov.uk/id/local-authority-district/23UB,Cheltenham Borough Council,453171,13088,ART WORKS DESIGN CONSULTANTS (CHELT) LTD,C-1T17F1-3527,BBC NOW-Distribution/Mailing,13-Jul-11,43.56
http://statistics.data.gov.uk/id/local-authority-district/23UB,Cheltenham Borough Council,453171,13088,ART WORKS DESIGN CONSULTANTS (CHELT) LTD,C-1T19K1-3406,BBC NOW 2-Printing-Promotion/Mkting,13-Jul-11,405.00
http://statistics.data.gov.uk/id/local-authority-district/23UB,Cheltenham Borough Council,453171,13088,ART WORKS DESIGN CONSULTANTS (CHELT) LTD,C-1T19K1-3527,BBC NOW 2-Distribution/Mailing,13-Jul-11,43.56
http://statistics.data.gov.uk/id/local-authority-district/23UB,Cheltenham Borough Council,453171,13088,ART WORKS DESIGN CONSULTANTS (CHELT) LTD,C-1T24L1-3406,Orch of the Swn-Printing-Promotion/Mktin,13-Jul-11,405.00
http://statistics.data.gov.uk/id/local-authority-district/23UB,Cheltenham Borough Council,453171,13088,ART WORKS DESIGN CONSULTANTS (CHELT) LTD,C-1T24L1-3527,Orch of the Swn-Distribution/Mailing,13-Jul-11,43.56
http://statistics.data.gov.uk/id/local-authority-district/23UB,Cheltenham Borough Council,453171,13088,ART WORKS DESIGN CONSULTANTS (CHELT) LTD,C-1T26K1-3406,BSO 2-Printing-Promotion/Mkting,13-Jul-11,405.00
http://statistics.data.gov.uk/id/local-authority-district/23UB,Cheltenham Borough Council,453171,13088,ART WORKS DESIGN CONSULTANTS (CHELT) LTD,C-1T26K1-3527,BSO 2-Distribution/Mailing,13-Jul-11,43.56
http://statistics.data.gov.uk/id/local-authority-district/23UB,Cheltenham Borough Council,453212,13131,ART WORKS DESIGN CONSULTANTS (CHELT) LTD,C-1T50M0-3406,Lunchtime Recit-Printing-Promotion/Mktin,13-Jul-11,424.00
http://statistics.data.gov.uk/id/local-authority-district/23UB,Cheltenham Borough Council,453171,13088,ART WORKS DESIGN CONSULTANTS (CHELT) LTD,C-2T01B1-3406,Philharmonia-Printing-Promotion/Mkting,13-Jul-11,405.00
http://statistics.data.gov.uk/id/local-authority-district/23UB,Cheltenham Borough Council,453171,13088,ART WORKS DESIGN CONSULTANTS (CHELT) LTD,C-2T01B1-3527,Philharmonia-Distribution/Mailing,13-Jul-11,43.55
http://statistics.data.gov.uk/id/local-authority-district/23UB,Cheltenham Borough Council,453171,13088,ART WORKS DESIGN CONSULTANTS (CHELT) LTD,C-2T12A1-3406,Royal Philharm-Printing-Promotion/Mkting,13-Jul-11,405.00
http://statistics.data.gov.uk/id/local-authority-district/23UB,Cheltenham Borough Council,453171,13088,ART WORKS DESIGN CONSULTANTS (CHELT) LTD,C-2T12A1-3527,Royal Philharm-Distribution/Mailing,13-Jul-11,43.55
http://statistics.data.gov.uk/id/local-authority-district/23UB,Cheltenham Borough Council,453171,13088,ART WORKS DESIGN CONSULTANTS (CHELT) LTD,C-2T26B1-3406,CBSO-Printing-Promotion/Mkting,13-Jul-11,405.00
http://statistics.data.gov.uk/id/local-authority-district/23UB,Cheltenham Borough Council,453171,13088,ART WORKS DESIGN CONSULTANTS (CHELT) LTD,C-2T26B1-3527,CBSO-Distribution/Mailing,13-Jul-11,43.55
http://statistics.data.gov.uk/id/local-authority-district/23UB,Cheltenham Borough Council,454514,14159,ART WORKS DESIGN CONSULTANTS (CHELT) LTD,C-1T70L0-3408,Folk Festival-Artwork,29-Jul-11,165.00
http://statistics.data.gov.uk/id/local-authority-district/23UB,Cheltenham Borough Council,454618,13034,ART WORKS DESIGN CONSULTANTS (CHELT) LTD,C-L31100-3510,TIC-Promotion & Marketing,29-Jul-11,210.00
http://statistics.data.gov.uk/id/local-authority-district/23UB,Cheltenham Borough Council,454622,13055,ART WORKS DESIGN CONSULTANTS (CHELT) LTD,C-L31100-3510,TIC-Promotion & Marketing,29-Jul-11,333.00
http://statistics.data.gov.uk/id/local-authority-district/23UB,Cheltenham Borough Council,452567,106455900,ARVAL UK LIMITED,C-N42250-3112,DSO Stores - Stock purchases,01-Jul-11,46.20
http://statistics.data.gov.uk/id/local-authority-district/23UB,Cheltenham Borough Council,452568,1016455899,ARVAL UK LIMITED,C-N42250-3112,DSO Stores - Stock purchases,01-Jul-11,"1,060.16"
http://statistics.data.gov.uk/id/local-authority-district/23UB,Cheltenham Borough Council,453777,1016520447,ARVAL UK LIMITED,C-N42250-3112,DSO Stores - Stock purchases,22-Jul-11,79.47
http://statistics.data.gov.uk/id/local-authority-district/23UB,Cheltenham Borough Council,453778,1016520448,ARVAL UK LIMITED,C-N42250-3112,DSO Stores - Stock purchases,22-Jul-11,"1,406.71"
http://statistics.data.gov.uk/id/local-authority-district/23UB,Cheltenham Borough Council,454290,1016627921,ARVAL UK LIMITED,C-N42250-3112,DSO Stores - Stock purchases,27-Jul-11,37.25
http://statistics.data.gov.uk/id/local-authority-district/23UB,Cheltenham Borough Council,454289,1016627920,ARVAL UK LIMITED,C-N42250-3112,DSO Stores - Stock purchases,27-Jul-11,"1,121.24"
http://statistics.data.gov.uk/id/local-authority-district/23UB,Cheltenham Borough Council,453517,MS1101535,ATG ACCESS,C-D13100-1808,Muni Off Blgs-RM-Routine works,15-Jul-11,964.02
http://statistics.data.gov.uk/id/local-authority-district/23UB,Cheltenham Borough Council,452679,FYB-ZCH002-0673,AT LAW,C-C23160-3934,Env Maint Divn-TP Gen-Imprest/Excess,01-Jul-11,"6,500.00"
http://statistics.data.gov.uk/id/local-authority-district/23UB,Cheltenham Borough Council,453368,0075384,ATS EUROMASTER LTD,C-C24100-3501,Fleet Maint-Hire of outside services,13-Jul-11,"3,873.24"
http://statistics.data.gov.uk/id/local-authority-district/23UB,Cheltenham Borough Council,452572,000272,BARRICADE TECHNOLOGIES LTD,C-N42250-3112,DSO Stores - Stock purchases,01-Jul-11,850.00
http://statistics.data.gov.uk/id/local-authority-district/23UB,Cheltenham Borough Council,454601,22 VICTORIA STR,BEECHWOOD PROPERTY MAINTENANCE,C-HC7400-C801,H&S Grant-Grants,29-Jul-11,"4,087.98"
http://statistics.data.gov.uk/id/local-authority-district/23UB,Cheltenham Borough Council,454616,SETTLEMENT,W M M BELL,C-N13125-9206,ASH Ledger-PPR Invoices Paid,29-Jul-11,"-1,691.48"
http://statistics.data.gov.uk/id/local-authority-district/23UB,Cheltenham Borough Council,454616,SETTLEMENT,W M M BELL,C-Z12210-9137,Box Off A/C-PPR Hirers Tkt Pd out,29-Jul-11,"3,347.50"
http://statistics.data.gov.uk/id/local-authority-district/23UB,Cheltenham Borough Council,454616,SETTLEMENT,W M M BELL,C-Z12210-9137,Box Off A/C-PPR Hirers Tkt Pd out,29-Jul-11,"3,571.00"
http://statistics.data.gov.uk/id/local-authority-district/23UB,Cheltenham Borough Council,453240,78235,BERMAN GUEDES STRETTON,C-L41100-3816,AG & M-RIBA - Fees,13-Jul-11,"2,720.00"
http://statistics.data.gov.uk/id/local-authority-district/23UB,Cheltenham Borough Council,453240,78235,BERMAN GUEDES STRETTON,C-L41100-3816,AG & M-RIBA - Fees,13-Jul-11,"2,862.50"
http://statistics.data.gov.uk/id/local-authority-district/23UB,Cheltenham Borough Council,452793,1378276,THE BEST CONNECTION GROUP LTD,C-C22120-0115,Spts/Open Space-Temporary Agency Staff,06-Jul-11,"1,098.50"
http://statistics.data.gov.uk/id/local-authority-district/23UB,Cheltenham Borough Council,453668,17171,BIGGER PRINTING COMPANY LTD,C-L11500-3401,Rec Facilities-Printing - general,20-Jul-11,461.10
http://statistics.data.gov.uk/id/local-authority-district/23UB,Cheltenham Borough Council,453668,17171,BIGGER PRINTING COMPANY LTD,C-L11500-3410,Rec Facilities-Stationery & office supps,20-Jul-11,284.90
http://statistics.data.gov.uk/id/local-authority-district/23UB,Cheltenham Borough Council,453668,17171,BIGGER PRINTING COMPANY LTD,C-L11500-3501,Rec Facilities-Hire of outside services,20-Jul-11,480.00
http://statistics.data.gov.uk/id/local-authority-district/23UB,Cheltenham Borough Council,453668,17171,BIGGER PRINTING COMPANY LTD,C-L11500-3510,Rec Facilities-Promotion & Marketing,20-Jul-11,976.00
http://statistics.data.gov.uk/id/local-authority-district/23UB,Cheltenham Borough Council,453668,17171,BIGGER PRINTING COMPANY LTD,C-L11500-3510,Rec Facilities-Promotion & Marketing,20-Jul-11,196.00
http://statistics.data.gov.uk/id/local-authority-district/23UB,Cheltenham Borough Council,453668,17171,BIGGER PRINTING COMPANY LTD,C-L11500-3510,Rec Facilities-Promotion & Marketing,20-Jul-11,196.00
http://statistics.data.gov.uk/id/local-authority-district/23UB,Cheltenham Borough Council,453713,REDACTED,BIRMINGHAM MIDSHIRES,C-H22400-3501,Homelessness-Hire of outside services,20-Jul-11,"3,000.00"
http://statistics.data.gov.uk/id/local-authority-district/23UB,Cheltenham Borough Council,453676,S0000145324,BISHOPS SPORTS AND LEISURE LTD,C-L16100-3104,Holiday Rec-Sports & play equipment,20-Jul-11,63.80
http://statistics.data.gov.uk/id/local-authority-district/23UB,Cheltenham Borough Council,453676,S0000145324,BISHOPS SPORTS AND LEISURE LTD,C-L16100-3104,Holiday Rec-Sports & play equipment,20-Jul-11,11.95
http://statistics.data.gov.uk/id/local-authority-district/23UB,Cheltenham Borough Council,453676,S0000145324,BISHOPS SPORTS AND LEISURE LTD,C-L16100-3104,Holiday Rec-Sports & play equipment,20-Jul-11,26.85
http://statistics.data.gov.uk/id/local-authority-district/23UB,Cheltenham Borough Council,453676,S0000145324,BISHOPS SPORTS AND LEISURE LTD,C-L16100-3104,Holiday Rec-Sports & play equipment,20-Jul-11,99.50
http://statistics.data.gov.uk/id/local-authority-district/23UB,Cheltenham Borough Council,453676,S0000145324,BISHOPS SPORTS AND LEISURE LTD,C-L16100-3104,Holiday Rec-Sports & play equipment,20-Jul-11,31.60
http://statistics.data.gov.uk/id/local-authority-district/23UB,Cheltenham Borough Council,453676,S0000145324,BISHOPS SPORTS AND LEISURE LTD,C-L16100-3104,Holiday Rec-Sports & play equipment,20-Jul-11,19.90
http://statistics.data.gov.uk/id/local-authority-district/23UB,Cheltenham Borough Council,453676,S0000145324,BISHOPS SPORTS AND LEISURE LTD,C-L16100-3104,Holiday Rec-Sports & play equipment,20-Jul-11,35.80
http://statistics.data.gov.uk/id/local-authority-district/23UB,Cheltenham Borough Council,453676,S0000145324,BISHOPS SPORTS AND LEISURE LTD,C-L16100-3104,Holiday Rec-Sports & play equipment,20-Jul-11,27.80
http://statistics.data.gov.uk/id/local-authority-district/23UB,Cheltenham Borough Council,453676,S0000145324,BISHOPS SPORTS AND LEISURE LTD,C-L16100-3104,Holiday Rec-Sports & play equipment,20-Jul-11,7.99
http://statistics.data.gov.uk/id/local-authority-district/23UB,Cheltenham Borough Council,453676,S0000145324,BISHOPS SPORTS AND LEISURE LTD,C-L16100-3104,Holiday Rec-Sports & play equipment,20-Jul-11,15.80
http://statistics.data.gov.uk/id/local-authority-district/23UB,Cheltenham Borough Council,453676,S0000145324,BISHOPS SPORTS AND LEISURE LTD,C-L16100-3104,Holiday Rec-Sports & play equipment,20-Jul-11,17.40
http://statistics.data.gov.uk/id/local-authority-district/23UB,Cheltenham Borough Council,453676,S0000145324,BISHOPS SPORTS AND LEISURE LTD,C-L16100-3104,Holiday Rec-Sports & play equipment,20-Jul-11,13.50
http://statistics.data.gov.uk/id/local-authority-district/23UB,Cheltenham Borough Council,453676,S0000145324,BISHOPS SPORTS AND LEISURE LTD,C-L16100-3104,Holiday Rec-Sports & play equipment,20-Jul-11,26.10
http://statistics.data.gov.uk/id/local-authority-district/23UB,Cheltenham Borough Council,453676,S0000145324,BISHOPS SPORTS AND LEISURE LTD,C-L16100-3104,Holiday Rec-Sports & play equipment,20-Jul-11,6.65
http://statistics.data.gov.uk/id/local-authority-district/23UB,Cheltenham Borough Council,453676,S0000145324,BISHOPS SPORTS AND LEISURE LTD,C-L16100-3104,Holiday Rec-Sports & play equipment,20-Jul-11,39.80
http://statistics.data.gov.uk/id/local-authority-district/23UB,Cheltenham Borough Council,453676,S0000145324,BISHOPS SPORTS AND LEISURE LTD,C-L16100-3104,Holiday Rec-Sports & play equipment,20-Jul-11,8.00
http://statistics.data.gov.uk/id/local-authority-district/23UB,Cheltenham Borough Council,453676,S0000145324,BISHOPS SPORTS AND LEISURE LTD,C-L16100-3104,Holiday Rec-Sports & play equipment,20-Jul-11,17.50
http://statistics.data.gov.uk/id/local-authority-district/23UB,Cheltenham Borough Council,453676,S0000145324,BISHOPS SPORTS AND LEISURE LTD,C-L16100-3104,Holiday Rec-Sports & play equipment,20-Jul-11,21.00
http://statistics.data.gov.uk/id/local-authority-district/23UB,Cheltenham Borough Council,453676,S0000145324,BISHOPS SPORTS AND LEISURE LTD,C-L16100-3104,Holiday Rec-Sports & play equipment,20-Jul-11,35.80
http://statistics.data.gov.uk/id/local-authority-district/23UB,Cheltenham Borough Council,453676,S0000145324,BISHOPS SPORTS AND LEISURE LTD,C-L16100-3104,Holiday Rec-Sports & play equipment,20-Jul-11,64.40
http://statistics.data.gov.uk/id/local-authority-district/23UB,Cheltenham Borough Council,453676,S0000145324,BISHOPS SPORTS AND LEISURE LTD,C-L16100-3104,Holiday Rec-Sports & play equipment,20-Jul-11,26.85
http://statistics.data.gov.uk/id/local-authority-district/23UB,Cheltenham Borough Council,453676,S0000145324,BISHOPS SPORTS AND LEISURE LTD,C-L16100-3104,Holiday Rec-Sports & play equipment,20-Jul-11,19.75
http://statistics.data.gov.uk/id/local-authority-district/23UB,Cheltenham Borough Council,453676,S0000145324,BISHOPS SPORTS AND LEISURE LTD,C-L16100-3104,Holiday Rec-Sports & play equipment,20-Jul-11,13.50
http://statistics.data.gov.uk/id/local-authority-district/23UB,Cheltenham Borough Council,453676,S0000145324,BISHOPS SPORTS AND LEISURE LTD,C-L16100-3104,Holiday Rec-Sports & play equipment,20-Jul-11,9.95
http://statistics.data.gov.uk/id/local-authority-district/23UB,Cheltenham Borough Council,453676,S0000145324,BISHOPS SPORTS AND LEISURE LTD,C-L16100-3104,Holiday Rec-Sports & play equipment,20-Jul-11,14.50
http://statistics.data.gov.uk/id/local-authority-district/23UB,Cheltenham Borough Council,453676,S0000145324,BISHOPS SPORTS AND LEISURE LTD,C-L16100-3104,Holiday Rec-Sports & play equipment,20-Jul-11,24.85
http://statistics.data.gov.uk/id/local-authority-district/23UB,Cheltenham Borough Council,453676,S0000145324,BISHOPS SPORTS AND LEISURE LTD,C-L16100-3104,Holiday Rec-Sports & play equipment,20-Jul-11,18.25
http://statistics.data.gov.uk/id/local-authority-district/23UB,Cheltenham Borough Council,453676,S0000145324,BISHOPS SPORTS AND LEISURE LTD,C-L16100-3104,Holiday Rec-Sports & play equipment,20-Jul-11,5.95
http://statistics.data.gov.uk/id/local-authority-district/23UB,Cheltenham Borough Council,452741,2468,REX BISHOP AND SON,C-H44075-1104,Asbestos-Council House repairs,06-Jul-11,875.00
http://statistics.data.gov.uk/id/local-authority-district/23UB,Cheltenham Borough Council,452883,01/06/11,CHELTENHAM BOUNCY CASTLES,C-L16100-3178,Holiday Rec-Big Lottery Fund Expenditure,08-Jul-11,"1,000.00"
http://statistics.data.gov.uk/id/local-authority-district/23UB,Cheltenham Borough Council,452624,47SI 623406,BRENNTAG UK,C-L11500-1714,Rec Facilities-Chemicals,01-Jul-11,732.90
http://statistics.data.gov.uk/id/local-authority-district/23UB,Cheltenham Borough Council,452624,47SI 623406,BRENNTAG UK,C-L11500-1714,Rec Facilities-Chemicals,01-Jul-11,50.00
http://statistics.data.gov.uk/id/local-authority-district/23UB,Cheltenham Borough Council,452624,47SI 623406,BRENNTAG UK,C-L11500-1714,Rec Facilities-Chemicals,01-Jul-11,11.00
http://statistics.data.gov.uk/id/local-authority-district/23UB,Cheltenham Borough Council,452689,REDACTED,REDACTED,C-P12250-9104,Tenants Rent-Refunds,01-Jul-11,"1,123.75"
http://statistics.data.gov.uk/id/local-authority-district/23UB,Cheltenham Borough Council,454338,INV075381,BROXAP LIMITED,C-B51160-3501,Civic Pride-Hire of outside services,27-Jul-11,"2,448.00"
http://statistics.data.gov.uk/id/local-authority-district/23UB,Cheltenham Borough Council,452787,1055,D W BROOKES,C-C22110-1301,Parks & Gardens-Routine grounds maint,06-Jul-11,465.00
http://statistics.data.gov.uk/id/local-authority-district/23UB,Cheltenham Borough Council,452787,1055,D W BROOKES,C-C22110-1301,Parks & Gardens-Routine grounds maint,06-Jul-11,"1,530.00"
http://statistics.data.gov.uk/id/local-authority-district/23UB,Cheltenham Borough Council,452957,10056,D W BROOKES,C-C22120-3104,Spts/Open Space-Sports & play equipment,08-Jul-11,"1,285.00"
http://statistics.data.gov.uk/id/local-authority-district/23UB,Cheltenham Borough Council,453714,REDACTED,REDACTED,C-H22400-3244,Homelessness-Supporting People,20-Jul-11,500.00
http://statistics.data.gov.uk/id/local-authority-district/23UB,Cheltenham Borough Council,454606,REDACTED,REDACTED,C-H22400-3244,Homelessness-Supporting People,29-Jul-11,500.00
http://statistics.data.gov.uk/id/local-authority-district/23UB,Cheltenham Borough Council,453268,BR115030130,BURNT TREE VEHICLE HIRE,C-C24100-2701,Fleet Maint-Hired transport,13-Jul-11,528.00
http://statistics.data.gov.uk/id/local-authority-district/23UB,Cheltenham Borough Council,454271,348,M J BURKE,C-H22400-5204,Homelessness-Provision of accommo(B&B),27-Jul-11,389.30
http://statistics.data.gov.uk/id/local-authority-district/23UB,Cheltenham Borough Council,454272,349,M J BURKE,C-H22400-5204,Homelessness-Provision of accommo(B&B),27-Jul-11,320.60
http://statistics.data.gov.uk/id/local-authority-district/23UB,Cheltenham Borough Council,454270,347,M J BURKE,C-H22400-5204,Homelessness-Provision of accommo(B&B),27-Jul-11,377.85
http://statistics.data.gov.uk/id/local-authority-district/23UB,Cheltenham Borough Council,452744,4474,C AND R DECORATORS,C-H4207V-1104,Voids 2207-Council House repairs,06-Jul-11,341.84
http://statistics.data.gov.uk/id/local-authority-district/23UB,Cheltenham Borough Council,452743,4471,C AND R DECORATORS,C-H4209V-1104,Voids 2209-Council House repairs,06-Jul-11,252.13
http://statistics.data.gov.uk/id/local-authority-district/23UB,Cheltenham Borough Council,452742,4470,C AND R DECORATORS,C-H4214V-1104,Voids 2214-Council House repairs,06-Jul-11,"1,030.27"
http://statistics.data.gov.uk/id/local-authority-district/23UB,Cheltenham Borough Council,452745,4454,C AND R DECORATORS,C-H44752-1104,Dis Adapts-Tech-Council House repairs,06-Jul-11,"1,149.00"
http://statistics.data.gov.uk/id/local-authority-district/23UB,Cheltenham Borough Council,452935,4478,C AND R DECORATORS,C-H4201V-1104,Voids 2201-Council House repairs,08-Jul-11,361.62
http://statistics.data.gov.uk/id/local-authority-district/23UB,Cheltenham Borough Council,452934,4479,C AND R DECORATORS,C-H4207V-1104,Voids 2207-Council House repairs,08-Jul-11,381.78
http://statistics.data.gov.uk/id/local-authority-district/23UB,Cheltenham Borough Council,452937,4480,C AND R DECORATORS,C-HC4841-C302,Major Voids-Building Contractor,08-Jul-11,"2,084.46"
http://statistics.data.gov.uk/id/local-authority-district/23UB,Cheltenham Borough Council,452936,4411,C AND R DECORATORS,C-HC4867-C302,Misc Works-Building Contractor,08-Jul-11,860.00
http://statistics.data.gov.uk/id/local-authority-district/23UB,Cheltenham Borough Council,454619,3018,CDS PUBLICATIONS LTD,C-L31100-3510,TIC-Promotion & Marketing,29-Jul-11,600.00
http://statistics.data.gov.uk/id/local-authority-district/23UB,Cheltenham Borough Council,454510,DCW/ACS,CELEBRATION REED AND BRASS BAND,C-C22110-3547,Parks & Gardens-Events Budget,29-Jul-11,210.00
http://statistics.data.gov.uk/id/local-authority-district/23UB,Cheltenham Borough Council,454446,REDACTED,CGT LETTINGS,C-H22400-3828,Homelessness-Prevention Fund,27-Jul-11,600.00
http://statistics.data.gov.uk/id/local-authority-district/23UB,Cheltenham Borough Council,452657,PARISH PRECEPT,CHARLTON KINGS PARISH COUNCIL,C-Y11400-P107,Col Fnd Rev A/c-Charlton Kings,01-Jul-11,"47,000.00"
http://statistics.data.gov.uk/id/local-authority-district/23UB,Cheltenham Borough Council,452620,31553,CHARTERHOUSE SECURITY MANAGEMENT,C-H44752-1104,Dis Adapts-Tech-Council House repairs,01-Jul-11,69.38
http://statistics.data.gov.uk/id/local-authority-district/23UB,Cheltenham Borough Council,452552,31503,CHARTERHOUSE SECURITY MANAGEMENT,C-H46400-C302,Door Entry-Building Contractor,01-Jul-11,466.40
http://statistics.data.gov.uk/id/local-authority-district/23UB,Cheltenham Borough Council,452942,31589,CHARTERHOUSE SECURITY MANAGEMENT,C-H46400-C302,Door Entry-Building Contractor,08-Jul-11,"2,656.49"
http://statistics.data.gov.uk/id/local-authority-district/23UB,Cheltenham Borough Council,452889,H1485,CHARTERHOUSE SECURITY MANAGEMENT,C-HC4172-C302,Ngh Works-Misc-Building Contractor,08-Jul-11,564.75
http://statistics.data.gov.uk/id/local-authority-district/23UB,Cheltenham Borough Council,452963,48047,CHELTENHAM GARDEN MACHINERY,C-C22105-3101,Hsg Forecourts-Equipment purchases,08-Jul-11,"1,100.00"
http://statistics.data.gov.uk/id/local-authority-district/23UB,Cheltenham Borough Council,454465,CHELTDW/6/2011,CHELTENHAM ANIMAL SHELTER,C-E61300-3501,Animal Welfare-Hire of outside services,29-Jul-11,"1,913.25"
http://statistics.data.gov.uk/id/local-authority-district/23UB,Cheltenham Borough Council,454466,CHELTD/W/6/201,CHELTENHAM ANIMAL SHELTER,C-E61300-3501,Animal Welfare-Hire of outside services,29-Jul-11,"1,064.00"
http://statistics.data.gov.uk/id/local-authority-district/23UB,Cheltenham Borough Council,454247,408942,CLEARWATER TECHNOLOGY LTD,C-H46450-1104,Legionella T&M-Council House repairs,27-Jul-11,270.00
http://statistics.data.gov.uk/id/local-authority-district/23UB,Cheltenham Borough Council,454250,408939,CLEARWATER TECHNOLOGY LTD,C-H46450-1104,Legionella T&M-Council House repairs,27-Jul-11,600.00
http://statistics.data.gov.uk/id/local-authority-district/23UB,Cheltenham Borough Council,454248,408943,CLEARWATER TECHNOLOGY LTD,C-H46450-1104,Legionella T&M-Council House repairs,27-Jul-11,270.00
http://statistics.data.gov.uk/id/local-authority-district/23UB,Cheltenham Borough Council,454249,408940,CLEARWATER TECHNOLOGY LTD,C-H46450-1104,Legionella T&M-Council House repairs,27-Jul-11,450.00
http://statistics.data.gov.uk/id/local-authority-district/23UB,Cheltenham Borough Council,453214,20154,COLLETT TRANSPORT SERVICES LIMITED,C-C24100-2701,Fleet Maint-Hired transport,13-Jul-11,"1,820.00"
http://statistics.data.gov.uk/id/local-authority-district/23UB,Cheltenham Borough Council,453266,19861,COLLETT TRANSPORT SERVICES LIMITED,C-C24100-2701,Fleet Maint-Hired transport,13-Jul-11,"2,200.00"
http://statistics.data.gov.uk/id/local-authority-district/23UB,Cheltenham Borough Council,453265,20155,COLLETT TRANSPORT SERVICES LIMITED,C-C24100-2701,Fleet Maint-Hired transport,13-Jul-11,390.00
http://statistics.data.gov.uk/id/local-authority-district/23UB,Cheltenham Borough Council,454120,20244,COLLETT TRANSPORT SERVICES LIMITED,C-C24100-2701,Fleet Maint-Hired transport,27-Jul-11,"2,120.00"
http://statistics.data.gov.uk/id/local-authority-district/23UB,Cheltenham Borough Council,454124,20219,COLLETT TRANSPORT SERVICES LIMITED,C-C24100-2701,Fleet Maint-Hired transport,27-Jul-11,"1,210.00"
http://statistics.data.gov.uk/id/local-authority-district/23UB,Cheltenham Borough Council,454123,20247,COLLETT TRANSPORT SERVICES LIMITED,C-C24100-2701,Fleet Maint-Hired transport,27-Jul-11,650.00
http://statistics.data.gov.uk/id/local-authority-district/23UB,Cheltenham Borough Council,454122,20357,COLLETT TRANSPORT SERVICES LIMITED,C-C24100-2701,Fleet Maint-Hired transport,27-Jul-11,780.00
http://statistics.data.gov.uk/id/local-authority-district/23UB,Cheltenham Borough Council,454121,20249,COLLETT TRANSPORT SERVICES LIMITED,C-C24100-2702,Fleet Maint-Additional vehicle hire,27-Jul-11,330.00
http://statistics.data.gov.uk/id/local-authority-district/23UB,Cheltenham Borough Council,452791,COT-2331,COMPLETE WEED CONTROL,C-C22115-3501,Grass Verges-Hire of outside services,06-Jul-11,"13,879.29"
http://statistics.data.gov.uk/id/local-authority-district/23UB,Cheltenham Borough Council,453086,2342,COMPLETE WEED CONTROL,C-E21100-1101,Car Prks-Off St-General building repairs,13-Jul-11,905.00
http://statistics.data.gov.uk/id/local-authority-district/23UB,Cheltenham Borough Council,453149,SIT100044,COMMERCIAL LIMITED,C-D11820-3660,IT Infrastructu-Hardware PC & Servers,13-Jul-11,"1,415.07"
http://statistics.data.gov.uk/id/local-authority-district/23UB,Cheltenham Borough Council,453149,SIT100044,COMMERCIAL LIMITED,C-D11820-3660,IT Infrastructu-Hardware PC & Servers,13-Jul-11,"1,914.12"
http://statistics.data.gov.uk/id/local-authority-district/23UB,Cheltenham Borough Council,453149,SIT100044,COMMERCIAL LIMITED,C-D11820-3660,IT Infrastructu-Hardware PC & Servers,13-Jul-11,141.61
http://statistics.data.gov.uk/id/local-authority-district/23UB,Cheltenham Borough Council,453149,SIT100044,COMMERCIAL LIMITED,C-D11820-3660,IT Infrastructu-Hardware PC & Servers,13-Jul-11,895.00
http://statistics.data.gov.uk/id/local-authority-district/23UB,Cheltenham Borough Council,453149,SIT100044,COMMERCIAL LIMITED,C-D11820-3660,IT Infrastructu-Hardware PC & Servers,13-Jul-11,315.33
http://statistics.data.gov.uk/id/local-authority-district/23UB,Cheltenham Borough Council,453149,SIT100044,COMMERCIAL LIMITED,C-D11820-3660,IT Infrastructu-Hardware PC & Servers,13-Jul-11,33.87
http://statistics.data.gov.uk/id/local-authority-district/23UB,Cheltenham Borough Council,453149,SIT100044,COMMERCIAL LIMITED,C-D11820-3660,IT Infrastructu-Hardware PC & Servers,13-Jul-11,"3,981.26"
http://statistics.data.gov.uk/id/local-authority-district/23UB,Cheltenham Borough Council,453149,SIT100044,COMMERCIAL LIMITED,C-D11820-3660,IT Infrastructu-Hardware PC & Servers,13-Jul-11,358.86
http://statistics.data.gov.uk/id/local-authority-district/23UB,Cheltenham Borough Council,453149,SIT100044,COMMERCIAL LIMITED,C-D11820-3660,IT Infrastructu-Hardware PC & Servers,13-Jul-11,603.41
http://statistics.data.gov.uk/id/local-authority-district/23UB,Cheltenham Borough Council,453105,7486499,COMPUTACENTER UK LIMITED,C-D11820-3660,IT Infrastructu-Hardware PC & Servers,13-Jul-11,"2,207.76"
http://statistics.data.gov.uk/id/local-authority-district/23UB,Cheltenham Borough Council,453642,11096,COMPLETE CLIMATE SOLUTIONS LIMITED,C-D13100-1123,Muni Off Blgs-M&E Planned & Preventative,20-Jul-11,"2,700.00"
http://statistics.data.gov.uk/id/local-authority-district/23UB,Cheltenham Borough Council,453642,11096,COMPLETE CLIMATE SOLUTIONS LIMITED,C-N11250-9227,EXCLUDED,20-Jul-11,-540.00
http://statistics.data.gov.uk/id/local-authority-district/23UB,Cheltenham Borough Council,453744,11099,COMPLETE CLIMATE SOLUTIONS LIMITED,C-C22100-1811,Green Envir Div-RM-Plan.& Prev.Mech.Ctrc,22-Jul-11,217.38
http://statistics.data.gov.uk/id/local-authority-district/23UB,Cheltenham Borough Council,453741,11103,COMPLETE CLIMATE SOLUTIONS LIMITED,C-C22120-1811,Sports & Open S-RM-Plan.& Prev.Mech.Ctrc,22-Jul-11,52.60
http://statistics.data.gov.uk/id/local-authority-district/23UB,Cheltenham Borough Council,453746,11098,COMPLETE CLIMATE SOLUTIONS LIMITED,C-C22140-1812,Nursery-Boiler M&E repairs,22-Jul-11,206.60
http://statistics.data.gov.uk/id/local-authority-district/23UB,Cheltenham Borough Council,453742,11101,COMPLETE CLIMATE SOLUTIONS LIMITED,C-D13100-1811,Muni Off Blgs-RM-Plan.& Prev.Mech.Ctrct,22-Jul-11,29.25
http://statistics.data.gov.uk/id/local-authority-district/23UB,Cheltenham Borough Council,453745,11100,COMPLETE CLIMATE SOLUTIONS LIMITED,C-D14100-1810,Depot Building-RM- Air conditioning,22-Jul-11,104.26
http://statistics.data.gov.uk/id/local-authority-district/23UB,Cheltenham Borough Council,453743,11102,COMPLETE CLIMATE SOLUTIONS LIMITED,C-L11500-1811,Rec Facilities-RM-Plan.& Prev.Mech.Ctrct,22-Jul-11,452.91
http://statistics.data.gov.uk/id/local-authority-district/23UB,Cheltenham Borough Council,453747,11097,COMPLETE CLIMATE SOLUTIONS LIMITED,C-L21100-1810,Town Hall-RM- Air conditioning,22-Jul-11,360.16
http://statistics.data.gov.uk/id/local-authority-district/23UB,Cheltenham Borough Council,453744,11099,COMPLETE CLIMATE SOLUTIONS LIMITED,C-N11250-9227,EXCLUDED,22-Jul-11,-12.68
http://statistics.data.gov.uk/id/local-authority-district/23UB,Cheltenham Borough Council,453747,11097,COMPLETE CLIMATE SOLUTIONS LIMITED,C-N11250-9227,EXCLUDED,22-Jul-11,-47.10
http://statistics.data.gov.uk/id/local-authority-district/23UB,Cheltenham Borough Council,453746,11098,COMPLETE CLIMATE SOLUTIONS LIMITED,C-N11250-9227,EXCLUDED,22-Jul-11,-26.70
http://statistics.data.gov.uk/id/local-authority-district/23UB,Cheltenham Borough Council,453745,11100,COMPLETE CLIMATE SOLUTIONS LIMITED,C-N11250-9227,EXCLUDED,22-Jul-11,-7.80
http://statistics.data.gov.uk/id/local-authority-district/23UB,Cheltenham Borough Council,453743,11102,COMPLETE CLIMATE SOLUTIONS LIMITED,C-N11250-9227,EXCLUDED,22-Jul-11,-14.63
http://statistics.data.gov.uk/id/local-authority-district/23UB,Cheltenham Borough Council,453742,11101,COMPLETE CLIMATE SOLUTIONS LIMITED,C-N11250-9227,EXCLUDED,22-Jul-11,-5.85
http://statistics.data.gov.uk/id/local-authority-district/23UB,Cheltenham Borough Council,453741,11103,COMPLETE CLIMATE SOLUTIONS LIMITED,C-N11250-9227,EXCLUDED,22-Jul-11,-5.85
http://statistics.data.gov.uk/id/local-authority-district/23UB,Cheltenham Borough Council,454117,1684,COMMERCIAL MOWER SUPPLIES,C-C24100-3582,Fleet Maint-DSO Invoices,27-Jul-11,21.14
http://statistics.data.gov.uk/id/local-authority-district/23UB,Cheltenham Borough Council,454265,1686,COMMERCIAL MOWER SUPPLIES,C-C24100-3582,Fleet Maint-DSO Invoices,27-Jul-11,"1,262.00"
http://statistics.data.gov.uk/id/local-authority-district/23UB,Cheltenham Borough Council,454118,1683,COMMERCIAL MOWER SUPPLIES,C-C24100-3582,Fleet Maint-DSO Invoices,27-Jul-11,106.72
http://statistics.data.gov.uk/id/local-authority-district/23UB,Cheltenham Borough Council,452873,506722,COMENSURA LIMITED,C-C22100-0115,Green Env Div-Temporary Agency Staff,08-Jul-11,346.88
http://statistics.data.gov.uk/id/local-authority-district/23UB,Cheltenham Borough Council,452873,506722,COMENSURA LIMITED,C-C22100-0115,Green Env Div-Temporary Agency Staff,08-Jul-11,346.88
http://statistics.data.gov.uk/id/local-authority-district/23UB,Cheltenham Borough Council,452873,506722,COMENSURA LIMITED,C-C22100-0115,Green Env Div-Temporary Agency Staff,08-Jul-11,346.88
http://statistics.data.gov.uk/id/local-authority-district/23UB,Cheltenham Borough Council,452873,506722,COMENSURA LIMITED,C-C22100-0115,Green Env Div-Temporary Agency Staff,08-Jul-11,207.28
http://statistics.data.gov.uk/id/local-authority-district/23UB,Cheltenham Borough Council,452875,507074,COMENSURA LIMITED,C-C22100-0115,Green Env Div-Temporary Agency Staff,08-Jul-11,287.66
http://statistics.data.gov.uk/id/local-authority-district/23UB,Cheltenham Borough Council,452875,507074,COMENSURA LIMITED,C-C22100-0115,Green Env Div-Temporary Agency Staff,08-Jul-11,346.88
http://statistics.data.gov.uk/id/local-authority-district/23UB,Cheltenham Borough Council,452875,507074,COMENSURA LIMITED,C-C22100-0115,Green Env Div-Temporary Agency Staff,08-Jul-11,346.88
http://statistics.data.gov.uk/id/local-authority-district/23UB,Cheltenham Borough Council,452875,507074,COMENSURA LIMITED,C-C22100-0115,Green Env Div-Temporary Agency Staff,08-Jul-11,346.88
http://statistics.data.gov.uk/id/local-authority-district/23UB,Cheltenham Borough Council,452875,507074,COMENSURA LIMITED,C-C22100-0115,Green Env Div-Temporary Agency Staff,08-Jul-11,97.04
http://statistics.data.gov.uk/id/local-authority-district/23UB,Cheltenham Borough Council,452875,507074,COMENSURA LIMITED,C-C22100-0115,Green Env Div-Temporary Agency Staff,08-Jul-11,431.48
http://statistics.data.gov.uk/id/local-authority-district/23UB,Cheltenham Borough Council,452875,507074,COMENSURA LIMITED,C-C22100-0115,Green Env Div-Temporary Agency Staff,08-Jul-11,348.99
http://statistics.data.gov.uk/id/local-authority-district/23UB,Cheltenham Borough Council,452875,507074,COMENSURA LIMITED,C-C22100-0115,Green Env Div-Temporary Agency Staff,08-Jul-11,346.88
http://statistics.data.gov.uk/id/local-authority-district/23UB,Cheltenham Borough Council,452875,507074,COMENSURA LIMITED,C-C22100-0115,Green Env Div-Temporary Agency Staff,08-Jul-11,346.88
http://statistics.data.gov.uk/id/local-authority-district/23UB,Cheltenham Borough Council,452875,507074,COMENSURA LIMITED,C-C22100-0115,Green Env Div-Temporary Agency Staff,08-Jul-11,346.88
http://statistics.data.gov.uk/id/local-authority-district/23UB,Cheltenham Borough Council,452875,507074,COMENSURA LIMITED,C-C22100-0115,Green Env Div-Temporary Agency Staff,08-Jul-11,173.44
http://statistics.data.gov.uk/id/local-authority-district/23UB,Cheltenham Borough Council,452875,507074,COMENSURA LIMITED,C-C22100-0115,Green Env Div-Temporary Agency Staff,08-Jul-11,227.43
http://statistics.data.gov.uk/id/local-authority-district/23UB,Cheltenham Borough Council,452875,507074,COMENSURA LIMITED,C-C22100-0115,Green Env Div-Temporary Agency Staff,08-Jul-11,221.37
http://statistics.data.gov.uk/id/local-authority-district/23UB,Cheltenham Borough Council,452875,507074,COMENSURA LIMITED,C-C22100-0115,Green Env Div-Temporary Agency Staff,08-Jul-11,436.67
http://statistics.data.gov.uk/id/local-authority-district/23UB,Cheltenham Borough Council,452875,507074,COMENSURA LIMITED,C-C22100-0115,Green Env Div-Temporary Agency Staff,08-Jul-11,121.30
http://statistics.data.gov.uk/id/local-authority-district/23UB,Cheltenham Borough Council,452874,506879,COMENSURA LIMITED,C-C22100-0115,Green Env Div-Temporary Agency Staff,08-Jul-11,277.08
http://statistics.data.gov.uk/id/local-authority-district/23UB,Cheltenham Borough Council,452874,506879,COMENSURA LIMITED,C-C22100-0115,Green Env Div-Temporary Agency Staff,08-Jul-11,277.08
http://statistics.data.gov.uk/id/local-authority-district/23UB,Cheltenham Borough Council,452874,506879,COMENSURA LIMITED,C-C22100-0115,Green Env Div-Temporary Agency Staff,08-Jul-11,277.08
http://statistics.data.gov.uk/id/local-authority-district/23UB,Cheltenham Borough Council,452874,506879,COMENSURA LIMITED,C-C22100-0115,Green Env Div-Temporary Agency Staff,08-Jul-11,277.08
http://statistics.data.gov.uk/id/local-authority-district/23UB,Cheltenham Borough Council,452873,506722,COMENSURA LIMITED,C-C22100-0115,Green Env Div-Temporary Agency Staff,08-Jul-11,346.88
http://statistics.data.gov.uk/id/local-authority-district/23UB,Cheltenham Borough Council,452873,506722,COMENSURA LIMITED,C-C22100-0115,Green Env Div-Temporary Agency Staff,08-Jul-11,346.88
http://statistics.data.gov.uk/id/local-authority-district/23UB,Cheltenham Borough Council,452873,506722,COMENSURA LIMITED,C-C22100-0115,Green Env Div-Temporary Agency Staff,08-Jul-11,346.88
http://statistics.data.gov.uk/id/local-authority-district/23UB,Cheltenham Borough Council,452873,506722,COMENSURA LIMITED,C-C22100-0115,Green Env Div-Temporary Agency Staff,08-Jul-11,346.88
http://statistics.data.gov.uk/id/local-authority-district/23UB,Cheltenham Borough Council,452874,506879,COMENSURA LIMITED,C-C22110-0115,Parks & Gardens-Temporary Agency Staff,08-Jul-11,274.95
http://statistics.data.gov.uk/id/local-authority-district/23UB,Cheltenham Borough Council,452875,507074,COMENSURA LIMITED,C-C22110-0115,Parks & Gardens-Temporary Agency Staff,08-Jul-11,346.86
http://statistics.data.gov.uk/id/local-authority-district/23UB,Cheltenham Borough Council,452873,506722,COMENSURA LIMITED,C-C22120-0115,Spts/Open Space-Temporary Agency Staff,08-Jul-11,346.86
http://statistics.data.gov.uk/id/local-authority-district/23UB,Cheltenham Borough Council,452873,506722,COMENSURA LIMITED,C-C22120-0115,Spts/Open Space-Temporary Agency Staff,08-Jul-11,274.95
http://statistics.data.gov.uk/id/local-authority-district/23UB,Cheltenham Borough Council,452874,506879,COMENSURA LIMITED,C-C22120-0115,Spts/Open Space-Temporary Agency Staff,08-Jul-11,346.86
http://statistics.data.gov.uk/id/local-authority-district/23UB,Cheltenham Borough Council,452874,506879,COMENSURA LIMITED,C-C22120-0115,Spts/Open Space-Temporary Agency Staff,08-Jul-11,346.86
http://statistics.data.gov.uk/id/local-authority-district/23UB,Cheltenham Borough Council,452875,507074,COMENSURA LIMITED,C-C22120-0115,Spts/Open Space-Temporary Agency Staff,08-Jul-11,346.86
http://statistics.data.gov.uk/id/local-authority-district/23UB,Cheltenham Borough Council,452875,507074,COMENSURA LIMITED,C-C22120-0115,Spts/Open Space-Temporary Agency Staff,08-Jul-11,346.86
http://statistics.data.gov.uk/id/local-authority-district/23UB,Cheltenham Borough Council,452874,506879,COMENSURA LIMITED,C-C22120-0115,Spts/Open Space-Temporary Agency Staff,08-Jul-11,266.49
http://statistics.data.gov.uk/id/local-authority-district/23UB,Cheltenham Borough Council,452873,506722,COMENSURA LIMITED,C-C22120-0115,Spts/Open Space-Temporary Agency Staff,08-Jul-11,274.95
http://statistics.data.gov.uk/id/local-authority-district/23UB,Cheltenham Borough Council,452873,506722,COMENSURA LIMITED,C-C22120-0115,Spts/Open Space-Temporary Agency Staff,08-Jul-11,274.95
http://statistics.data.gov.uk/id/local-authority-district/23UB,Cheltenham Borough Council,452873,506722,COMENSURA LIMITED,C-C22120-0115,Spts/Open Space-Temporary Agency Staff,08-Jul-11,346.86
http://statistics.data.gov.uk/id/local-authority-district/23UB,Cheltenham Borough Council,452873,506722,COMENSURA LIMITED,C-C22120-0115,Spts/Open Space-Temporary Agency Staff,08-Jul-11,215.73
http://statistics.data.gov.uk/id/local-authority-district/23UB,Cheltenham Borough Council,452873,506722,COMENSURA LIMITED,C-C23100-0115,Refuse Collection-Temporary Agency Staff,08-Jul-11,59.22
http://statistics.data.gov.uk/id/local-authority-district/23UB,Cheltenham Borough Council,452873,506722,COMENSURA LIMITED,C-C23100-0115,Refuse Collection-Temporary Agency Staff,08-Jul-11,126.90
http://statistics.data.gov.uk/id/local-authority-district/23UB,Cheltenham Borough Council,452873,506722,COMENSURA LIMITED,C-C23100-0115,Refuse Collection-Temporary Agency Staff,08-Jul-11,318.41
http://statistics.data.gov.uk/id/local-authority-district/23UB,Cheltenham Borough Council,452875,507074,COMENSURA LIMITED,C-C23100-0115,Refuse Collection-Temporary Agency Staff,08-Jul-11,317.25
http://statistics.data.gov.uk/id/local-authority-district/23UB,Cheltenham Borough Council,452875,507074,COMENSURA LIMITED,C-C23100-0115,Refuse Collection-Temporary Agency Staff,08-Jul-11,270.72
http://statistics.data.gov.uk/id/local-authority-district/23UB,Cheltenham Borough Council,452875,507074,COMENSURA LIMITED,C-C23100-0115,Refuse Collection-Temporary Agency Staff,08-Jul-11,137.48
http://statistics.data.gov.uk/id/local-authority-district/23UB,Cheltenham Borough Council,452875,507074,COMENSURA LIMITED,C-C23100-0115,Refuse Collection-Temporary Agency Staff,08-Jul-11,97.29
http://statistics.data.gov.uk/id/local-authority-district/23UB,Cheltenham Borough Council,452875,507074,COMENSURA LIMITED,C-C23100-0115,Refuse Collection-Temporary Agency Staff,08-Jul-11,236.88
http://statistics.data.gov.uk/id/local-authority-district/23UB,Cheltenham Borough Council,452875,507074,COMENSURA LIMITED,C-C23100-0115,Refuse Collection-Temporary Agency Staff,08-Jul-11,241.11
http://statistics.data.gov.uk/id/local-authority-district/23UB,Cheltenham Borough Council,452875,507074,COMENSURA LIMITED,C-C23100-0115,Refuse Collection-Temporary Agency Staff,08-Jul-11,270.72
http://statistics.data.gov.uk/id/local-authority-district/23UB,Cheltenham Borough Council,452875,507074,COMENSURA LIMITED,C-C23100-0115,Refuse Collection-Temporary Agency Staff,08-Jul-11,238.99
http://statistics.data.gov.uk/id/local-authority-district/23UB,Cheltenham Borough Council,452875,507074,COMENSURA LIMITED,C-C23100-0115,Refuse Collection-Temporary Agency Staff,08-Jul-11,97.04
http://statistics.data.gov.uk/id/local-authority-district/23UB,Cheltenham Borough Council,452875,507074,COMENSURA LIMITED,C-C23100-0115,Refuse Collection-Temporary Agency Staff,08-Jul-11,485.20
http://statistics.data.gov.uk/id/local-authority-district/23UB,Cheltenham Borough Council,452875,507074,COMENSURA LIMITED,C-C23100-0115,Refuse Collection-Temporary Agency Staff,08-Jul-11,44.42
http://statistics.data.gov.uk/id/local-authority-district/23UB,Cheltenham Borough Council,452875,507074,COMENSURA LIMITED,C-C23100-0115,Refuse Collection-Temporary Agency Staff,08-Jul-11,304.56
http://statistics.data.gov.uk/id/local-authority-district/23UB,Cheltenham Borough Council,452874,506879,COMENSURA LIMITED,C-C23100-0115,Refuse Collection-Temporary Agency Staff,08-Jul-11,298.22
http://statistics.data.gov.uk/id/local-authority-district/23UB,Cheltenham Borough Council,452875,507074,COMENSURA LIMITED,C-C23100-0115,Refuse Collection-Temporary Agency Staff,08-Jul-11,46.53
http://statistics.data.gov.uk/id/local-authority-district/23UB,Cheltenham Borough Council,452874,506879,COMENSURA LIMITED,C-C23100-0115,Refuse Collection-Temporary Agency Staff,08-Jul-11,485.20
http://statistics.data.gov.uk/id/local-authority-district/23UB,Cheltenham Borough Council,452874,506879,COMENSURA LIMITED,C-C23100-0115,Refuse Collection-Temporary Agency Staff,08-Jul-11,84.60
http://statistics.data.gov.uk/id/local-authority-district/23UB,Cheltenham Borough Council,452874,506879,COMENSURA LIMITED,C-C23100-0115,Refuse Collection-Temporary Agency Staff,08-Jul-11,304.56
http://statistics.data.gov.uk/id/local-authority-district/23UB,Cheltenham Borough Council,452874,506879,COMENSURA LIMITED,C-C23100-0115,Refuse Collection-Temporary Agency Staff,08-Jul-11,181.89
http://statistics.data.gov.uk/id/local-authority-district/23UB,Cheltenham Borough Council,452874,506879,COMENSURA LIMITED,C-C23100-0115,Refuse Collection-Temporary Agency Staff,08-Jul-11,258.03
http://statistics.data.gov.uk/id/local-authority-district/23UB,Cheltenham Borough Council,452874,506879,COMENSURA LIMITED,C-C23100-0115,Refuse Collection-Temporary Agency Staff,08-Jul-11,368.01
http://statistics.data.gov.uk/id/local-authority-district/23UB,Cheltenham Borough Council,452874,506879,COMENSURA LIMITED,C-C23100-0115,Refuse Collection-Temporary Agency Staff,08-Jul-11,152.28
http://statistics.data.gov.uk/id/local-authority-district/23UB,Cheltenham Borough Council,452873,506722,COMENSURA LIMITED,C-C23100-0115,Refuse Collection-Temporary Agency Staff,08-Jul-11,533.76
http://statistics.data.gov.uk/id/local-authority-district/23UB,Cheltenham Borough Council,452875,507074,COMENSURA LIMITED,C-C23100-0115,Refuse Collection-Temporary Agency Staff,08-Jul-11,27.50
http://statistics.data.gov.uk/id/local-authority-district/23UB,Cheltenham Borough Council,452875,507074,COMENSURA LIMITED,C-C23100-0115,Refuse Collection-Temporary Agency Staff,08-Jul-11,533.76
http://statistics.data.gov.uk/id/local-authority-district/23UB,Cheltenham Borough Council,452875,507074,COMENSURA LIMITED,C-C23100-0115,Refuse Collection-Temporary Agency Staff,08-Jul-11,-466.88
http://statistics.data.gov.uk/id/local-authority-district/23UB,Cheltenham Borough Council,452875,507074,COMENSURA LIMITED,C-C23100-0115,Refuse Collection-Temporary Agency Staff,08-Jul-11,54.99
http://statistics.data.gov.uk/id/local-authority-district/23UB,Cheltenham Borough Council,452875,507074,COMENSURA LIMITED,C-C23100-0115,Refuse Collection-Temporary Agency Staff,08-Jul-11,27.43
http://statistics.data.gov.uk/id/local-authority-district/23UB,Cheltenham Borough Council,452875,507074,COMENSURA LIMITED,C-C23100-0115,Refuse Collection-Temporary Agency Staff,08-Jul-11,54.99
http://statistics.data.gov.uk/id/local-authority-district/23UB,Cheltenham Borough Council,452874,506879,COMENSURA LIMITED,C-C23100-0115,Refuse Collection-Temporary Agency Staff,08-Jul-11,184.02
http://statistics.data.gov.uk/id/local-authority-district/23UB,Cheltenham Borough Council,452873,506722,COMENSURA LIMITED,C-C23100-0115,Refuse Collection-Temporary Agency Staff,08-Jul-11,126.90
http://statistics.data.gov.uk/id/local-authority-district/23UB,Cheltenham Borough Council,452873,506722,COMENSURA LIMITED,C-C23100-0115,Refuse Collection-Temporary Agency Staff,08-Jul-11,466.88
http://statistics.data.gov.uk/id/local-authority-district/23UB,Cheltenham Borough Council,452873,506722,COMENSURA LIMITED,C-C23100-0115,Refuse Collection-Temporary Agency Staff,08-Jul-11,71.91
http://statistics.data.gov.uk/id/local-authority-district/23UB,Cheltenham Borough Council,452873,506722,COMENSURA LIMITED,C-C23100-0115,Refuse Collection-Temporary Agency Staff,08-Jul-11,211.50
http://statistics.data.gov.uk/id/local-authority-district/23UB,Cheltenham Borough Council,452873,506722,COMENSURA LIMITED,C-C23100-0115,Refuse Collection-Temporary Agency Staff,08-Jul-11,230.54
http://statistics.data.gov.uk/id/local-authority-district/23UB,Cheltenham Borough Council,452873,506722,COMENSURA LIMITED,C-C23100-0115,Refuse Collection-Temporary Agency Staff,08-Jul-11,291.82
http://statistics.data.gov.uk/id/local-authority-district/23UB,Cheltenham Borough Council,452873,506722,COMENSURA LIMITED,C-C23100-0115,Refuse Collection-Temporary Agency Staff,08-Jul-11,317.20
http://statistics.data.gov.uk/id/local-authority-district/23UB,Cheltenham Borough Council,452873,506722,COMENSURA LIMITED,C-C23100-0115,Refuse Collection-Temporary Agency Staff,08-Jul-11,257.98
http://statistics.data.gov.uk/id/local-authority-district/23UB,Cheltenham Borough Council,452874,506879,COMENSURA LIMITED,C-C23100-0115,Refuse Collection-Temporary Agency Staff,08-Jul-11,274.96
http://statistics.data.gov.uk/id/local-authority-district/23UB,Cheltenham Borough Council,452874,506879,COMENSURA LIMITED,C-C23100-0115,Refuse Collection-Temporary Agency Staff,08-Jul-11,300.33
http://statistics.data.gov.uk/id/local-authority-district/23UB,Cheltenham Borough Council,452874,506879,COMENSURA LIMITED,C-C23100-0115,Refuse Collection-Temporary Agency Staff,08-Jul-11,126.90
http://statistics.data.gov.uk/id/local-authority-district/23UB,Cheltenham Borough Council,452874,506879,COMENSURA LIMITED,C-C23100-0115,Refuse Collection-Temporary Agency Staff,08-Jul-11,97.04
http://statistics.data.gov.uk/id/local-authority-district/23UB,Cheltenham Borough Council,452874,506879,COMENSURA LIMITED,C-C23100-0115,Refuse Collection-Temporary Agency Staff,08-Jul-11,279.19
http://statistics.data.gov.uk/id/local-authority-district/23UB,Cheltenham Borough Council,452874,506879,COMENSURA LIMITED,C-C23100-0115,Refuse Collection-Temporary Agency Staff,08-Jul-11,103.10
http://statistics.data.gov.uk/id/local-authority-district/23UB,Cheltenham Borough Council,452874,506879,COMENSURA LIMITED,C-C23100-0115,Refuse Collection-Temporary Agency Staff,08-Jul-11,291.12
http://statistics.data.gov.uk/id/local-authority-district/23UB,Cheltenham Borough Council,452874,506879,COMENSURA LIMITED,C-C23100-0115,Refuse Collection-Temporary Agency Staff,08-Jul-11,224.19
http://statistics.data.gov.uk/id/local-authority-district/23UB,Cheltenham Borough Council,452874,506879,COMENSURA LIMITED,C-C23100-0115,Refuse Collection-Temporary Agency Staff,08-Jul-11,186.12
http://statistics.data.gov.uk/id/local-authority-district/23UB,Cheltenham Borough Council,452873,506722,COMENSURA LIMITED,C-C23100-0115,Refuse Collection-Temporary Agency Staff,08-Jul-11,266.45
http://statistics.data.gov.uk/id/local-authority-district/23UB,Cheltenham Borough Council,452873,506722,COMENSURA LIMITED,C-C23100-0115,Refuse Collection-Temporary Agency Staff,08-Jul-11,8.46
http://statistics.data.gov.uk/id/local-authority-district/23UB,Cheltenham Borough Council,452873,506722,COMENSURA LIMITED,C-C23100-0115,Refuse Collection-Temporary Agency Staff,08-Jul-11,126.90
http://statistics.data.gov.uk/id/local-authority-district/23UB,Cheltenham Borough Council,452873,506722,COMENSURA LIMITED,C-C23100-0115,Refuse Collection-Temporary Agency Staff,08-Jul-11,338.40
http://statistics.data.gov.uk/id/local-authority-district/23UB,Cheltenham Borough Council,452873,506722,COMENSURA LIMITED,C-C23100-0115,Refuse Collection-Temporary Agency Staff,08-Jul-11,391.21
http://statistics.data.gov.uk/id/local-authority-district/23UB,Cheltenham Borough Council,452873,506722,COMENSURA LIMITED,C-C23110-0115,Street Cleaning-Temporary Agency Staff,08-Jul-11,313.02
http://statistics.data.gov.uk/id/local-authority-district/23UB,Cheltenham Borough Council,452875,507074,COMENSURA LIMITED,C-C23110-0115,Street Cleaning-Temporary Agency Staff,08-Jul-11,291.87
http://statistics.data.gov.uk/id/local-authority-district/23UB,Cheltenham Borough Council,452875,507074,COMENSURA LIMITED,C-C23110-0115,Street Cleaning-Temporary Agency Staff,08-Jul-11,313.02
http://statistics.data.gov.uk/id/local-authority-district/23UB,Cheltenham Borough Council,452875,507074,COMENSURA LIMITED,C-C23110-0115,Street Cleaning-Temporary Agency Staff,08-Jul-11,313.02
http://statistics.data.gov.uk/id/local-authority-district/23UB,Cheltenham Borough Council,452875,507074,COMENSURA LIMITED,C-C23110-0115,Street Cleaning-Temporary Agency Staff,08-Jul-11,59.22
http://statistics.data.gov.uk/id/local-authority-district/23UB,Cheltenham Borough Council,452875,507074,COMENSURA LIMITED,C-C23110-0115,Street Cleaning-Temporary Agency Staff,08-Jul-11,232.65
http://statistics.data.gov.uk/id/local-authority-district/23UB,Cheltenham Borough Council,452874,506879,COMENSURA LIMITED,C-C23110-0115,Street Cleaning-Temporary Agency Staff,08-Jul-11,313.02
http://statistics.data.gov.uk/id/local-authority-district/23UB,Cheltenham Borough Council,452874,506879,COMENSURA LIMITED,C-C23110-0115,Street Cleaning-Temporary Agency Staff,08-Jul-11,313.02
http://statistics.data.gov.uk/id/local-authority-district/23UB,Cheltenham Borough Council,452873,506722,COMENSURA LIMITED,C-C23110-0115,Street Cleaning-Temporary Agency Staff,08-Jul-11,186.12
http://statistics.data.gov.uk/id/local-authority-district/23UB,Cheltenham Borough Council,452874,506879,COMENSURA LIMITED,C-C23110-0115,Street Cleaning-Temporary Agency Staff,08-Jul-11,59.22
http://statistics.data.gov.uk/id/local-authority-district/23UB,Cheltenham Borough Council,452874,506879,COMENSURA LIMITED,C-C23125-0115,Recyl Bring Schms-Temporary Agency Staff,08-Jul-11,409.39
http://statistics.data.gov.uk/id/local-authority-district/23UB,Cheltenham Borough Council,452875,507074,COMENSURA LIMITED,C-C23125-0115,Recyl Bring Schms-Temporary Agency Staff,08-Jul-11,527.64
http://statistics.data.gov.uk/id/local-authority-district/23UB,Cheltenham Borough Council,452875,507074,COMENSURA LIMITED,C-C23130-0115,Build Cleaning-Temporary Agency Staff,08-Jul-11,69.23
http://statistics.data.gov.uk/id/local-authority-district/23UB,Cheltenham Borough Council,452873,506722,COMENSURA LIMITED,C-C23160-0115,Env Maint Div-Temporary Agency Staff,08-Jul-11,341.55
http://statistics.data.gov.uk/id/local-authority-district/23UB,Cheltenham Borough Council,452875,507074,COMENSURA LIMITED,C-C23160-0115,Env Maint Div-Temporary Agency Staff,08-Jul-11,276.92
http://statistics.data.gov.uk/id/local-authority-district/23UB,Cheltenham Borough Council,452875,507074,COMENSURA LIMITED,C-C23160-0115,Env Maint Div-Temporary Agency Staff,08-Jul-11,346.15
http://statistics.data.gov.uk/id/local-authority-district/23UB,Cheltenham Borough Council,452875,507074,COMENSURA LIMITED,C-C23160-0115,Env Maint Div-Temporary Agency Staff,08-Jul-11,341.55
http://statistics.data.gov.uk/id/local-authority-district/23UB,Cheltenham Borough Council,452875,507074,COMENSURA LIMITED,C-C23160-0115,Env Maint Div-Temporary Agency Staff,08-Jul-11,272.25
http://statistics.data.gov.uk/id/local-authority-district/23UB,Cheltenham Borough Council,452875,507074,COMENSURA LIMITED,C-C23160-0115,Env Maint Div-Temporary Agency Staff,08-Jul-11,276.92
http://statistics.data.gov.uk/id/local-authority-district/23UB,Cheltenham Borough Council,452874,506879,COMENSURA LIMITED,C-C23160-0115,Env Maint Div-Temporary Agency Staff,08-Jul-11,326.70
http://statistics.data.gov.uk/id/local-authority-district/23UB,Cheltenham Borough Council,452874,506879,COMENSURA LIMITED,C-C23160-0115,Env Maint Div-Temporary Agency Staff,08-Jul-11,341.55
http://statistics.data.gov.uk/id/local-authority-district/23UB,Cheltenham Borough Council,452874,506879,COMENSURA LIMITED,C-C23160-0115,Env Maint Div-Temporary Agency Staff,08-Jul-11,277.20
http://statistics.data.gov.uk/id/local-authority-district/23UB,Cheltenham Borough Council,452874,506879,COMENSURA LIMITED,C-C23160-0115,Env Maint Div-Temporary Agency Staff,08-Jul-11,346.50
http://statistics.data.gov.uk/id/local-authority-district/23UB,Cheltenham Borough Council,452874,506879,COMENSURA LIMITED,C-C23160-0115,Env Maint Div-Temporary Agency Staff,08-Jul-11,336.60
http://statistics.data.gov.uk/id/local-authority-district/23UB,Cheltenham Borough Council,452874,506879,COMENSURA LIMITED,C-C23160-0115,Env Maint Div-Temporary Agency Staff,08-Jul-11,277.20
http://statistics.data.gov.uk/id/local-authority-district/23UB,Cheltenham Borough Council,452874,506879,COMENSURA LIMITED,C-C23160-0115,Env Maint Div-Temporary Agency Staff,08-Jul-11,346.50
http://statistics.data.gov.uk/id/local-authority-district/23UB,Cheltenham Borough Council,452874,506879,COMENSURA LIMITED,C-C23160-0115,Env Maint Div-Temporary Agency Staff,08-Jul-11,272.25
http://statistics.data.gov.uk/id/local-authority-district/23UB,Cheltenham Borough Council,452874,506879,COMENSURA LIMITED,C-C23160-0115,Env Maint Div-Temporary Agency Staff,08-Jul-11,272.25
http://statistics.data.gov.uk/id/local-authority-district/23UB,Cheltenham Borough Council,452874,506879,COMENSURA LIMITED,C-C23160-0115,Env Maint Div-Temporary Agency Staff,08-Jul-11,138.46
http://statistics.data.gov.uk/id/local-authority-district/23UB,Cheltenham Borough Council,452874,506879,COMENSURA LIMITED,C-C23160-0115,Env Maint Div-Temporary Agency Staff,08-Jul-11,341.55
http://statistics.data.gov.uk/id/local-authority-district/23UB,Cheltenham Borough Council,452873,506722,COMENSURA LIMITED,C-C23160-0115,Env Maint Div-Temporary Agency Staff,08-Jul-11,346.50
http://statistics.data.gov.uk/id/local-authority-district/23UB,Cheltenham Borough Council,452873,506722,COMENSURA LIMITED,C-C23160-0115,Env Maint Div-Temporary Agency Staff,08-Jul-11,277.20
http://statistics.data.gov.uk/id/local-authority-district/23UB,Cheltenham Borough Council,452873,506722,COMENSURA LIMITED,C-C23160-0115,Env Maint Div-Temporary Agency Staff,08-Jul-11,331.65
http://statistics.data.gov.uk/id/local-authority-district/23UB,Cheltenham Borough Council,452873,506722,COMENSURA LIMITED,C-C23160-0115,Env Maint Div-Temporary Agency Staff,08-Jul-11,336.60
http://statistics.data.gov.uk/id/local-authority-district/23UB,Cheltenham Borough Council,452873,506722,COMENSURA LIMITED,C-C23160-0115,Env Maint Div-Temporary Agency Staff,08-Jul-11,326.70
http://statistics.data.gov.uk/id/local-authority-district/23UB,Cheltenham Borough Council,452873,506722,COMENSURA LIMITED,C-C23160-0115,Env Maint Div-Temporary Agency Staff,08-Jul-11,346.50
http://statistics.data.gov.uk/id/local-authority-district/23UB,Cheltenham Borough Council,452873,506722,COMENSURA LIMITED,C-C23180-0115,Rcycl Coltn Schms-Temporary Agency Staff,08-Jul-11,68.96
http://statistics.data.gov.uk/id/local-authority-district/23UB,Cheltenham Borough Council,452873,506722,COMENSURA LIMITED,C-C23180-0115,Rcycl Coltn Schms-Temporary Agency Staff,08-Jul-11,539.74
http://statistics.data.gov.uk/id/local-authority-district/23UB,Cheltenham Borough Council,452873,506722,COMENSURA LIMITED,C-C23180-0115,Rcycl Coltn Schms-Temporary Agency Staff,08-Jul-11,186.12
http://statistics.data.gov.uk/id/local-authority-district/23UB,Cheltenham Borough Council,452875,507074,COMENSURA LIMITED,C-C23180-0115,Rcycl Coltn Schms-Temporary Agency Staff,08-Jul-11,243.24
http://statistics.data.gov.uk/id/local-authority-district/23UB,Cheltenham Borough Council,452875,507074,COMENSURA LIMITED,C-C23180-0115,Rcycl Coltn Schms-Temporary Agency Staff,08-Jul-11,315.13
http://statistics.data.gov.uk/id/local-authority-district/23UB,Cheltenham Borough Council,452875,507074,COMENSURA LIMITED,C-C23180-0115,Rcycl Coltn Schms-Temporary Agency Staff,08-Jul-11,234.77
http://statistics.data.gov.uk/id/local-authority-district/23UB,Cheltenham Borough Council,452875,507074,COMENSURA LIMITED,C-C23180-0115,Rcycl Coltn Schms-Temporary Agency Staff,08-Jul-11,313.03
http://statistics.data.gov.uk/id/local-authority-district/23UB,Cheltenham Borough Council,452875,507074,COMENSURA LIMITED,C-C23180-0115,Rcycl Coltn Schms-Temporary Agency Staff,08-Jul-11,239.00
http://statistics.data.gov.uk/id/local-authority-district/23UB,Cheltenham Borough Council,452875,507074,COMENSURA LIMITED,C-C23180-0115,Rcycl Coltn Schms-Temporary Agency Staff,08-Jul-11,497.32
http://statistics.data.gov.uk/id/local-authority-district/23UB,Cheltenham Borough Council,452875,507074,COMENSURA LIMITED,C-C23180-0115,Rcycl Coltn Schms-Temporary Agency Staff,08-Jul-11,403.31
http://statistics.data.gov.uk/id/local-authority-district/23UB,Cheltenham Borough Council,452875,507074,COMENSURA LIMITED,C-C23180-0115,Rcycl Coltn Schms-Temporary Agency Staff,08-Jul-11,527.65
http://statistics.data.gov.uk/id/local-authority-district/23UB,Cheltenham Borough Council,452875,507074,COMENSURA LIMITED,C-C23180-0115,Rcycl Coltn Schms-Temporary Agency Staff,08-Jul-11,289.74
http://statistics.data.gov.uk/id/local-authority-district/23UB,Cheltenham Borough Council,452875,507074,COMENSURA LIMITED,C-C23180-0115,Rcycl Coltn Schms-Temporary Agency Staff,08-Jul-11,283.42
http://statistics.data.gov.uk/id/local-authority-district/23UB,Cheltenham Borough Council,452875,507074,COMENSURA LIMITED,C-C23180-0115,Rcycl Coltn Schms-Temporary Agency Staff,08-Jul-11,348.98
http://statistics.data.gov.uk/id/local-authority-district/23UB,Cheltenham Borough Council,452875,507074,COMENSURA LIMITED,C-C23180-0115,Rcycl Coltn Schms-Temporary Agency Staff,08-Jul-11,177.66
http://statistics.data.gov.uk/id/local-authority-district/23UB,Cheltenham Borough Council,452875,507074,COMENSURA LIMITED,C-C23180-0115,Rcycl Coltn Schms-Temporary Agency Staff,08-Jul-11,306.66
http://statistics.data.gov.uk/id/local-authority-district/23UB,Cheltenham Borough Council,452875,507074,COMENSURA LIMITED,C-C23180-0115,Rcycl Coltn Schms-Temporary Agency Staff,08-Jul-11,313.02
http://statistics.data.gov.uk/id/local-authority-district/23UB,Cheltenham Borough Council,452875,507074,COMENSURA LIMITED,C-C23180-0115,Rcycl Coltn Schms-Temporary Agency Staff,08-Jul-11,283.42
http://statistics.data.gov.uk/id/local-authority-district/23UB,Cheltenham Borough Council,452875,507074,COMENSURA LIMITED,C-C23180-0115,Rcycl Coltn Schms-Temporary Agency Staff,08-Jul-11,291.86
http://statistics.data.gov.uk/id/local-authority-district/23UB,Cheltenham Borough Council,452875,507074,COMENSURA LIMITED,C-C23180-0115,Rcycl Coltn Schms-Temporary Agency Staff,08-Jul-11,67.68
http://statistics.data.gov.uk/id/local-authority-district/23UB,Cheltenham Borough Council,452875,507074,COMENSURA LIMITED,C-C23180-0115,Rcycl Coltn Schms-Temporary Agency Staff,08-Jul-11,485.20
http://statistics.data.gov.uk/id/local-authority-district/23UB,Cheltenham Borough Council,452875,507074,COMENSURA LIMITED,C-C23180-0115,Rcycl Coltn Schms-Temporary Agency Staff,08-Jul-11,279.19
http://statistics.data.gov.uk/id/local-authority-district/23UB,Cheltenham Borough Council,452875,507074,COMENSURA LIMITED,C-C23180-0115,Rcycl Coltn Schms-Temporary Agency Staff,08-Jul-11,412.41
http://statistics.data.gov.uk/id/local-authority-district/23UB,Cheltenham Borough Council,452875,507074,COMENSURA LIMITED,C-C23180-0115,Rcycl Coltn Schms-Temporary Agency Staff,08-Jul-11,329.94
http://statistics.data.gov.uk/id/local-authority-district/23UB,Cheltenham Borough Council,452875,507074,COMENSURA LIMITED,C-C23180-0115,Rcycl Coltn Schms-Temporary Agency Staff,08-Jul-11,484.80
http://statistics.data.gov.uk/id/local-authority-district/23UB,Cheltenham Borough Council,452875,507074,COMENSURA LIMITED,C-C23180-0115,Rcycl Coltn Schms-Temporary Agency Staff,08-Jul-11,243.23
http://statistics.data.gov.uk/id/local-authority-district/23UB,Cheltenham Borough Council,452875,507074,COMENSURA LIMITED,C-C23180-0115,Rcycl Coltn Schms-Temporary Agency Staff,08-Jul-11,217.85
http://statistics.data.gov.uk/id/local-authority-district/23UB,Cheltenham Borough Council,452875,507074,COMENSURA LIMITED,C-C23180-0115,Rcycl Coltn Schms-Temporary Agency Staff,08-Jul-11,442.78
http://statistics.data.gov.uk/id/local-authority-district/23UB,Cheltenham Borough Council,452875,507074,COMENSURA LIMITED,C-C23180-0115,Rcycl Coltn Schms-Temporary Agency Staff,08-Jul-11,74.02
http://statistics.data.gov.uk/id/local-authority-district/23UB,Cheltenham Borough Council,452875,507074,COMENSURA LIMITED,C-C23180-0115,Rcycl Coltn Schms-Temporary Agency Staff,08-Jul-11,-92.84
http://statistics.data.gov.uk/id/local-authority-district/23UB,Cheltenham Borough Council,452875,507074,COMENSURA LIMITED,C-C23180-0115,Rcycl Coltn Schms-Temporary Agency Staff,08-Jul-11,266.49
http://statistics.data.gov.uk/id/local-authority-district/23UB,Cheltenham Borough Council,452875,507074,COMENSURA LIMITED,C-C23180-0115,Rcycl Coltn Schms-Temporary Agency Staff,08-Jul-11,50.76
http://statistics.data.gov.uk/id/local-authority-district/23UB,Cheltenham Borough Council,452874,506879,COMENSURA LIMITED,C-C23180-0115,Rcycl Coltn Schms-Temporary Agency Staff,08-Jul-11,32.79
http://statistics.data.gov.uk/id/local-authority-district/23UB,Cheltenham Borough Council,452874,506879,COMENSURA LIMITED,C-C23180-0115,Rcycl Coltn Schms-Temporary Agency Staff,08-Jul-11,298.22
http://statistics.data.gov.uk/id/local-authority-district/23UB,Cheltenham Borough Council,452874,506879,COMENSURA LIMITED,C-C23180-0115,Rcycl Coltn Schms-Temporary Agency Staff,08-Jul-11,272.83
http://statistics.data.gov.uk/id/local-authority-district/23UB,Cheltenham Borough Council,452874,506879,COMENSURA LIMITED,C-C23180-0115,Rcycl Coltn Schms-Temporary Agency Staff,08-Jul-11,118.44
http://statistics.data.gov.uk/id/local-authority-district/23UB,Cheltenham Borough Council,452874,506879,COMENSURA LIMITED,C-C23180-0115,Rcycl Coltn Schms-Temporary Agency Staff,08-Jul-11,281.29
http://statistics.data.gov.uk/id/local-authority-district/23UB,Cheltenham Borough Council,452874,506879,COMENSURA LIMITED,C-C23180-0115,Rcycl Coltn Schms-Temporary Agency Staff,08-Jul-11,262.26
http://statistics.data.gov.uk/id/local-authority-district/23UB,Cheltenham Borough Council,452874,506879,COMENSURA LIMITED,C-C23180-0115,Rcycl Coltn Schms-Temporary Agency Staff,08-Jul-11,97.04
http://statistics.data.gov.uk/id/local-authority-district/23UB,Cheltenham Borough Council,452874,506879,COMENSURA LIMITED,C-C23180-0115,Rcycl Coltn Schms-Temporary Agency Staff,08-Jul-11,241.11
http://statistics.data.gov.uk/id/local-authority-district/23UB,Cheltenham Borough Council,452874,506879,COMENSURA LIMITED,C-C23180-0115,Rcycl Coltn Schms-Temporary Agency Staff,08-Jul-11,122.67
http://statistics.data.gov.uk/id/local-authority-district/23UB,Cheltenham Borough Council,452874,506879,COMENSURA LIMITED,C-C23180-0115,Rcycl Coltn Schms-Temporary Agency Staff,08-Jul-11,122.67
http://statistics.data.gov.uk/id/local-authority-district/23UB,Cheltenham Borough Council,452873,506722,COMENSURA LIMITED,C-C23180-0115,Rcycl Coltn Schms-Temporary Agency Staff,08-Jul-11,266.48
http://statistics.data.gov.uk/id/local-authority-district/23UB,Cheltenham Borough Council,452873,506722,COMENSURA LIMITED,C-C23180-0115,Rcycl Coltn Schms-Temporary Agency Staff,08-Jul-11,194.58
http://statistics.data.gov.uk/id/local-authority-district/23UB,Cheltenham Borough Council,452873,506722,COMENSURA LIMITED,C-C23180-0115,Rcycl Coltn Schms-Temporary Agency Staff,08-Jul-11,324.65
http://statistics.data.gov.uk/id/local-authority-district/23UB,Cheltenham Borough Council,452873,506722,COMENSURA LIMITED,C-C23180-0115,Rcycl Coltn Schms-Temporary Agency Staff,08-Jul-11,323.59
http://statistics.data.gov.uk/id/local-authority-district/23UB,Cheltenham Borough Council,452873,506722,COMENSURA LIMITED,C-C23180-0115,Rcycl Coltn Schms-Temporary Agency Staff,08-Jul-11,153.85
http://statistics.data.gov.uk/id/local-authority-district/23UB,Cheltenham Borough Council,452873,506722,COMENSURA LIMITED,C-C23180-0115,Rcycl Coltn Schms-Temporary Agency Staff,08-Jul-11,277.07
http://statistics.data.gov.uk/id/local-authority-district/23UB,Cheltenham Borough Council,452873,506722,COMENSURA LIMITED,C-C23180-0115,Rcycl Coltn Schms-Temporary Agency Staff,08-Jul-11,97.04
http://statistics.data.gov.uk/id/local-authority-district/23UB,Cheltenham Borough Council,452873,506722,COMENSURA LIMITED,C-C23180-0115,Rcycl Coltn Schms-Temporary Agency Staff,08-Jul-11,200.92
http://statistics.data.gov.uk/id/local-authority-district/23UB,Cheltenham Borough Council,452873,506722,COMENSURA LIMITED,C-C23180-0115,Rcycl Coltn Schms-Temporary Agency Staff,08-Jul-11,353.20
http://statistics.data.gov.uk/id/local-authority-district/23UB,Cheltenham Borough Council,452873,506722,COMENSURA LIMITED,C-C23180-0115,Rcycl Coltn Schms-Temporary Agency Staff,08-Jul-11,310.90
http://statistics.data.gov.uk/id/local-authority-district/23UB,Cheltenham Borough Council,452873,506722,COMENSURA LIMITED,C-C23180-0115,Rcycl Coltn Schms-Temporary Agency Staff,08-Jul-11,222.08
http://statistics.data.gov.uk/id/local-authority-district/23UB,Cheltenham Borough Council,452873,506722,COMENSURA LIMITED,C-C23180-0115,Rcycl Coltn Schms-Temporary Agency Staff,08-Jul-11,276.01
http://statistics.data.gov.uk/id/local-authority-district/23UB,Cheltenham Borough Council,452873,506722,COMENSURA LIMITED,C-C23180-0115,Rcycl Coltn Schms-Temporary Agency Staff,08-Jul-11,154.33
http://statistics.data.gov.uk/id/local-authority-district/23UB,Cheltenham Borough Council,452873,506722,COMENSURA LIMITED,C-C23180-0115,Rcycl Coltn Schms-Temporary Agency Staff,08-Jul-11,306.60
http://statistics.data.gov.uk/id/local-authority-district/23UB,Cheltenham Borough Council,452873,506722,COMENSURA LIMITED,C-C23180-0115,Rcycl Coltn Schms-Temporary Agency Staff,08-Jul-11,585.31
http://statistics.data.gov.uk/id/local-authority-district/23UB,Cheltenham Borough Council,452873,506722,COMENSURA LIMITED,C-C23180-0115,Rcycl Coltn Schms-Temporary Agency Staff,08-Jul-11,218.90
http://statistics.data.gov.uk/id/local-authority-district/23UB,Cheltenham Borough Council,452873,506722,COMENSURA LIMITED,C-C23180-0115,Rcycl Coltn Schms-Temporary Agency Staff,08-Jul-11,436.72
http://statistics.data.gov.uk/id/local-authority-district/23UB,Cheltenham Borough Council,452873,506722,COMENSURA LIMITED,C-C23180-0115,Rcycl Coltn Schms-Temporary Agency Staff,08-Jul-11,376.48
http://statistics.data.gov.uk/id/local-authority-district/23UB,Cheltenham Borough Council,452873,506722,COMENSURA LIMITED,C-C23180-0115,Rcycl Coltn Schms-Temporary Agency Staff,08-Jul-11,213.62
http://statistics.data.gov.uk/id/local-authority-district/23UB,Cheltenham Borough Council,452873,506722,COMENSURA LIMITED,C-C23180-0115,Rcycl Coltn Schms-Temporary Agency Staff,08-Jul-11,92.84
http://statistics.data.gov.uk/id/local-authority-district/23UB,Cheltenham Borough Council,452873,506722,COMENSURA LIMITED,C-C23180-0115,Rcycl Coltn Schms-Temporary Agency Staff,08-Jul-11,214.67
http://statistics.data.gov.uk/id/local-authority-district/23UB,Cheltenham Borough Council,452873,506722,COMENSURA LIMITED,C-C23180-0115,Rcycl Coltn Schms-Temporary Agency Staff,08-Jul-11,357.43
http://statistics.data.gov.uk/id/local-authority-district/23UB,Cheltenham Borough Council,452873,506722,COMENSURA LIMITED,C-C23180-0115,Rcycl Coltn Schms-Temporary Agency Staff,08-Jul-11,215.72
http://statistics.data.gov.uk/id/local-authority-district/23UB,Cheltenham Borough Council,452873,506722,COMENSURA LIMITED,C-C23180-0115,Rcycl Coltn Schms-Temporary Agency Staff,08-Jul-11,211.50
http://statistics.data.gov.uk/id/local-authority-district/23UB,Cheltenham Borough Council,452874,506879,COMENSURA LIMITED,C-C23180-0115,Rcycl Coltn Schms-Temporary Agency Staff,08-Jul-11,253.80
http://statistics.data.gov.uk/id/local-authority-district/23UB,Cheltenham Borough Council,452874,506879,COMENSURA LIMITED,C-C23180-0115,Rcycl Coltn Schms-Temporary Agency Staff,08-Jul-11,198.81
http://statistics.data.gov.uk/id/local-authority-district/23UB,Cheltenham Borough Council,452874,506879,COMENSURA LIMITED,C-C23180-0115,Rcycl Coltn Schms-Temporary Agency Staff,08-Jul-11,143.82
http://statistics.data.gov.uk/id/local-authority-district/23UB,Cheltenham Borough Council,452874,506879,COMENSURA LIMITED,C-C23180-0115,Rcycl Coltn Schms-Temporary Agency Staff,08-Jul-11,260.14
http://statistics.data.gov.uk/id/local-authority-district/23UB,Cheltenham Borough Council,452874,506879,COMENSURA LIMITED,C-C23180-0115,Rcycl Coltn Schms-Temporary Agency Staff,08-Jul-11,219.96
http://statistics.data.gov.uk/id/local-authority-district/23UB,Cheltenham Borough Council,452874,506879,COMENSURA LIMITED,C-C23180-0115,Rcycl Coltn Schms-Temporary Agency Staff,08-Jul-11,255.91
http://statistics.data.gov.uk/id/local-authority-district/23UB,Cheltenham Borough Council,452874,506879,COMENSURA LIMITED,C-C23180-0115,Rcycl Coltn Schms-Temporary Agency Staff,08-Jul-11,97.29
http://statistics.data.gov.uk/id/local-authority-district/23UB,Cheltenham Borough Council,452874,506879,COMENSURA LIMITED,C-C23180-0115,Rcycl Coltn Schms-Temporary Agency Staff,08-Jul-11,485.20
http://statistics.data.gov.uk/id/local-authority-district/23UB,Cheltenham Borough Council,452874,506879,COMENSURA LIMITED,C-C23180-0115,Rcycl Coltn Schms-Temporary Agency Staff,08-Jul-11,293.97
http://statistics.data.gov.uk/id/local-authority-district/23UB,Cheltenham Borough Council,452874,506879,COMENSURA LIMITED,C-C23180-0115,Rcycl Coltn Schms-Temporary Agency Staff,08-Jul-11,291.12
http://statistics.data.gov.uk/id/local-authority-district/23UB,Cheltenham Borough Council,452874,506879,COMENSURA LIMITED,C-C23180-0115,Rcycl Coltn Schms-Temporary Agency Staff,08-Jul-11,222.07
http://statistics.data.gov.uk/id/local-authority-district/23UB,Cheltenham Borough Council,452874,506879,COMENSURA LIMITED,C-C23180-0115,Rcycl Coltn Schms-Temporary Agency Staff,08-Jul-11,221.37
http://statistics.data.gov.uk/id/local-authority-district/23UB,Cheltenham Borough Council,452874,506879,COMENSURA LIMITED,C-C23180-0115,Rcycl Coltn Schms-Temporary Agency Staff,08-Jul-11,103.10
http://statistics.data.gov.uk/id/local-authority-district/23UB,Cheltenham Borough Council,452874,506879,COMENSURA LIMITED,C-C23180-0115,Rcycl Coltn Schms-Temporary Agency Staff,08-Jul-11,317.25
http://statistics.data.gov.uk/id/local-authority-district/23UB,Cheltenham Borough Council,452874,506879,COMENSURA LIMITED,C-C23180-0115,Rcycl Coltn Schms-Temporary Agency Staff,08-Jul-11,496.92
http://statistics.data.gov.uk/id/local-authority-district/23UB,Cheltenham Borough Council,452874,506879,COMENSURA LIMITED,C-C23180-0115,Rcycl Coltn Schms-Temporary Agency Staff,08-Jul-11,232.66
http://statistics.data.gov.uk/id/local-authority-district/23UB,Cheltenham Borough Council,452874,506879,COMENSURA LIMITED,C-C23180-0115,Rcycl Coltn Schms-Temporary Agency Staff,08-Jul-11,126.90
http://statistics.data.gov.uk/id/local-authority-district/23UB,Cheltenham Borough Council,452873,506722,COMENSURA LIMITED,C-C23180-0115,Rcycl Coltn Schms-Temporary Agency Staff,08-Jul-11,118.27
http://statistics.data.gov.uk/id/local-authority-district/23UB,Cheltenham Borough Council,452873,506722,COMENSURA LIMITED,C-C23180-0115,Rcycl Coltn Schms-Temporary Agency Staff,08-Jul-11,327.76
http://statistics.data.gov.uk/id/local-authority-district/23UB,Cheltenham Borough Council,452873,506722,COMENSURA LIMITED,C-C23180-0115,Rcycl Coltn Schms-Temporary Agency Staff,08-Jul-11,122.67
http://statistics.data.gov.uk/id/local-authority-district/23UB,Cheltenham Borough Council,452873,506722,COMENSURA LIMITED,C-C23180-0115,Rcycl Coltn Schms-Temporary Agency Staff,08-Jul-11,248.47
http://statistics.data.gov.uk/id/local-authority-district/23UB,Cheltenham Borough Council,452873,506722,COMENSURA LIMITED,C-C23180-0115,Rcycl Coltn Schms-Temporary Agency Staff,08-Jul-11,575.62
http://statistics.data.gov.uk/id/local-authority-district/23UB,Cheltenham Borough Council,452873,506722,COMENSURA LIMITED,C-C23190-0115,Garden Collectn-Temporary Agency Staff,08-Jul-11,359.55
http://statistics.data.gov.uk/id/local-authority-district/23UB,Cheltenham Borough Council,452873,506722,COMENSURA LIMITED,C-C23190-0115,Garden Collectn-Temporary Agency Staff,08-Jul-11,179.73
http://statistics.data.gov.uk/id/local-authority-district/23UB,Cheltenham Borough Council,452874,506879,COMENSURA LIMITED,C-C23190-0115,Garden Collectn-Temporary Agency Staff,08-Jul-11,241.11
http://statistics.data.gov.uk/id/local-authority-district/23UB,Cheltenham Borough Council,452875,507074,COMENSURA LIMITED,C-C23190-0115,Garden Collectn-Temporary Agency Staff,08-Jul-11,207.26
http://statistics.data.gov.uk/id/local-authority-district/23UB,Cheltenham Borough Council,452875,507074,COMENSURA LIMITED,C-C23190-0115,Garden Collectn-Temporary Agency Staff,08-Jul-11,219.96
http://statistics.data.gov.uk/id/local-authority-district/23UB,Cheltenham Borough Council,452875,507074,COMENSURA LIMITED,C-C23190-0115,Garden Collectn-Temporary Agency Staff,08-Jul-11,175.55
http://statistics.data.gov.uk/id/local-authority-district/23UB,Cheltenham Borough Council,452875,507074,COMENSURA LIMITED,C-C23190-0115,Garden Collectn-Temporary Agency Staff,08-Jul-11,42.30
http://statistics.data.gov.uk/id/local-authority-district/23UB,Cheltenham Borough Council,452874,506879,COMENSURA LIMITED,C-C23190-0115,Garden Collectn-Temporary Agency Staff,08-Jul-11,139.59
http://statistics.data.gov.uk/id/local-authority-district/23UB,Cheltenham Borough Council,452874,506879,COMENSURA LIMITED,C-C23190-0115,Garden Collectn-Temporary Agency Staff,08-Jul-11,213.60
http://statistics.data.gov.uk/id/local-authority-district/23UB,Cheltenham Borough Council,452873,506722,COMENSURA LIMITED,C-C23190-0115,Garden Collectn-Temporary Agency Staff,08-Jul-11,241.11
http://statistics.data.gov.uk/id/local-authority-district/23UB,Cheltenham Borough Council,452873,506722,COMENSURA LIMITED,C-C23190-0115,Garden Collectn-Temporary Agency Staff,08-Jul-11,63.45
http://statistics.data.gov.uk/id/local-authority-district/23UB,Cheltenham Borough Council,452873,506722,COMENSURA LIMITED,C-C23190-0115,Garden Collectn-Temporary Agency Staff,08-Jul-11,50.76
http://statistics.data.gov.uk/id/local-authority-district/23UB,Cheltenham Borough Council,452873,506722,COMENSURA LIMITED,C-D13100-0115,Muni Off Blgs-Temporary Agency Staff,08-Jul-11,84.60
http://statistics.data.gov.uk/id/local-authority-district/23UB,Cheltenham Borough Council,452874,506879,COMENSURA LIMITED,C-D13100-0115,Muni Off Blgs-Temporary Agency Staff,08-Jul-11,105.75
http://statistics.data.gov.uk/id/local-authority-district/23UB,Cheltenham Borough Council,452873,506722,COMENSURA LIMITED,C-D13100-0115,Muni Off Blgs-Temporary Agency Staff,08-Jul-11,63.45
http://statistics.data.gov.uk/id/local-authority-district/23UB,Cheltenham Borough Council,452875,507074,COMENSURA LIMITED,C-D13100-0115,Muni Off Blgs-Temporary Agency Staff,08-Jul-11,105.75
http://statistics.data.gov.uk/id/local-authority-district/23UB,Cheltenham Borough Council,452873,506722,COMENSURA LIMITED,C-E36200-0115,On-St Car Prkng-Temporary Agency Staff,08-Jul-11,313.02
http://statistics.data.gov.uk/id/local-authority-district/23UB,Cheltenham Borough Council,452873,506722,COMENSURA LIMITED,C-E36200-0115,On-St Car Prkng-Temporary Agency Staff,08-Jul-11,340.45
http://statistics.data.gov.uk/id/local-authority-district/23UB,Cheltenham Borough Council,452874,506879,COMENSURA LIMITED,C-E36200-0115,On-St Car Prkng-Temporary Agency Staff,08-Jul-11,313.02
http://statistics.data.gov.uk/id/local-authority-district/23UB,Cheltenham Borough Council,452875,507074,COMENSURA LIMITED,C-E36200-0115,On-St Car Prkng-Temporary Agency Staff,08-Jul-11,340.45
http://statistics.data.gov.uk/id/local-authority-district/23UB,Cheltenham Borough Council,452875,507074,COMENSURA LIMITED,C-E36200-0115,On-St Car Prkng-Temporary Agency Staff,08-Jul-11,122.67
http://statistics.data.gov.uk/id/local-authority-district/23UB,Cheltenham Borough Council,452875,507074,COMENSURA LIMITED,C-E36200-0115,On-St Car Prkng-Temporary Agency Staff,08-Jul-11,408.20
http://statistics.data.gov.uk/id/local-authority-district/23UB,Cheltenham Borough Council,452875,507074,COMENSURA LIMITED,C-E36200-0115,On-St Car Prkng-Temporary Agency Staff,08-Jul-11,287.61
http://statistics.data.gov.uk/id/local-authority-district/23UB,Cheltenham Borough Council,452875,507074,COMENSURA LIMITED,C-E36200-0115,On-St Car Prkng-Temporary Agency Staff,08-Jul-11,114.21
http://statistics.data.gov.uk/id/local-authority-district/23UB,Cheltenham Borough Council,452874,506879,COMENSURA LIMITED,C-E36200-0115,On-St Car Prkng-Temporary Agency Staff,08-Jul-11,313.02
http://statistics.data.gov.uk/id/local-authority-district/23UB,Cheltenham Borough Council,452873,506722,COMENSURA LIMITED,C-E36200-0115,On-St Car Prkng-Temporary Agency Staff,08-Jul-11,391.27
http://statistics.data.gov.uk/id/local-authority-district/23UB,Cheltenham Borough Council,452873,506722,COMENSURA LIMITED,C-E36200-0115,On-St Car Prkng-Temporary Agency Staff,08-Jul-11,405.11
http://statistics.data.gov.uk/id/local-authority-district/23UB,Cheltenham Borough Council,452873,506722,COMENSURA LIMITED,C-E36200-0115,On-St Car Prkng-Temporary Agency Staff,08-Jul-11,340.51
http://statistics.data.gov.uk/id/local-authority-district/23UB,Cheltenham Borough Council,452875,507074,COMENSURA LIMITED,C-E36200-0115,On-St Car Prkng-Temporary Agency Staff,08-Jul-11,340.51
http://statistics.data.gov.uk/id/local-authority-district/23UB,Cheltenham Borough Council,452875,507074,COMENSURA LIMITED,C-E36200-0115,On-St Car Prkng-Temporary Agency Staff,08-Jul-11,313.02
http://statistics.data.gov.uk/id/local-authority-district/23UB,Cheltenham Borough Council,452873,506722,COMENSURA LIMITED,C-E63100-0115,Cemetery & Crem-Temporary Agency Staff,08-Jul-11,241.11
http://statistics.data.gov.uk/id/local-authority-district/23UB,Cheltenham Borough Council,452873,506722,COMENSURA LIMITED,C-E63100-0115,Cemetery & Crem-Temporary Agency Staff,08-Jul-11,249.57
http://statistics.data.gov.uk/id/local-authority-district/23UB,Cheltenham Borough Council,452873,506722,COMENSURA LIMITED,C-E63100-0115,Cemetery & Crem-Temporary Agency Staff,08-Jul-11,249.57
http://statistics.data.gov.uk/id/local-authority-district/23UB,Cheltenham Borough Council,452873,506722,COMENSURA LIMITED,C-E63100-0115,Cemetery & Crem-Temporary Agency Staff,08-Jul-11,235.84
http://statistics.data.gov.uk/id/local-authority-district/23UB,Cheltenham Borough Council,452873,506722,COMENSURA LIMITED,C-E63100-0115,Cemetery & Crem-Temporary Agency Staff,08-Jul-11,249.57
http://statistics.data.gov.uk/id/local-authority-district/23UB,Cheltenham Borough Council,452874,506879,COMENSURA LIMITED,C-E63100-0115,Cemetery & Crem-Temporary Agency Staff,08-Jul-11,190.35
http://statistics.data.gov.uk/id/local-authority-district/23UB,Cheltenham Borough Council,452874,506879,COMENSURA LIMITED,C-E63100-0115,Cemetery & Crem-Temporary Agency Staff,08-Jul-11,249.57
http://statistics.data.gov.uk/id/local-authority-district/23UB,Cheltenham Borough Council,452875,507074,COMENSURA LIMITED,C-E63100-0115,Cemetery & Crem-Temporary Agency Staff,08-Jul-11,313.02
http://statistics.data.gov.uk/id/local-authority-district/23UB,Cheltenham Borough Council,452875,507074,COMENSURA LIMITED,C-E63100-0115,Cemetery & Crem-Temporary Agency Staff,08-Jul-11,249.57
http://statistics.data.gov.uk/id/local-authority-district/23UB,Cheltenham Borough Council,452875,507074,COMENSURA LIMITED,C-E63100-0115,Cemetery & Crem-Temporary Agency Staff,08-Jul-11,313.02
http://statistics.data.gov.uk/id/local-authority-district/23UB,Cheltenham Borough Council,452875,507074,COMENSURA LIMITED,C-E63100-0115,Cemetery & Crem-Temporary Agency Staff,08-Jul-11,313.02
http://statistics.data.gov.uk/id/local-authority-district/23UB,Cheltenham Borough Council,452875,507074,COMENSURA LIMITED,C-E63100-0115,Cemetery & Crem-Temporary Agency Staff,08-Jul-11,249.57
http://statistics.data.gov.uk/id/local-authority-district/23UB,Cheltenham Borough Council,452875,507074,COMENSURA LIMITED,C-E63100-0115,Cemetery & Crem-Temporary Agency Staff,08-Jul-11,313.02
http://statistics.data.gov.uk/id/local-authority-district/23UB,Cheltenham Borough Council,452875,507074,COMENSURA LIMITED,C-E63100-0115,Cemetery & Crem-Temporary Agency Staff,08-Jul-11,313.02
http://statistics.data.gov.uk/id/local-authority-district/23UB,Cheltenham Borough Council,452875,507074,COMENSURA LIMITED,C-E63100-0115,Cemetery & Crem-Temporary Agency Staff,08-Jul-11,296.10
http://statistics.data.gov.uk/id/local-authority-district/23UB,Cheltenham Borough Council,452875,507074,COMENSURA LIMITED,C-E63100-0115,Cemetery & Crem-Temporary Agency Staff,08-Jul-11,313.02
http://statistics.data.gov.uk/id/local-authority-district/23UB,Cheltenham Borough Council,452875,507074,COMENSURA LIMITED,C-E63100-0115,Cemetery & Crem-Temporary Agency Staff,08-Jul-11,313.02
http://statistics.data.gov.uk/id/local-authority-district/23UB,Cheltenham Borough Council,452875,507074,COMENSURA LIMITED,C-E63100-0115,Cemetery & Crem-Temporary Agency Staff,08-Jul-11,257.28
http://statistics.data.gov.uk/id/local-authority-district/23UB,Cheltenham Borough Council,452875,507074,COMENSURA LIMITED,C-E63100-0115,Cemetery & Crem-Temporary Agency Staff,08-Jul-11,313.02
http://statistics.data.gov.uk/id/local-authority-district/23UB,Cheltenham Borough Council,452875,507074,COMENSURA LIMITED,C-E63100-0115,Cemetery & Crem-Temporary Agency Staff,08-Jul-11,313.02
http://statistics.data.gov.uk/id/local-authority-district/23UB,Cheltenham Borough Council,452875,507074,COMENSURA LIMITED,C-E63100-0115,Cemetery & Crem-Temporary Agency Staff,08-Jul-11,313.02
http://statistics.data.gov.uk/id/local-authority-district/23UB,Cheltenham Borough Council,452875,507074,COMENSURA LIMITED,C-E63100-0115,Cemetery & Crem-Temporary Agency Staff,08-Jul-11,300.33
http://statistics.data.gov.uk/id/local-authority-district/23UB,Cheltenham Borough Council,452875,507074,COMENSURA LIMITED,C-E63100-0115,Cemetery & Crem-Temporary Agency Staff,08-Jul-11,214.40
http://statistics.data.gov.uk/id/local-authority-district/23UB,Cheltenham Borough Council,452874,506879,COMENSURA LIMITED,C-E63100-0115,Cemetery & Crem-Temporary Agency Staff,08-Jul-11,245.34
http://statistics.data.gov.uk/id/local-authority-district/23UB,Cheltenham Borough Council,452873,506722,COMENSURA LIMITED,C-E63100-0115,Cemetery & Crem-Temporary Agency Staff,08-Jul-11,241.11
http://statistics.data.gov.uk/id/local-authority-district/23UB,Cheltenham Borough Council,452873,506722,COMENSURA LIMITED,C-E72500-0115,Built Env Div-Temporary Agency Staff,08-Jul-11,50.76
http://statistics.data.gov.uk/id/local-authority-district/23UB,Cheltenham Borough Council,452875,507074,COMENSURA LIMITED,C-E72500-0115,Built Env Div-Temporary Agency Staff,08-Jul-11,38.07
http://statistics.data.gov.uk/id/local-authority-district/23UB,Cheltenham Borough Council,453101,507286,COMENSURA LIMITED,C-C22100-0115,Green Env Div-Temporary Agency Staff,13-Jul-11,346.88
http://statistics.data.gov.uk/id/local-authority-district/23UB,Cheltenham Borough Council,453101,507286,COMENSURA LIMITED,C-C22100-0115,Green Env Div-Temporary Agency Staff,13-Jul-11,346.88
http://statistics.data.gov.uk/id/local-authority-district/23UB,Cheltenham Borough Council,453101,507286,COMENSURA LIMITED,C-C22100-0115,Green Env Div-Temporary Agency Staff,13-Jul-11,346.88
http://statistics.data.gov.uk/id/local-authority-district/23UB,Cheltenham Borough Council,453101,507286,COMENSURA LIMITED,C-C22100-0115,Green Env Div-Temporary Agency Staff,13-Jul-11,346.88
http://statistics.data.gov.uk/id/local-authority-district/23UB,Cheltenham Borough Council,453101,507286,COMENSURA LIMITED,C-C22100-0115,Green Env Div-Temporary Agency Staff,13-Jul-11,346.88
http://statistics.data.gov.uk/id/local-authority-district/23UB,Cheltenham Borough Council,453101,507286,COMENSURA LIMITED,C-C22100-0115,Green Env Div-Temporary Agency Staff,13-Jul-11,346.88
http://statistics.data.gov.uk/id/local-authority-district/23UB,Cheltenham Borough Council,453101,507286,COMENSURA LIMITED,C-C22105-0115,Hsg Forecourts-Temporary Agency Staff,13-Jul-11,346.86
http://statistics.data.gov.uk/id/local-authority-district/23UB,Cheltenham Borough Council,453101,507286,COMENSURA LIMITED,C-C22110-0115,Parks & Gardens-Temporary Agency Staff,13-Jul-11,346.86
http://statistics.data.gov.uk/id/local-authority-district/23UB,Cheltenham Borough Council,453101,507286,COMENSURA LIMITED,C-C22120-0115,Spts/Open Space-Temporary Agency Staff,13-Jul-11,346.86
http://statistics.data.gov.uk/id/local-authority-district/23UB,Cheltenham Borough Council,453101,507286,COMENSURA LIMITED,C-C22120-0115,Spts/Open Space-Temporary Agency Staff,13-Jul-11,346.86
http://statistics.data.gov.uk/id/local-authority-district/23UB,Cheltenham Borough Council,453101,507286,COMENSURA LIMITED,C-C23100-0115,Refuse Collection-Temporary Agency Staff,13-Jul-11,296.10
http://statistics.data.gov.uk/id/local-authority-district/23UB,Cheltenham Borough Council,453101,507286,COMENSURA LIMITED,C-C23100-0115,Refuse Collection-Temporary Agency Staff,13-Jul-11,213.61
http://statistics.data.gov.uk/id/local-authority-district/23UB,Cheltenham Borough Council,453101,507286,COMENSURA LIMITED,C-C23100-0115,Refuse Collection-Temporary Agency Staff,13-Jul-11,291.87
http://statistics.data.gov.uk/id/local-authority-district/23UB,Cheltenham Borough Council,453101,507286,COMENSURA LIMITED,C-C23100-0115,Refuse Collection-Temporary Agency Staff,13-Jul-11,317.25
http://statistics.data.gov.uk/id/local-authority-district/23UB,Cheltenham Borough Council,453101,507286,COMENSURA LIMITED,C-C23100-0115,Refuse Collection-Temporary Agency Staff,13-Jul-11,173.43
http://statistics.data.gov.uk/id/local-authority-district/23UB,Cheltenham Borough Council,453101,507286,COMENSURA LIMITED,C-C23100-0115,Refuse Collection-Temporary Agency Staff,13-Jul-11,97.04
http://statistics.data.gov.uk/id/local-authority-district/23UB,Cheltenham Borough Council,453101,507286,COMENSURA LIMITED,C-C23100-0115,Refuse Collection-Temporary Agency Staff,13-Jul-11,313.02
http://statistics.data.gov.uk/id/local-authority-district/23UB,Cheltenham Borough Council,453101,507286,COMENSURA LIMITED,C-C23100-0115,Refuse Collection-Temporary Agency Staff,13-Jul-11,304.56
http://statistics.data.gov.uk/id/local-authority-district/23UB,Cheltenham Borough Council,453101,507286,COMENSURA LIMITED,C-C23100-0115,Refuse Collection-Temporary Agency Staff,13-Jul-11,160.74
http://statistics.data.gov.uk/id/local-authority-district/23UB,Cheltenham Borough Council,453101,507286,COMENSURA LIMITED,C-C23100-0115,Refuse Collection-Temporary Agency Staff,13-Jul-11,160.75
http://statistics.data.gov.uk/id/local-authority-district/23UB,Cheltenham Borough Council,453101,507286,COMENSURA LIMITED,C-C23100-0115,Refuse Collection-Temporary Agency Staff,13-Jul-11,289.75
http://statistics.data.gov.uk/id/local-authority-district/23UB,Cheltenham Borough Council,453101,507286,COMENSURA LIMITED,C-C23100-0115,Refuse Collection-Temporary Agency Staff,13-Jul-11,67.68
http://statistics.data.gov.uk/id/local-authority-district/23UB,Cheltenham Borough Council,453101,507286,COMENSURA LIMITED,C-C23100-0115,Refuse Collection-Temporary Agency Staff,13-Jul-11,368.01
http://statistics.data.gov.uk/id/local-authority-district/23UB,Cheltenham Borough Council,453101,507286,COMENSURA LIMITED,C-C23100-0115,Refuse Collection-Temporary Agency Staff,13-Jul-11,313.02
http://statistics.data.gov.uk/id/local-authority-district/23UB,Cheltenham Borough Council,453101,507286,COMENSURA LIMITED,C-C23100-0115,Refuse Collection-Temporary Agency Staff,13-Jul-11,368.01
http://statistics.data.gov.uk/id/local-authority-district/23UB,Cheltenham Borough Council,453101,507286,COMENSURA LIMITED,C-C23100-0115,Refuse Collection-Temporary Agency Staff,13-Jul-11,346.86
http://statistics.data.gov.uk/id/local-authority-district/23UB,Cheltenham Borough Council,453101,507286,COMENSURA LIMITED,C-C23110-0115,Street Cleaning-Temporary Agency Staff,13-Jul-11,249.57
http://statistics.data.gov.uk/id/local-authority-district/23UB,Cheltenham Borough Council,453101,507286,COMENSURA LIMITED,C-C23110-0115,Street Cleaning-Temporary Agency Staff,13-Jul-11,313.02
http://statistics.data.gov.uk/id/local-authority-district/23UB,Cheltenham Borough Council,453101,507286,COMENSURA LIMITED,C-C23110-0115,Street Cleaning-Temporary Agency Staff,13-Jul-11,249.57
http://statistics.data.gov.uk/id/local-authority-district/23UB,Cheltenham Borough Council,453101,507286,COMENSURA LIMITED,C-C23110-0115,Street Cleaning-Temporary Agency Staff,13-Jul-11,266.49
http://statistics.data.gov.uk/id/local-authority-district/23UB,Cheltenham Borough Council,453101,507286,COMENSURA LIMITED,C-C23110-0115,Street Cleaning-Temporary Agency Staff,13-Jul-11,203.04
http://statistics.data.gov.uk/id/local-authority-district/23UB,Cheltenham Borough Council,453101,507286,COMENSURA LIMITED,C-C23160-0115,Env Maint Div-Temporary Agency Staff,13-Jul-11,341.55
http://statistics.data.gov.uk/id/local-authority-district/23UB,Cheltenham Borough Council,453101,507286,COMENSURA LIMITED,C-C23160-0115,Env Maint Div-Temporary Agency Staff,13-Jul-11,341.55
http://statistics.data.gov.uk/id/local-authority-district/23UB,Cheltenham Borough Council,453101,507286,COMENSURA LIMITED,C-C23160-0115,Env Maint Div-Temporary Agency Staff,13-Jul-11,277.20
http://statistics.data.gov.uk/id/local-authority-district/23UB,Cheltenham Borough Council,453101,507286,COMENSURA LIMITED,C-C23180-0115,Rcycl Coltn Schms-Temporary Agency Staff,13-Jul-11,206.21
http://statistics.data.gov.uk/id/local-authority-district/23UB,Cheltenham Borough Council,453101,507286,COMENSURA LIMITED,C-C23180-0115,Rcycl Coltn Schms-Temporary Agency Staff,13-Jul-11,213.62
http://statistics.data.gov.uk/id/local-authority-district/23UB,Cheltenham Borough Council,453101,507286,COMENSURA LIMITED,C-C23180-0115,Rcycl Coltn Schms-Temporary Agency Staff,13-Jul-11,124.78
http://statistics.data.gov.uk/id/local-authority-district/23UB,Cheltenham Borough Council,453101,507286,COMENSURA LIMITED,C-C23180-0115,Rcycl Coltn Schms-Temporary Agency Staff,13-Jul-11,213.62
http://statistics.data.gov.uk/id/local-authority-district/23UB,Cheltenham Borough Council,453101,507286,COMENSURA LIMITED,C-C23180-0115,Rcycl Coltn Schms-Temporary Agency Staff,13-Jul-11,228.42
http://statistics.data.gov.uk/id/local-authority-district/23UB,Cheltenham Borough Council,453101,507286,COMENSURA LIMITED,C-C23180-0115,Rcycl Coltn Schms-Temporary Agency Staff,13-Jul-11,211.50
http://statistics.data.gov.uk/id/local-authority-district/23UB,Cheltenham Borough Council,453101,507286,COMENSURA LIMITED,C-C23180-0115,Rcycl Coltn Schms-Temporary Agency Staff,13-Jul-11,181.89
http://statistics.data.gov.uk/id/local-authority-district/23UB,Cheltenham Borough Council,453101,507286,COMENSURA LIMITED,C-C23180-0115,Rcycl Coltn Schms-Temporary Agency Staff,13-Jul-11,503.39
http://statistics.data.gov.uk/id/local-authority-district/23UB,Cheltenham Borough Council,453101,507286,COMENSURA LIMITED,C-C23180-0115,Rcycl Coltn Schms-Temporary Agency Staff,13-Jul-11,52.88
http://statistics.data.gov.uk/id/local-authority-district/23UB,Cheltenham Borough Council,453101,507286,COMENSURA LIMITED,C-C23180-0115,Rcycl Coltn Schms-Temporary Agency Staff,13-Jul-11,509.46
http://statistics.data.gov.uk/id/local-authority-district/23UB,Cheltenham Borough Council,453101,507286,COMENSURA LIMITED,C-C23180-0115,Rcycl Coltn Schms-Temporary Agency Staff,13-Jul-11,291.88
http://statistics.data.gov.uk/id/local-authority-district/23UB,Cheltenham Borough Council,453101,507286,COMENSURA LIMITED,C-C23180-0115,Rcycl Coltn Schms-Temporary Agency Staff,13-Jul-11,291.87
http://statistics.data.gov.uk/id/local-authority-district/23UB,Cheltenham Borough Council,453101,507286,COMENSURA LIMITED,C-C23180-0115,Rcycl Coltn Schms-Temporary Agency Staff,13-Jul-11,490.86
http://statistics.data.gov.uk/id/local-authority-district/23UB,Cheltenham Borough Council,453101,507286,COMENSURA LIMITED,C-C23180-0115,Rcycl Coltn Schms-Temporary Agency Staff,13-Jul-11,86.72
http://statistics.data.gov.uk/id/local-authority-district/23UB,Cheltenham Borough Council,453101,507286,COMENSURA LIMITED,C-C23180-0115,Rcycl Coltn Schms-Temporary Agency Staff,13-Jul-11,97.04
http://statistics.data.gov.uk/id/local-authority-district/23UB,Cheltenham Borough Council,453101,507286,COMENSURA LIMITED,C-C23180-0115,Rcycl Coltn Schms-Temporary Agency Staff,13-Jul-11,287.64
http://statistics.data.gov.uk/id/local-authority-district/23UB,Cheltenham Borough Council,453101,507286,COMENSURA LIMITED,C-C23180-0115,Rcycl Coltn Schms-Temporary Agency Staff,13-Jul-11,63.45
http://statistics.data.gov.uk/id/local-authority-district/23UB,Cheltenham Borough Council,453101,507286,COMENSURA LIMITED,C-C23180-0115,Rcycl Coltn Schms-Temporary Agency Staff,13-Jul-11,500.36
http://statistics.data.gov.uk/id/local-authority-district/23UB,Cheltenham Borough Council,453101,507286,COMENSURA LIMITED,C-C23180-0115,Rcycl Coltn Schms-Temporary Agency Staff,13-Jul-11,103.10
http://statistics.data.gov.uk/id/local-authority-district/23UB,Cheltenham Borough Council,453101,507286,COMENSURA LIMITED,C-C23180-0115,Rcycl Coltn Schms-Temporary Agency Staff,13-Jul-11,114.21
http://statistics.data.gov.uk/id/local-authority-district/23UB,Cheltenham Borough Council,453101,507286,COMENSURA LIMITED,C-C23180-0115,Rcycl Coltn Schms-Temporary Agency Staff,13-Jul-11,270.73
http://statistics.data.gov.uk/id/local-authority-district/23UB,Cheltenham Borough Council,453101,507286,COMENSURA LIMITED,C-C23180-0115,Rcycl Coltn Schms-Temporary Agency Staff,13-Jul-11,281.30
http://statistics.data.gov.uk/id/local-authority-district/23UB,Cheltenham Borough Council,453101,507286,COMENSURA LIMITED,C-C23180-0115,Rcycl Coltn Schms-Temporary Agency Staff,13-Jul-11,215.73
http://statistics.data.gov.uk/id/local-authority-district/23UB,Cheltenham Borough Council,453101,507286,COMENSURA LIMITED,C-C23180-0115,Rcycl Coltn Schms-Temporary Agency Staff,13-Jul-11,46.53
http://statistics.data.gov.uk/id/local-authority-district/23UB,Cheltenham Borough Council,453101,507286,COMENSURA LIMITED,C-C23180-0115,Rcycl Coltn Schms-Temporary Agency Staff,13-Jul-11,97.04
http://statistics.data.gov.uk/id/local-authority-district/23UB,Cheltenham Borough Council,453101,507286,COMENSURA LIMITED,C-C23180-0115,Rcycl Coltn Schms-Temporary Agency Staff,13-Jul-11,283.41
http://statistics.data.gov.uk/id/local-authority-district/23UB,Cheltenham Borough Council,453101,507286,COMENSURA LIMITED,C-C23180-0115,Rcycl Coltn Schms-Temporary Agency Staff,13-Jul-11,67.68
http://statistics.data.gov.uk/id/local-authority-district/23UB,Cheltenham Borough Council,453101,507286,COMENSURA LIMITED,C-C23180-0115,Rcycl Coltn Schms-Temporary Agency Staff,13-Jul-11,296.10
http://statistics.data.gov.uk/id/local-authority-district/23UB,Cheltenham Borough Council,453101,507286,COMENSURA LIMITED,C-C23180-0115,Rcycl Coltn Schms-Temporary Agency Staff,13-Jul-11,84.88
http://statistics.data.gov.uk/id/local-authority-district/23UB,Cheltenham Borough Council,453101,507286,COMENSURA LIMITED,C-C23190-0115,Garden Collectn-Temporary Agency Staff,13-Jul-11,-8.46
http://statistics.data.gov.uk/id/local-authority-district/23UB,Cheltenham Borough Council,453101,507286,COMENSURA LIMITED,C-C23190-0115,Garden Collectn-Temporary Agency Staff,13-Jul-11,217.85
http://statistics.data.gov.uk/id/local-authority-district/23UB,Cheltenham Borough Council,453101,507286,COMENSURA LIMITED,C-C23190-0115,Garden Collectn-Temporary Agency Staff,13-Jul-11,152.28
http://statistics.data.gov.uk/id/local-authority-district/23UB,Cheltenham Borough Council,453101,507286,COMENSURA LIMITED,C-C23190-0115,Garden Collectn-Temporary Agency Staff,13-Jul-11,46.53
http://statistics.data.gov.uk/id/local-authority-district/23UB,Cheltenham Borough Council,453101,507286,COMENSURA LIMITED,C-C23190-0115,Garden Collectn-Temporary Agency Staff,13-Jul-11,205.15
http://statistics.data.gov.uk/id/local-authority-district/23UB,Cheltenham Borough Council,453101,507286,COMENSURA LIMITED,C-D12500-0115,Property Servs-Temporary Agency Staff,13-Jul-11,105.75
http://statistics.data.gov.uk/id/local-authority-district/23UB,Cheltenham Borough Council,453101,507286,COMENSURA LIMITED,C-E36200-0115,On-St Car Prkng-Temporary Agency Staff,13-Jul-11,283.41
http://statistics.data.gov.uk/id/local-authority-district/23UB,Cheltenham Borough Council,453101,507286,COMENSURA LIMITED,C-E63100-0115,Cemetery & Crem-Temporary Agency Staff,13-Jul-11,249.57
http://statistics.data.gov.uk/id/local-authority-district/23UB,Cheltenham Borough Council,453101,507286,COMENSURA LIMITED,C-E63100-0115,Cemetery & Crem-Temporary Agency Staff,13-Jul-11,313.02
http://statistics.data.gov.uk/id/local-authority-district/23UB,Cheltenham Borough Council,453101,507286,COMENSURA LIMITED,C-E63100-0115,Cemetery & Crem-Temporary Agency Staff,13-Jul-11,296.10
http://statistics.data.gov.uk/id/local-authority-district/23UB,Cheltenham Borough Council,453101,507286,COMENSURA LIMITED,C-E63100-0115,Cemetery & Crem-Temporary Agency Staff,13-Jul-11,313.02
http://statistics.data.gov.uk/id/local-authority-district/23UB,Cheltenham Borough Council,453101,507286,COMENSURA LIMITED,C-E63100-0115,Cemetery & Crem-Temporary Agency Staff,13-Jul-11,225.12
http://statistics.data.gov.uk/id/local-authority-district/23UB,Cheltenham Borough Council,453101,507286,COMENSURA LIMITED,C-E63100-0115,Cemetery & Crem-Temporary Agency Staff,13-Jul-11,313.02
http://statistics.data.gov.uk/id/local-authority-district/23UB,Cheltenham Borough Council,453101,507286,COMENSURA LIMITED,C-E63100-0115,Cemetery & Crem-Temporary Agency Staff,13-Jul-11,313.02
http://statistics.data.gov.uk/id/local-authority-district/23UB,Cheltenham Borough Council,453101,507286,COMENSURA LIMITED,C-E63100-0115,Cemetery & Crem-Temporary Agency Staff,13-Jul-11,300.33
http://statistics.data.gov.uk/id/local-authority-district/23UB,Cheltenham Borough Council,453636,2461,COMBUSTION SOLUTIONS,C-E63100-1215,Cemetery & Crem-Cremator servicing & rep,20-Jul-11,774.00
http://statistics.data.gov.uk/id/local-authority-district/23UB,Cheltenham Borough Council,453637,2470,COMBUSTION SOLUTIONS,C-E63100-1215,Cemetery & Crem-Cremator servicing & rep,20-Jul-11,688.00
http://statistics.data.gov.uk/id/local-authority-district/23UB,Cheltenham Borough Council,454353,8233375/8244771,THE CONSORTIUM,C-L16100-3104,Holiday Rec-Sports & play equipment,27-Jul-11,10.40
http://statistics.data.gov.uk/id/local-authority-district/23UB,Cheltenham Borough Council,454353,8233375/8244771,THE CONSORTIUM,C-L16100-3104,Holiday Rec-Sports & play equipment,27-Jul-11,43.56
http://statistics.data.gov.uk/id/local-authority-district/23UB,Cheltenham Borough Council,454353,8233375/8244771,THE CONSORTIUM,C-L16100-3104,Holiday Rec-Sports & play equipment,27-Jul-11,129.99
http://statistics.data.gov.uk/id/local-authority-district/23UB,Cheltenham Borough Council,454353,8233375/8244771,THE CONSORTIUM,C-L16100-3104,Holiday Rec-Sports & play equipment,27-Jul-11,49.99
http://statistics.data.gov.uk/id/local-authority-district/23UB,Cheltenham Borough Council,454353,8233375/8244771,THE CONSORTIUM,C-L16100-3104,Holiday Rec-Sports & play equipment,27-Jul-11,129.90
http://statistics.data.gov.uk/id/local-authority-district/23UB,Cheltenham Borough Council,454353,8233375/8244771,THE CONSORTIUM,C-L16100-3104,Holiday Rec-Sports & play equipment,27-Jul-11,49.90
http://statistics.data.gov.uk/id/local-authority-district/23UB,Cheltenham Borough Council,454353,8233375/8244771,THE CONSORTIUM,C-L16100-3104,Holiday Rec-Sports & play equipment,27-Jul-11,4.58
http://statistics.data.gov.uk/id/local-authority-district/23UB,Cheltenham Borough Council,454353,8233375/8244771,THE CONSORTIUM,C-L16100-3104,Holiday Rec-Sports & play equipment,27-Jul-11,4.98
http://statistics.data.gov.uk/id/local-authority-district/23UB,Cheltenham Borough Council,454353,8233375/8244771,THE CONSORTIUM,C-L16100-3104,Holiday Rec-Sports & play equipment,27-Jul-11,11.97
http://statistics.data.gov.uk/id/local-authority-district/23UB,Cheltenham Borough Council,454353,8233375/8244771,THE CONSORTIUM,C-L16100-3104,Holiday Rec-Sports & play equipment,27-Jul-11,3.15
http://statistics.data.gov.uk/id/local-authority-district/23UB,Cheltenham Borough Council,454353,8233375/8244771,THE CONSORTIUM,C-L16100-3104,Holiday Rec-Sports & play equipment,27-Jul-11,2.99
http://statistics.data.gov.uk/id/local-authority-district/23UB,Cheltenham Borough Council,454353,8233375/8244771,THE CONSORTIUM,C-L16100-3104,Holiday Rec-Sports & play equipment,27-Jul-11,25.52
http://statistics.data.gov.uk/id/local-authority-district/23UB,Cheltenham Borough Council,454353,8233375/8244771,THE CONSORTIUM,C-L16100-3104,Holiday Rec-Sports & play equipment,27-Jul-11,29.94
http://statistics.data.gov.uk/id/local-authority-district/23UB,Cheltenham Borough Council,454353,8233375/8244771,THE CONSORTIUM,C-L16100-3104,Holiday Rec-Sports & play equipment,27-Jul-11,46.98
http://statistics.data.gov.uk/id/local-authority-district/23UB,Cheltenham Borough Council,454353,8233375/8244771,THE CONSORTIUM,C-L16100-3104,Holiday Rec-Sports & play equipment,27-Jul-11,10.98
http://statistics.data.gov.uk/id/local-authority-district/23UB,Cheltenham Borough Council,454353,8233375/8244771,THE CONSORTIUM,C-L16100-3104,Holiday Rec-Sports & play equipment,27-Jul-11,12.30
http://statistics.data.gov.uk/id/local-authority-district/23UB,Cheltenham Borough Council,454353,8233375/8244771,THE CONSORTIUM,C-L16100-3104,Holiday Rec-Sports & play equipment,27-Jul-11,12.30
http://statistics.data.gov.uk/id/local-authority-district/23UB,Cheltenham Borough Council,454353,8233375/8244771,THE CONSORTIUM,C-L16100-3104,Holiday Rec-Sports & play equipment,27-Jul-11,41.96
http://statistics.data.gov.uk/id/local-authority-district/23UB,Cheltenham Borough Council,454353,8233375/8244771,THE CONSORTIUM,C-L16100-3104,Holiday Rec-Sports & play equipment,27-Jul-11,32.99
http://statistics.data.gov.uk/id/local-authority-district/23UB,Cheltenham Borough Council,454353,8233375/8244771,THE CONSORTIUM,C-L16100-3104,Holiday Rec-Sports & play equipment,27-Jul-11,8.60
http://statistics.data.gov.uk/id/local-authority-district/23UB,Cheltenham Borough Council,454353,8233375/8244771,THE CONSORTIUM,C-L16100-3104,Holiday Rec-Sports & play equipment,27-Jul-11,45.52
http://statistics.data.gov.uk/id/local-authority-district/23UB,Cheltenham Borough Council,454353,8233375/8244771,THE CONSORTIUM,C-L16100-3104,Holiday Rec-Sports & play equipment,27-Jul-11,6.78
http://statistics.data.gov.uk/id/local-authority-district/23UB,Cheltenham Borough Council,454353,8233375/8244771,THE CONSORTIUM,C-L16100-3104,Holiday Rec-Sports & play equipment,27-Jul-11,79.60
http://statistics.data.gov.uk/id/local-authority-district/23UB,Cheltenham Borough Council,454353,8233375/8244771,THE CONSORTIUM,C-L16100-3104,Holiday Rec-Sports & play equipment,27-Jul-11,1.96
http://statistics.data.gov.uk/id/local-authority-district/23UB,Cheltenham Borough Council,454353,8233375/8244771,THE CONSORTIUM,C-L16100-3104,Holiday Rec-Sports & play equipment,27-Jul-11,8.75
http://statistics.data.gov.uk/id/local-authority-district/23UB,Cheltenham Borough Council,454353,8233375/8244771,THE CONSORTIUM,C-L16100-3104,Holiday Rec-Sports & play equipment,27-Jul-11,35.40
http://statistics.data.gov.uk/id/local-authority-district/23UB,Cheltenham Borough Council,454328,536524,CONTRACT EVENT SOLUTIONS,C-D38100-3196,C.Dev.Strategy-Fiesta in the park,27-Jul-11,"1,500.00"
http://statistics.data.gov.uk/id/local-authority-district/23UB,Cheltenham Borough Council,452503,015142,CORY ENVIRONMENTAL LTD,C-C23100-3581,Refuse Collctn-Tipping charges,01-Jul-11,"5,253.82"
http://statistics.data.gov.uk/id/local-authority-district/23UB,Cheltenham Borough Council,452899,015202,CORY ENVIRONMENTAL LTD,C-C23100-3581,Refuse Collctn-Tipping charges,08-Jul-11,"5,676.33"
http://statistics.data.gov.uk/id/local-authority-district/23UB,Cheltenham Borough Council,453628,015265,CORY ENVIRONMENTAL LTD,C-C23100-3581,Refuse Collctn-Tipping charges,20-Jul-11,"3,944.54"
http://statistics.data.gov.uk/id/local-authority-district/23UB,Cheltenham Borough Council,454071,015320,CORY ENVIRONMENTAL LTD,C-C23100-3581,Refuse Collctn-Tipping charges,27-Jul-11,"6,955.55"
http://statistics.data.gov.uk/id/local-authority-district/23UB,Cheltenham Borough Council,452645,20340,COTSWOLD DRAIN SERVICES LTD,C-E22100-1129,Chel River&W/C-CBC Riparian Ownership,01-Jul-11,830.00
http://statistics.data.gov.uk/id/local-authority-district/23UB,Cheltenham Borough Council,453094,1021CFS Q1 ADM,COUNTY COMMUNITY PROJECTS,C-H22300-3877,Housing Grants-Grants - One-Stop-Shop,13-Jul-11,"1,675.69"
http://statistics.data.gov.uk/id/local-authority-district/23UB,Cheltenham Borough Council,453095,1020 CFS Q1 REN,COUNTY COMMUNITY PROJECTS,C-H22300-3877,Housing Grants-Grants - One-Stop-Shop,13-Jul-11,"4,878.18"
http://statistics.data.gov.uk/id/local-authority-district/23UB,Cheltenham Borough Council,452662,SETTLEMENT,MRS R CREED T/A HOWLERS COMEDY CLUB,C-N13125-9205,ASH Ledger-Town Hall Invoices Paid,01-Jul-11,-297.39
http://statistics.data.gov.uk/id/local-authority-district/23UB,Cheltenham Borough Council,452662,SETTLEMENT,MRS R CREED T/A HOWLERS COMEDY CLUB,C-Z12210-9138,Box Off A/C-TH Hirers Tkt Pd out,01-Jul-11,"1,130.00"
http://statistics.data.gov.uk/id/local-authority-district/23UB,Cheltenham Borough Council,454615,SETTLEMENT,MRS R CREED T/A HOWLERS COMEDY CLUB,C-N13125-9205,ASH Ledger-Town Hall Invoices Paid,29-Jul-11,-398.36
http://statistics.data.gov.uk/id/local-authority-district/23UB,Cheltenham Borough Council,454615,SETTLEMENT,MRS R CREED T/A HOWLERS COMEDY CLUB,C-Z12210-9138,Box Off A/C-TH Hirers Tkt Pd out,29-Jul-11,"1,859.00"
http://statistics.data.gov.uk/id/local-authority-district/23UB,Cheltenham Borough Council,454057,45457-1BR,CURTINS CONSULTING,C-HC4867-C302,Misc Works-Building Contractor,22-Jul-11,"1,986.00"
http://statistics.data.gov.uk/id/local-authority-district/23UB,Cheltenham Borough Council,453148,21106107,DATA TRACK TECHNOLOGY PLC,C-D11820-3501,IT Infrastructu-Hire of outside services,13-Jul-11,575.00
http://statistics.data.gov.uk/id/local-authority-district/23UB,Cheltenham Borough Council,453109,1107014729,DATA TRACK TECHNOLOGY PLC,C-D11820-3665,IT Infrastructu-Maintenance/Repairs,13-Jul-11,"1,519.41"
http://statistics.data.gov.uk/id/local-authority-district/23UB,Cheltenham Borough Council,453097,39300,DELAWARE COMMUNICATIONS PLC,C-E61500-3103,CCTV/TC Safety-Equipment repairs & maint,13-Jul-11,"1,419.17"
http://statistics.data.gov.uk/id/local-authority-district/23UB,Cheltenham Borough Council,454252,39389,DELAWARE COMMUNICATIONS PLC,C-E61500-3103,CCTV/TC Safety-Equipment repairs & maint,27-Jul-11,"1,419.17"
http://statistics.data.gov.uk/id/local-authority-district/23UB,Cheltenham Borough Council,453242,N 021.11.18/LNO1,DEWHURST MACFARLANE & PARTNERS,C-LC4006-C702,AG&M Dev Scheme-CBC - Engineers,13-Jul-11,"2,200.00"
http://statistics.data.gov.uk/id/local-authority-district/23UB,Cheltenham Borough Council,453680,901025491,DORMA UK LTD,C-L11500-3167,Rec Facilities-Maintenance Agreements,20-Jul-11,543.89
http://statistics.data.gov.uk/id/local-authority-district/23UB,Cheltenham Borough Council,454614,20 PENNINE ROA,DRINKWATER,C-HC7440-C801,DFG.96.Act-Grants,29-Jul-11,900.00
http://statistics.data.gov.uk/id/local-authority-district/23UB,Cheltenham Borough Council,452540,414421,DTZ,C-E21100-1106,Car Prks-Off St-Reg Arcade-fixed mnt cst,01-Jul-11,"10,884.73"
http://statistics.data.gov.uk/id/local-authority-district/23UB,Cheltenham Borough Council,452804,REG FEE,EHRB,C-E71150-3503,Public Protn Div-Fees,06-Jul-11,550.00
http://statistics.data.gov.uk/id/local-authority-district/23UB,Cheltenham Borough Council,452554,201100000347/971,C B RICHARD ELLIS,C-D13550-1501,Area Off -E.Hse-Rents,01-Jul-11,651.26
http://statistics.data.gov.uk/id/local-authority-district/23UB,Cheltenham Borough Council,452556,004994,MISS DAWN EMBREY,C-H22400-5204,Homelessness-Provision of accommo(B&B),01-Jul-11,983.20
http://statistics.data.gov.uk/id/local-authority-district/23UB,Cheltenham Borough Council,454094,001356,MISS DAWN EMBREY,C-H22400-5204,Homelessness-Provision of accommo(B&B),27-Jul-11,625.75
http://statistics.data.gov.uk/id/local-authority-district/23UB,Cheltenham Borough Council,454460,001376,MISS DAWN EMBREY,C-H22400-5204,Homelessness-Provision of accommo(B&B),29-Jul-11,876.05
http://statistics.data.gov.uk/id/local-authority-district/23UB,Cheltenham Borough Council,453957,9012,EMMDEE BUILDING SERVICES,C-C22120-1807,Sports & Open S-RM-Vandalism,22-Jul-11,16.87
http://statistics.data.gov.uk/id/local-authority-district/23UB,Cheltenham Borough Council,453960,9110,EMMDEE BUILDING SERVICES,C-D13100-1801,Muni Off Blgs-RM-Electrical repairs,22-Jul-11,101.25
http://statistics.data.gov.uk/id/local-authority-district/23UB,Cheltenham Borough Council,453959,9077,EMMDEE BUILDING SERVICES,C-L11500-1801,Rec Facilities-RM-Electrical repairs,22-Jul-11,50.62
http://statistics.data.gov.uk/id/local-authority-district/23UB,Cheltenham Borough Council,453961,9111,EMMDEE BUILDING SERVICES,C-L21100-1805,Town Hall-RM-Int. fixtures/fittings,22-Jul-11,67.50
http://statistics.data.gov.uk/id/local-authority-district/23UB,Cheltenham Borough Council,453958,9075,EMMDEE BUILDING SERVICES,C-L21200-1805,Pump Room-RM-Int. fixtures/fittings,22-Jul-11,56.25
http://statistics.data.gov.uk/id/local-authority-district/23UB,Cheltenham Borough Council,453962,9113,EMMDEE BUILDING SERVICES,C-PM0092-R048,Central Nursery-Other Internal Improveme,22-Jul-11,"1,475.00"
http://statistics.data.gov.uk/id/local-authority-district/23UB,Cheltenham Borough Council,453274,301267/6/2011,ENER-G,C-L11500-1402,Rec Facilities-Electricity,13-Jul-11,"2,637.67"
http://statistics.data.gov.uk/id/local-authority-district/23UB,Cheltenham Borough Council,453275,301267/5/2011,ENER-G,C-L11500-1402,Rec Facilities-Electricity,13-Jul-11,"2,724.59"
http://statistics.data.gov.uk/id/local-authority-district/23UB,Cheltenham Borough Council,454053,WARDEN HILL FL,ENVEX CONTRACTORS LTD,C-D21250-3973,Civil Emergency-EA FDGIA allocation,27-Jul-11,"90,571.32"
http://statistics.data.gov.uk/id/local-authority-district/23UB,Cheltenham Borough Council,452878,H1487,ENVIRONMENTAL MANAGEMENT SOLUTIONS LTD,C-HC4865-C302,Asbestos Mngmnt-Building Contractor,08-Jul-11,"2,710.99"
http://statistics.data.gov.uk/id/local-authority-district/23UB,Cheltenham Borough Council,454049,H1494,ENVIRONMENTAL MANAGEMENT SOLUTIONS LTD,C-HC4865-C302,Asbestos Mngmnt-Building Contractor,22-Jul-11,665.00
http://statistics.data.gov.uk/id/local-authority-district/23UB,Cheltenham Borough Council,453249,11296DMO,EVENTIA LIMITED,C-L31100-3558,TIC-Conference Mkt/Promotion,13-Jul-11,"1,000.00"
http://statistics.data.gov.uk/id/local-authority-district/23UB,Cheltenham Borough Council,454076,IEX3000951831,EXPERIAN LTD,C-D12460-3501,Propty Inspectn-Hire of outside services,27-Jul-11,"1,900.00"
http://statistics.data.gov.uk/id/local-authority-district/23UB,Cheltenham Borough Council,452914,3868/6/11,3D EYE LTD,C-L41100-3256,AG & M-Fine Form Horse Parade exp,08-Jul-11,"2,400.00"
http://statistics.data.gov.uk/id/local-authority-district/23UB,Cheltenham Borough Council,452511,967,FAIRFORD TREE SERVICES,C-C22120-1304,Spts/Open Space-Nature conservation,01-Jul-11,590.00
http://statistics.data.gov.uk/id/local-authority-district/23UB,Cheltenham Borough Council,452904,983,FAIRFORD TREE SERVICES,C-C22110-1305,Parks & Gardens-Tree surgery,08-Jul-11,460.00
http://statistics.data.gov.uk/id/local-authority-district/23UB,Cheltenham Borough Council,452907,981,FAIRFORD TREE SERVICES,C-C22120-1305,Spts/Open Space-Tree surgery,08-Jul-11,140.00
http://statistics.data.gov.uk/id/local-authority-district/23UB,Cheltenham Borough Council,452905,982,FAIRFORD TREE SERVICES,C-H33700-1305,Estate Services-Tree surgery,08-Jul-11,200.00
http://statistics.data.gov.uk/id/local-authority-district/23UB,Cheltenham Borough Council,453144,987,FAIRFORD TREE SERVICES,C-C22120-1312,Spts/Open Space-Annual felling prog,13-Jul-11,280.00
http://statistics.data.gov.uk/id/local-authority-district/23UB,Cheltenham Borough Council,453143,988,FAIRFORD TREE SERVICES,C-H33700-1305,Estate Services-Tree surgery,13-Jul-11,280.00
http://statistics.data.gov.uk/id/local-authority-district/23UB,Cheltenham Borough Council,453880,I154810,THOMAS FATTORINI LTD,C-D23030-3501,Mayor Making-Hire of outside services,22-Jul-11,208.58
http://statistics.data.gov.uk/id/local-authority-district/23UB,Cheltenham Borough Council,453880,I154810,THOMAS FATTORINI LTD,C-D23070-3501,Medal of Honour-Hire of outside services,22-Jul-11,208.58
http://statistics.data.gov.uk/id/local-authority-district/23UB,Cheltenham Borough Council,453880,I154810,THOMAS FATTORINI LTD,C-D24230-3501,Gott Big Party-Hire of outside services,22-Jul-11,208.58
http://statistics.data.gov.uk/id/local-authority-district/23UB,Cheltenham Borough Council,452790,SI1212324,FLEET LINE MARKERS LTD,C-C22440-3121,GCC Schools-Materials-Contract,06-Jul-11,"1,755.00"
http://statistics.data.gov.uk/id/local-authority-district/23UB,Cheltenham Borough Council,452687,REDACTED,REDACTED,C-P12250-9104,Tenants Rent-Refunds,01-Jul-11,565.92
http://statistics.data.gov.uk/id/local-authority-district/23UB,Cheltenham Borough Council,453260,5188,FUTRA LTD,C-C24100-3170,Fleet Maint-Fuel system maintenance,13-Jul-11,904.00
http://statistics.data.gov.uk/id/local-authority-district/23UB,Cheltenham Borough Council,452800,SETTLEMENT,GARDEN EVENTS LIMITED,C-N13125-9205,ASH Ledger-Town Hall Invoices Paid,06-Jul-11,"-1,610.96"
http://statistics.data.gov.uk/id/local-authority-district/23UB,Cheltenham Borough Council,452800,SETTLEMENT,GARDEN EVENTS LIMITED,C-Z12210-9128,Box Off A/C-Agent tickets paid out,06-Jul-11,"1,110.00"
http://statistics.data.gov.uk/id/local-authority-district/23UB,Cheltenham Borough Council,452800,SETTLEMENT,GARDEN EVENTS LIMITED,C-Z12210-9128,Box Off A/C-Agent tickets paid out,06-Jul-11,"2,903.60"
http://statistics.data.gov.uk/id/local-authority-district/23UB,Cheltenham Borough Council,452800,SETTLEMENT,GARDEN EVENTS LIMITED,C-Z12210-9128,Box Off A/C-Agent tickets paid out,06-Jul-11,"7,055.80"
http://statistics.data.gov.uk/id/local-authority-district/23UB,Cheltenham Borough Council,453054,rnd115/05/11,GILLMANS SERVICE,C-H33400-3102,Sheltered.Hsg-Equipment rental,13-Jul-11,40.13
http://statistics.data.gov.uk/id/local-authority-district/23UB,Cheltenham Borough Council,453060,RND190/05/11,GILLMANS SERVICE,C-H33400-3102,Sheltered.Hsg-Equipment rental,13-Jul-11,35.00
http://statistics.data.gov.uk/id/local-authority-district/23UB,Cheltenham Borough Council,453062,RND1126/05/11,GILLMANS SERVICE,C-H33400-3102,Sheltered.Hsg-Equipment rental,13-Jul-11,42.00
http://statistics.data.gov.uk/id/local-authority-district/23UB,Cheltenham Borough Council,453074,RND187/05/11,GILLMANS SERVICE,C-H33400-3102,Sheltered.Hsg-Equipment rental,13-Jul-11,141.90
http://statistics.data.gov.uk/id/local-authority-district/23UB,Cheltenham Borough Council,453073,RND182/05/11,GILLMANS SERVICE,C-H33400-3102,Sheltered.Hsg-Equipment rental,13-Jul-11,73.65
http://statistics.data.gov.uk/id/local-authority-district/23UB,Cheltenham Borough Council,453072,RND1211/05/11,GILLMANS SERVICE,C-H33400-3102,Sheltered.Hsg-Equipment rental,13-Jul-11,62.62
http://statistics.data.gov.uk/id/local-authority-district/23UB,Cheltenham Borough Council,453071,RND1203/05/11,GILLMANS SERVICE,C-H33400-3102,Sheltered.Hsg-Equipment rental,13-Jul-11,59.65
http://statistics.data.gov.uk/id/local-authority-district/23UB,Cheltenham Borough Council,453070,RND1181/05/11,GILLMANS SERVICE,C-H33400-3102,Sheltered.Hsg-Equipment rental,13-Jul-11,48.15
http://statistics.data.gov.uk/id/local-authority-district/23UB,Cheltenham Borough Council,453069,RND1180/05/11,GILLMANS SERVICE,C-H33400-3102,Sheltered.Hsg-Equipment rental,13-Jul-11,50.55
http://statistics.data.gov.uk/id/local-authority-district/23UB,Cheltenham Borough Council,453068,RND1179/05/11,GILLMANS SERVICE,C-H33400-3102,Sheltered.Hsg-Equipment rental,13-Jul-11,60.09
http://statistics.data.gov.uk/id/local-authority-district/23UB,Cheltenham Borough Council,453067,RND1145/05/11,GILLMANS SERVICE,C-H33400-3102,Sheltered.Hsg-Equipment rental,13-Jul-11,46.60
http://statistics.data.gov.uk/id/local-authority-district/23UB,Cheltenham Borough Council,453066,RND1144/05/11,GILLMANS SERVICE,C-H33400-3102,Sheltered.Hsg-Equipment rental,13-Jul-11,75.00
http://statistics.data.gov.uk/id/local-authority-district/23UB,Cheltenham Borough Council,453065,RND1143/05/11,GILLMANS SERVICE,C-H33400-3102,Sheltered.Hsg-Equipment rental,13-Jul-11,46.60
http://statistics.data.gov.uk/id/local-authority-district/23UB,Cheltenham Borough Council,453064,RND1131/05/11,GILLMANS SERVICE,C-H33400-3102,Sheltered.Hsg-Equipment rental,13-Jul-11,43.00
http://statistics.data.gov.uk/id/local-authority-district/23UB,Cheltenham Borough Council,453063,RND1107/05/11,GILLMANS SERVICE,C-H33400-3102,Sheltered.Hsg-Equipment rental,13-Jul-11,33.95
http://statistics.data.gov.uk/id/local-authority-district/23UB,Cheltenham Borough Council,453061,RND192/05/11,GILLMANS SERVICE,C-H33400-3102,Sheltered.Hsg-Equipment rental,13-Jul-11,49.50
http://statistics.data.gov.uk/id/local-authority-district/23UB,Cheltenham Borough Council,453059,RND1212/05/11,GILLMANS SERVICE,C-H33400-3102,Sheltered.Hsg-Equipment rental,13-Jul-11,53.52
http://statistics.data.gov.uk/id/local-authority-district/23UB,Cheltenham Borough Council,453055,RND117/05/11,GILLMANS SERVICE,C-H33400-3102,Sheltered.Hsg-Equipment rental,13-Jul-11,40.13
http://statistics.data.gov.uk/id/local-authority-district/23UB,Cheltenham Borough Council,453056,RND124/05/11,GILLMANS SERVICE,C-H33400-3102,Sheltered.Hsg-Equipment rental,13-Jul-11,31.45
http://statistics.data.gov.uk/id/local-authority-district/23UB,Cheltenham Borough Council,453058,RND112/05/11,GILLMANS SERVICE,C-H33400-3102,Sheltered.Hsg-Equipment rental,13-Jul-11,72.30
http://statistics.data.gov.uk/id/local-authority-district/23UB,Cheltenham Borough Council,453057,RND125/05/11,GILLMANS SERVICE,C-H33400-3102,Sheltered.Hsg-Equipment rental,13-Jul-11,34.15
http://statistics.data.gov.uk/id/local-authority-district/23UB,Cheltenham Borough Council,453011,REDACTED,REDACTED,C-H22400-3828,Homelessness-Prevention Fund,08-Jul-11,550.00
http://statistics.data.gov.uk/id/local-authority-district/23UB,Cheltenham Borough Council,452637,1800189567,GLOUCESTERSHIRE COUNTY COUNCIL,C-D32400-4126,Elderly Trspt-Paymts to Bus Cos-Full Far,01-Jul-11,"122,417.18"
http://statistics.data.gov.uk/id/local-authority-district/23UB,Cheltenham Borough Council,453088,1800190124,GLOUCESTERSHIRE COUNTY COUNCIL,C-D21100-3206,Dem Process-Miscellaneous Expenses,13-Jul-11,"2,500.00"
http://statistics.data.gov.uk/id/local-authority-district/23UB,Cheltenham Borough Council,453236,1800187056,GLOUCESTERSHIRE COUNTY COUNCIL,C-E36200-4528,On-St Car Prkng-Net income paid to GCC,13-Jul-11,"92,451.48"
http://statistics.data.gov.uk/id/local-authority-district/23UB,Cheltenham Borough Council,454526,1800193018,GLOUCESTERSHIRE COUNTY COUNCIL,C-D21600-3503,Land Charges-Fees,29-Jul-11,"11,114.84"
http://statistics.data.gov.uk/id/local-authority-district/23UB,Cheltenham Borough Council,453192,NIGHTSTOP,GLOUCESTERSHIRE NIGHTSTOP,C-H22300-3897,Housing Grants-Youth Homeless-Nightstop,13-Jul-11,"3,000.00"
http://statistics.data.gov.uk/id/local-authority-district/23UB,Cheltenham Borough Council,454237,47101,GOOCH GROUP LTD,C-H33700-1712,Estate Services-Estate cleaning-reactive,27-Jul-11,555.00
http://statistics.data.gov.uk/id/local-authority-district/23UB,Cheltenham Borough Council,454496,47125,GOOCH GROUP LTD,C-H4213V-1104,Voids 2213-Council House repairs,29-Jul-11,"1,619.83"
http://statistics.data.gov.uk/id/local-authority-district/23UB,Cheltenham Borough Council,452544,6229,G P AERIALS LTD,C-H46550-1104,TV Aerials-Council House repairs,01-Jul-11,49.00
http://statistics.data.gov.uk/id/local-authority-district/23UB,Cheltenham Borough Council,452546,6230,G P AERIALS LTD,C-H46550-1104,TV Aerials-Council House repairs,01-Jul-11,78.50
http://statistics.data.gov.uk/id/local-authority-district/23UB,Cheltenham Borough Council,452548,6249,G P AERIALS LTD,C-H46550-1104,TV Aerials-Council House repairs,01-Jul-11,64.00
http://statistics.data.gov.uk/id/local-authority-district/23UB,Cheltenham Borough Council,452550,6227,G P AERIALS LTD,C-H46550-1104,TV Aerials-Council House repairs,01-Jul-11,389.50
http://statistics.data.gov.uk/id/local-authority-district/23UB,Cheltenham Borough Council,452551,6076,G P AERIALS LTD,C-H46550-1104,TV Aerials-Council House repairs,01-Jul-11,12.50
http://statistics.data.gov.uk/id/local-authority-district/23UB,Cheltenham Borough Council,452549,6206,G P AERIALS LTD,C-H46550-1104,TV Aerials-Council House repairs,01-Jul-11,51.00
http://statistics.data.gov.uk/id/local-authority-district/23UB,Cheltenham Borough Council,452547,6251,G P AERIALS LTD,C-H46550-1104,TV Aerials-Council House repairs,01-Jul-11,71.50
http://statistics.data.gov.uk/id/local-authority-district/23UB,Cheltenham Borough Council,452545,6250,G P AERIALS LTD,C-H46550-1104,TV Aerials-Council House repairs,01-Jul-11,49.00
http://statistics.data.gov.uk/id/local-authority-district/23UB,Cheltenham Borough Council,452608,6223,G P AERIALS LTD,C-HC4843-C302,External Imp-Building Contractor,01-Jul-11,49.00
http://statistics.data.gov.uk/id/local-authority-district/23UB,Cheltenham Borough Council,452522,249,GPL GREENWAY PARTNERSHIP LIMITED,C-C22110-1301,Parks & Gardens-Routine grounds maint,01-Jul-11,575.00
http://statistics.data.gov.uk/id/local-authority-district/23UB,Cheltenham Borough Council,452523,251,GPL GREENWAY PARTNERSHIP LIMITED,C-C22110-1301,Parks & Gardens-Routine grounds maint,01-Jul-11,820.00
http://statistics.data.gov.uk/id/local-authority-district/23UB,Cheltenham Borough Council,454540,0140/11,GRAHAM HARPER ASSOCIATES,C-C22110-1301,Parks & Gardens-Routine grounds maint,29-Jul-11,825.00
http://statistics.data.gov.uk/id/local-authority-district/23UB,Cheltenham Borough Council,452928,195198,GREENWORKS SOLUTIONS LTD,C-D13100-3204,Muni Off Blgs-Vending machines,08-Jul-11,56.00
http://statistics.data.gov.uk/id/local-authority-district/23UB,Cheltenham Borough Council,453655,194912,GREENWORKS SOLUTIONS LTD,C-D13100-3204,Muni Off Blgs-Vending machines,20-Jul-11,"3,705.00"
http://statistics.data.gov.uk/id/local-authority-district/23UB,Cheltenham Borough Council,452716,270,GREENWAY PARTNERSHIP LIMITED,C-C23120-1806,Recycling Centr-RM-Ext. fixtures/fitting,06-Jul-11,165.00
http://statistics.data.gov.uk/id/local-authority-district/23UB,Cheltenham Borough Council,452714,255,GREENWAY PARTNERSHIP LIMITED,C-C23140-1805,Public Convnces-RM-Int. fixtures/fitting,06-Jul-11,189.00
http://statistics.data.gov.uk/id/local-authority-district/23UB,Cheltenham Borough Council,452715,275,GREENWAY PARTNERSHIP LIMITED,C-C23140-1809,Public Convnces-RM-sanitary works,06-Jul-11,33.75
http://statistics.data.gov.uk/id/local-authority-district/23UB,Cheltenham Borough Council,452717,273,GREENWAY PARTNERSHIP LIMITED,C-C23140-1809,Public Convnces-RM-sanitary works,06-Jul-11,78.75
http://statistics.data.gov.uk/id/local-authority-district/23UB,Cheltenham Borough Council,452713,256,GREENWAY PARTNERSHIP LIMITED,C-D30200-1809,Misc Props & Ld-RM-sanitary works,06-Jul-11,56.25
http://statistics.data.gov.uk/id/local-authority-district/23UB,Cheltenham Borough Council,453284,278,GREENWAY PARTNERSHIP LIMITED,C-D13100-1809,Muni Off Blgs-RM-sanitary works,13-Jul-11,101.25
http://statistics.data.gov.uk/id/local-authority-district/23UB,Cheltenham Borough Council,453304,274,GREENWAY PARTNERSHIP LIMITED,C-D13100-1809,Muni Off Blgs-RM-sanitary works,13-Jul-11,180.00
http://statistics.data.gov.uk/id/local-authority-district/23UB,Cheltenham Borough Council,453303,200,GREENWAY PARTNERSHIP LIMITED,C-L11500-1805,Rec Facilities-RM-Int. fixtures/fittings,13-Jul-11,"1,434.82"
http://statistics.data.gov.uk/id/local-authority-district/23UB,Cheltenham Borough Council,453677,139,GROUP CREATIVE,C-L11500-3401,Rec Facilities-Printing - general,20-Jul-11,227.13
http://statistics.data.gov.uk/id/local-authority-district/23UB,Cheltenham Borough Council,453677,139,GROUP CREATIVE,C-L11500-3401,Rec Facilities-Printing - general,20-Jul-11,286.90
http://statistics.data.gov.uk/id/local-authority-district/23UB,Cheltenham Borough Council,453677,139,GROUP CREATIVE,C-L11500-8360,Rec Facilities-Swim Coaching,20-Jul-11,195.00
http://statistics.data.gov.uk/id/local-authority-district/23UB,Cheltenham Borough Council,454116,1105/03160,GULLIVER'S TRAVELS SELF DRIVE LTD,C-C24100-2701,Fleet Maint-Hired transport,27-Jul-11,230.00
http://statistics.data.gov.uk/id/local-authority-district/23UB,Cheltenham Borough Council,454115,1106/17683,GULLIVER'S TRAVELS SELF DRIVE LTD,C-C24100-2701,Fleet Maint-Hired transport,27-Jul-11,160.00
http://statistics.data.gov.uk/id/local-authority-district/23UB,Cheltenham Borough Council,454113,1107/20080,GULLIVER'S TRAVELS SELF DRIVE LTD,C-C24100-2701,Fleet Maint-Hired transport,27-Jul-11,160.00
http://statistics.data.gov.uk/id/local-authority-district/23UB,Cheltenham Borough Council,454114,1107/19136,GULLIVER'S TRAVELS SELF DRIVE LTD,C-C24100-2701,Fleet Maint-Hired transport,27-Jul-11,160.00
http://statistics.data.gov.uk/id/local-authority-district/23UB,Cheltenham Borough Council,452643,G8201106225,HALCROW CONSULTING ENGINEERS,C-D21250-3973,Civil Emergency-EA FDGIA allocation,01-Jul-11,"5,878.33"
http://statistics.data.gov.uk/id/local-authority-district/23UB,Cheltenham Borough Council,452644,G8201106220,HALCROW CONSULTING ENGINEERS,C-D21250-3973,Civil Emergency-EA FDGIA allocation,01-Jul-11,"2,770.00"
http://statistics.data.gov.uk/id/local-authority-district/23UB,Cheltenham Borough Council,453711,H1496,HALSALL  CONSTRUCTION LIMITED,C-HC4845-C302,Neighbrhd works-Building Contractor,20-Jul-11,"117,899.90"
http://statistics.data.gov.uk/id/local-authority-district/23UB,Cheltenham Borough Council,454058,5173,HALSALL  CONSTRUCTION LIMITED,C-HC4861-C302,Garage Imp-Building Contractor,22-Jul-11,"5,147.05"
http://statistics.data.gov.uk/id/local-authority-district/23UB,Cheltenham Borough Council,454027,1 DINAS ROAD,HANOVER HOUSING ASSOCIATION,C-HC4100-C801,Dis.Adapt.HRA-Grants,22-Jul-11,"15,645.00"
http://statistics.data.gov.uk/id/local-authority-district/23UB,Cheltenham Borough Council,452798,24404,HANSON CONCRETE GARAGES LTD,C-D21250-3973,Civil Emergency-EA FDGIA allocation,06-Jul-11,"2,955.83"
http://statistics.data.gov.uk/id/local-authority-district/23UB,Cheltenham Borough Council,452803,REDACTED,CYRIL HARBER INVESTMENT CO LTD,C-H22400-3244,Homelessness-Supporting People,06-Jul-11,530.00
http://statistics.data.gov.uk/id/local-authority-district/23UB,Cheltenham Borough Council,453038,SIAL/00050610,HEREFORDSHIRE HOUSING LIMITED,C-H33400-1117,Sheltered.Hsg-Hereford City-Fees,13-Jul-11,456.30
http://statistics.data.gov.uk/id/local-authority-district/23UB,Cheltenham Borough Council,453045,SIAL/00050609,HEREFORDSHIRE HOUSING LIMITED,C-H33400-1117,Sheltered.Hsg-Hereford City-Fees,13-Jul-11,283.92
http://statistics.data.gov.uk/id/local-authority-district/23UB,Cheltenham Borough Council,453053,SIAL/00050601,HEREFORDSHIRE HOUSING LIMITED,C-H33400-1117,Sheltered.Hsg-Hereford City-Fees,13-Jul-11,481.65
http://statistics.data.gov.uk/id/local-authority-district/23UB,Cheltenham Borough Council,453052,SIAL/00050602,HEREFORDSHIRE HOUSING LIMITED,C-H33400-1117,Sheltered.Hsg-Hereford City-Fees,13-Jul-11,182.52
http://statistics.data.gov.uk/id/local-authority-district/23UB,Cheltenham Borough Council,453051,SIAL/00050603,HEREFORDSHIRE HOUSING LIMITED,C-H33400-1117,Sheltered.Hsg-Hereford City-Fees,13-Jul-11,243.36
http://statistics.data.gov.uk/id/local-authority-district/23UB,Cheltenham Borough Council,453050,SIAL/0005064,HEREFORDSHIRE HOUSING LIMITED,C-H33400-1117,Sheltered.Hsg-Hereford City-Fees,13-Jul-11,375.18
http://statistics.data.gov.uk/id/local-authority-district/23UB,Cheltenham Borough Council,453049,SIAL/00050605,HEREFORDSHIRE HOUSING LIMITED,C-H33400-1117,Sheltered.Hsg-Hereford City-Fees,13-Jul-11,45.63
http://statistics.data.gov.uk/id/local-authority-district/23UB,Cheltenham Borough Council,453048,SIAL/00050606,HEREFORDSHIRE HOUSING LIMITED,C-H33400-1117,Sheltered.Hsg-Hereford City-Fees,13-Jul-11,192.66
http://statistics.data.gov.uk/id/local-authority-district/23UB,Cheltenham Borough Council,453047,SIAL/00050607,HEREFORDSHIRE HOUSING LIMITED,C-H33400-1117,Sheltered.Hsg-Hereford City-Fees,13-Jul-11,50.70
http://statistics.data.gov.uk/id/local-authority-district/23UB,Cheltenham Borough Council,453044,SIAL/00050611,HEREFORDSHIRE HOUSING LIMITED,C-H33400-1117,Sheltered.Hsg-Hereford City-Fees,13-Jul-11,147.03
http://statistics.data.gov.uk/id/local-authority-district/23UB,Cheltenham Borough Council,453039,SIAL/00050616,HEREFORDSHIRE HOUSING LIMITED,C-H33400-1117,Sheltered.Hsg-Hereford City-Fees,13-Jul-11,"5,149.02"
http://statistics.data.gov.uk/id/local-authority-district/23UB,Cheltenham Borough Council,453041,SIAL/00050615,HEREFORDSHIRE HOUSING LIMITED,C-H33400-1117,Sheltered.Hsg-Hereford City-Fees,13-Jul-11,152.10
http://statistics.data.gov.uk/id/local-authority-district/23UB,Cheltenham Borough Council,453042,SIAL/00050613,HEREFORDSHIRE HOUSING LIMITED,C-H33400-1117,Sheltered.Hsg-Hereford City-Fees,13-Jul-11,131.82
http://statistics.data.gov.uk/id/local-authority-district/23UB,Cheltenham Borough Council,453043,SIAL/00050612,HEREFORDSHIRE HOUSING LIMITED,C-H33400-1117,Sheltered.Hsg-Hereford City-Fees,13-Jul-11,121.68
http://statistics.data.gov.uk/id/local-authority-district/23UB,Cheltenham Borough Council,453040,SIAL/00050614,HEREFORDSHIRE HOUSING LIMITED,C-H33400-1117,Sheltered.Hsg-Hereford City-Fees,13-Jul-11,141.96
http://statistics.data.gov.uk/id/local-authority-district/23UB,Cheltenham Borough Council,453146,6719277,HEWLETT PACKARD LIMITED,C-D11820-3660,IT Infrastructu-Hardware PC & Servers,13-Jul-11,"2,690.00"
http://statistics.data.gov.uk/id/local-authority-district/23UB,Cheltenham Borough Council,453078,1106046,HITEC (LABORATORIES ) LIMITED,C-D11700-3623,Pol & Info Mgmt-Cmpter-sftwre lic purch,13-Jul-11,"2,027.20"
http://statistics.data.gov.uk/id/local-authority-district/23UB,Cheltenham Borough Council,452929,36306,HORSLEYS,C-LC4006-C713,AG&M Dev Scheme-Other Professional Fees,13-Jul-11,500.00
http://statistics.data.gov.uk/id/local-authority-district/23UB,Cheltenham Borough Council,452931,36307,HORSLEYS,C-LC4006-C713,AG&M Dev Scheme-Other Professional Fees,13-Jul-11,500.00
http://statistics.data.gov.uk/id/local-authority-district/23UB,Cheltenham Borough Council,454111,9068,HOUGHTON GREENLESS & ASSOCIATES LTD,C-H46100-1104,Cen.Heat.Serv-Council House repairs,27-Jul-11,480.00
http://statistics.data.gov.uk/id/local-authority-district/23UB,Cheltenham Borough Council,454112,9069,HOUGHTON GREENLESS & ASSOCIATES LTD,C-H46100-1104,Cen.Heat.Serv-Council House repairs,27-Jul-11,480.00
http://statistics.data.gov.uk/id/local-authority-district/23UB,Cheltenham Borough Council,454617,4899,ICON NET LIMITED,C-L31100-3558,TIC-Conference Mkt/Promotion,29-Jul-11,497.50
http://statistics.data.gov.uk/id/local-authority-district/23UB,Cheltenham Borough Council,454536,4904,ICON NET LIMITED,C-L41100-3638,AG & M-WEBSITE MAINTENANCE,29-Jul-11,650.00
http://statistics.data.gov.uk/id/local-authority-district/23UB,Cheltenham Borough Council,453857,4903,INDUSTRIAL MEDICAL AND SAFETY SVCE LTD,C-D12300-3250,Personnel and P-Occupational Health,22-Jul-11,"1,079.95"
http://statistics.data.gov.uk/id/local-authority-district/23UB,Cheltenham Borough Council,453103,PSI015365,INTRINSIC TECHNOLOGY LIMITED,C-DC3211-C101,WorkingFlexibly-Project Est for this Yea,13-Jul-11,760.00
http://statistics.data.gov.uk/id/local-authority-district/23UB,Cheltenham Borough Council,453195,PSI015492,INTRINSIC TECHNOLOGY LIMITED,C-IT0062-3501,Working Flexibl-Hire of outside services,13-Jul-11,529.85
http://statistics.data.gov.uk/id/local-authority-district/23UB,Cheltenham Borough Council,452795,36,P C IRRIGATION,C-C22120-3501,Spts/Open Space-Hire of outside services,06-Jul-11,552.00
http://statistics.data.gov.uk/id/local-authority-district/23UB,Cheltenham Borough Council,452795,36,P C IRRIGATION,C-C22120-3501,Spts/Open Space-Hire of outside services,06-Jul-11,14.00
http://statistics.data.gov.uk/id/local-authority-district/23UB,Cheltenham Borough Council,452796,15,P C IRRIGATION,C-C22120-3501,Spts/Open Space-Hire of outside services,06-Jul-11,350.00
http://statistics.data.gov.uk/id/local-authority-district/23UB,Cheltenham Borough Council,452795,36,P C IRRIGATION,C-C22120-3501,Spts/Open Space-Hire of outside services,06-Jul-11,26.40
http://statistics.data.gov.uk/id/local-authority-district/23UB,Cheltenham Borough Council,452796,15,P C IRRIGATION,C-N11250-9227,EXCLUDED,06-Jul-11,-70.00
http://statistics.data.gov.uk/id/local-authority-district/23UB,Cheltenham Borough Council,453861,40,P C IRRIGATION,C-C22140-1808,Nursery-RM-Routine works,22-Jul-11,886.98
http://statistics.data.gov.uk/id/local-authority-district/23UB,Cheltenham Borough Council,453862,29,P C IRRIGATION,C-C22140-1808,Nursery-RM-Routine works,22-Jul-11,523.47
http://statistics.data.gov.uk/id/local-authority-district/23UB,Cheltenham Borough Council,453862,29,P C IRRIGATION,C-N11250-9227,EXCLUDED,22-Jul-11,-50.00
http://statistics.data.gov.uk/id/local-authority-district/23UB,Cheltenham Borough Council,453861,40,P C IRRIGATION,C-N11250-9227,EXCLUDED,22-Jul-11,-54.00
http://statistics.data.gov.uk/id/local-authority-district/23UB,Cheltenham Borough Council,453076,31961,JADU LTD,C-D12600-3638,Service Develop-WEBSITE MAINTENANCE,13-Jul-11,200.00
http://statistics.data.gov.uk/id/local-authority-district/23UB,Cheltenham Borough Council,453077,31951,JADU LTD,C-D12600-3638,Service Develop-WEBSITE MAINTENANCE,13-Jul-11,"1,200.00"
http://statistics.data.gov.uk/id/local-authority-district/23UB,Cheltenham Borough Council,453122,01085,D A JONES,C-C22110-1301,Parks & Gardens-Routine grounds maint,13-Jul-11,150.00
http://statistics.data.gov.uk/id/local-authority-district/23UB,Cheltenham Borough Council,453119,01084,D A JONES,C-C22110-3152,Parks & Gardens-Commemorative Seats,13-Jul-11,150.00
http://statistics.data.gov.uk/id/local-authority-district/23UB,Cheltenham Borough Council,453124,01086,D A JONES,C-C22120-1119,Spts/Open Space-Playground Maint,13-Jul-11,75.00
http://statistics.data.gov.uk/id/local-authority-district/23UB,Cheltenham Borough Council,453124,01086,D A JONES,C-N11250-9227,EXCLUDED,13-Jul-11,-15.00
http://statistics.data.gov.uk/id/local-authority-district/23UB,Cheltenham Borough Council,453122,01085,D A JONES,C-N11250-9227,EXCLUDED,13-Jul-11,-30.00
http://statistics.data.gov.uk/id/local-authority-district/23UB,Cheltenham Borough Council,453119,01084,D A JONES,C-N11250-9227,EXCLUDED,13-Jul-11,-23.68
http://statistics.data.gov.uk/id/local-authority-district/23UB,Cheltenham Borough Council,452880,H1488,P H JONES LIMITED,C-H46100-1104,Cen.Heat.Serv-Council House repairs,08-Jul-11,"42,001.38"
http://statistics.data.gov.uk/id/local-authority-district/23UB,Cheltenham Borough Council,452880,H1488,P H JONES LIMITED,C-HC4862-C302,New Heating Ins-Building Contractor,08-Jul-11,"3,016.47"
http://statistics.data.gov.uk/id/local-authority-district/23UB,Cheltenham Borough Council,452880,H1488,P H JONES LIMITED,C-HC4875-C302,Gas-Building Contractor,08-Jul-11,"4,310.77"
http://statistics.data.gov.uk/id/local-authority-district/23UB,Cheltenham Borough Council,453362,GAS JUNE VAL 46,P H JONES LIMITED,C-H46100-1104,Cen.Heat.Serv-Council House repairs,13-Jul-11,"38,091.73"
http://statistics.data.gov.uk/id/local-authority-district/23UB,Cheltenham Borough Council,453362,GAS JUNE VAL 46,P H JONES LIMITED,C-HC4862-C302,New Heating Ins-Building Contractor,13-Jul-11,"5,492.94"
http://statistics.data.gov.uk/id/local-authority-district/23UB,Cheltenham Borough Council,453362,GAS JUNE VAL 46,P H JONES LIMITED,C-HC4875-C302,Gas-Building Contractor,13-Jul-11,"3,024.59"
http://statistics.data.gov.uk/id/local-authority-district/23UB,Cheltenham Borough Council,453832,0611193,MR M JONES AND MRS M JONES,C-H22400-5204,Homelessness-Provision of accommo(B&B),22-Jul-11,195.00
http://statistics.data.gov.uk/id/local-authority-district/23UB,Cheltenham Borough Council,453833,0711108,MR M JONES AND MRS M JONES,C-H22400-5204,Homelessness-Provision of accommo(B&B),22-Jul-11,195.00
http://statistics.data.gov.uk/id/local-authority-district/23UB,Cheltenham Borough Council,453834,0711101,MR M JONES AND MRS M JONES,C-H22400-5204,Homelessness-Provision of accommo(B&B),22-Jul-11,195.00
http://statistics.data.gov.uk/id/local-authority-district/23UB,Cheltenham Borough Council,453835,07111110,MR M JONES AND MRS M JONES,C-H22400-5204,Homelessness-Provision of accommo(B&B),22-Jul-11,47.14
http://statistics.data.gov.uk/id/local-authority-district/23UB,Cheltenham Borough Council,454273,0711136,MR M JONES AND MRS M JONES,C-H22400-5204,Homelessness-Provision of accommo(B&B),27-Jul-11,195.00
http://statistics.data.gov.uk/id/local-authority-district/23UB,Cheltenham Borough Council,454275,0711134,MR M JONES AND MRS M JONES,C-H22400-5204,Homelessness-Provision of accommo(B&B),27-Jul-11,195.00
http://statistics.data.gov.uk/id/local-authority-district/23UB,Cheltenham Borough Council,454274,0711145,MR M JONES AND MRS M JONES,C-H22400-5204,Homelessness-Provision of accommo(B&B),27-Jul-11,195.00
http://statistics.data.gov.uk/id/local-authority-district/23UB,Cheltenham Borough Council,454087,DJ350,DAVE JOYNES MARKET SERVICES,C-D38100-3196,C.Dev.Strategy-Fiesta in the park,27-Jul-11,"1,273.00"
http://statistics.data.gov.uk/id/local-authority-district/23UB,Cheltenham Borough Council,452902,968,K B BUILDING SERVICES UK LIMITED,C-C23110-3501,Street Cleaning-Hire of outside services,08-Jul-11,"1,710.00"
http://statistics.data.gov.uk/id/local-authority-district/23UB,Cheltenham Borough Council,452902,968,K B BUILDING SERVICES UK LIMITED,C-N11250-9227,EXCLUDED,08-Jul-11,-321.00
http://statistics.data.gov.uk/id/local-authority-district/23UB,Cheltenham Borough Council,453285,961,K B BUILDING SERVICES UK LIMITED,C-H4201G-1104,Gen Wks 2201-Council House repairs,13-Jul-11,"1,193.00"
http://statistics.data.gov.uk/id/local-authority-district/23UB,Cheltenham Borough Council,453286,962,K B BUILDING SERVICES UK LIMITED,C-H4203G-1104,Gen Wks 2203-Council House repairs,13-Jul-11,"1,857.00"
http://statistics.data.gov.uk/id/local-authority-district/23UB,Cheltenham Borough Council,453290,956,K B BUILDING SERVICES UK LIMITED,C-H4207G-1104,Gen Wks 2207-Council House repairs,13-Jul-11,"1,702.00"
http://statistics.data.gov.uk/id/local-authority-district/23UB,Cheltenham Borough Council,453287,958,K B BUILDING SERVICES UK LIMITED,C-H4209G-1104,Gen Wks 2209-Council House repairs,13-Jul-11,"3,600.00"
http://statistics.data.gov.uk/id/local-authority-district/23UB,Cheltenham Borough Council,453288,960,K B BUILDING SERVICES UK LIMITED,C-H4209G-1104,Gen Wks 2209-Council House repairs,13-Jul-11,"1,723.00"
http://statistics.data.gov.uk/id/local-authority-district/23UB,Cheltenham Borough Council,453289,955,K B BUILDING SERVICES UK LIMITED,C-H4209G-1104,Gen Wks 2209-Council House repairs,13-Jul-11,"2,509.00"
http://statistics.data.gov.uk/id/local-authority-district/23UB,Cheltenham Borough Council,453290,956,K B BUILDING SERVICES UK LIMITED,C-N11250-9227,EXCLUDED,13-Jul-11,-261.20
http://statistics.data.gov.uk/id/local-authority-district/23UB,Cheltenham Borough Council,453289,955,K B BUILDING SERVICES UK LIMITED,C-N11250-9227,EXCLUDED,13-Jul-11,-398.60
http://statistics.data.gov.uk/id/local-authority-district/23UB,Cheltenham Borough Council,453288,960,K B BUILDING SERVICES UK LIMITED,C-N11250-9227,EXCLUDED,13-Jul-11,-305.40
http://statistics.data.gov.uk/id/local-authority-district/23UB,Cheltenham Borough Council,453287,958,K B BUILDING SERVICES UK LIMITED,C-N11250-9227,EXCLUDED,13-Jul-11,-611.00
http://statistics.data.gov.uk/id/local-authority-district/23UB,Cheltenham Borough Council,453286,962,K B BUILDING SERVICES UK LIMITED,C-N11250-9227,EXCLUDED,13-Jul-11,-318.00
http://statistics.data.gov.uk/id/local-authority-district/23UB,Cheltenham Borough Council,453285,961,K B BUILDING SERVICES UK LIMITED,C-N11250-9227,EXCLUDED,13-Jul-11,-215.40
http://statistics.data.gov.uk/id/local-authority-district/23UB,Cheltenham Borough Council,453740,969,K B BUILDING SERVICES UK LIMITED,C-H4208G-1104,Gen Wks 2208-Council House repairs,22-Jul-11,801.00
http://statistics.data.gov.uk/id/local-authority-district/23UB,Cheltenham Borough Council,453739,970,K B BUILDING SERVICES UK LIMITED,C-H4209G-1104,Gen Wks 2209-Council House repairs,22-Jul-11,700.00
http://statistics.data.gov.uk/id/local-authority-district/23UB,Cheltenham Borough Council,453738,963,K B BUILDING SERVICES UK LIMITED,C-HC4020-C820,St Pauls NAR-Demolition,22-Jul-11,"1,645.00"
http://statistics.data.gov.uk/id/local-authority-district/23UB,Cheltenham Borough Council,453740,969,K B BUILDING SERVICES UK LIMITED,C-N11250-9227,EXCLUDED,22-Jul-11,-145.80
http://statistics.data.gov.uk/id/local-authority-district/23UB,Cheltenham Borough Council,453739,970,K B BUILDING SERVICES UK LIMITED,C-N11250-9227,EXCLUDED,22-Jul-11,-126.20
http://statistics.data.gov.uk/id/local-authority-district/23UB,Cheltenham Borough Council,453738,963,K B BUILDING SERVICES UK LIMITED,C-N11250-9227,EXCLUDED,22-Jul-11,-219.00
http://statistics.data.gov.uk/id/local-authority-district/23UB,Cheltenham Borough Council,453201,S26456,KEMBLE AIR SERVICE LTD,C-Z12310-3940,TIC Agency-External Event Payments,13-Jul-11,"4,620.00"
http://statistics.data.gov.uk/id/local-authority-district/23UB,Cheltenham Borough Council,453201,S26456,KEMBLE AIR SERVICE LTD,C-Z12310-3940,TIC Agency-External Event Payments,13-Jul-11,-385.00
http://statistics.data.gov.uk/id/local-authority-district/23UB,Cheltenham Borough Council,452770,1510,KERRY PLUMBING LIMITED,C-H46450-1104,Legionella T&M-Council House repairs,06-Jul-11,615.00
http://statistics.data.gov.uk/id/local-authority-district/23UB,Cheltenham Borough Council,452773,1509,KERRY PLUMBING LIMITED,C-H46450-1104,Legionella T&M-Council House repairs,06-Jul-11,615.00
http://statistics.data.gov.uk/id/local-authority-district/23UB,Cheltenham Borough Council,452772,1511,KERRY PLUMBING LIMITED,C-H46450-1104,Legionella T&M-Council House repairs,06-Jul-11,615.00
http://statistics.data.gov.uk/id/local-authority-district/23UB,Cheltenham Borough Council,452771,1512,KERRY PLUMBING LIMITED,C-H46450-1104,Legionella T&M-Council House repairs,06-Jul-11,615.00
http://statistics.data.gov.uk/id/local-authority-district/23UB,Cheltenham Borough Council,452773,1509,KERRY PLUMBING LIMITED,C-N11250-9227,EXCLUDED,06-Jul-11,-40.00
http://statistics.data.gov.uk/id/local-authority-district/23UB,Cheltenham Borough Council,452772,1511,KERRY PLUMBING LIMITED,C-N11250-9227,EXCLUDED,06-Jul-11,-40.00
http://statistics.data.gov.uk/id/local-authority-district/23UB,Cheltenham Borough Council,452771,1512,KERRY PLUMBING LIMITED,C-N11250-9227,EXCLUDED,06-Jul-11,-40.00
http://statistics.data.gov.uk/id/local-authority-district/23UB,Cheltenham Borough Council,452770,1510,KERRY PLUMBING LIMITED,C-N11250-9227,EXCLUDED,06-Jul-11,-40.00
http://statistics.data.gov.uk/id/local-authority-district/23UB,Cheltenham Borough Council,454600,REDACTED,KIRKHAM PRYER,C-HC7400-C801,H&S Grant-Grants,29-Jul-11,504.90
http://statistics.data.gov.uk/id/local-authority-district/23UB,Cheltenham Borough Council,454243,6605,L AND D SCAFFOLDING LIMITED,C-H4213G-1104,Gen Wks 2213-Council House repairs,27-Jul-11,360.00
http://statistics.data.gov.uk/id/local-authority-district/23UB,Cheltenham Borough Council,454244,6610,L AND D SCAFFOLDING LIMITED,C-H4213G-1104,Gen Wks 2213-Council House repairs,27-Jul-11,789.00
http://statistics.data.gov.uk/id/local-authority-district/23UB,Cheltenham Borough Council,453852,OP/0094432,LANSFORD ACCESS LTD,C-PM0040-R022,Recreation Cent-Electrical Works,22-Jul-11,"1,376.00"
http://statistics.data.gov.uk/id/local-authority-district/23UB,Cheltenham Borough Council,452656,PARISH PRECEPT,LECKHAMPTON WITH WARDEN HILL PARISH COUN,C-Y11400-P103,Col Fnd Rev A/c-Leckhampton Parish Cncl,01-Jul-11,"31,500.00"
http://statistics.data.gov.uk/id/local-authority-district/23UB,Cheltenham Borough Council,453007,COMMUNITY PRI,LECKHAMPTON WITH WARDEN HILL PARISH COUN,C-D21970-3677,Parish Pride-Parish Council - Community,08-Jul-11,"4,184.00"
http://statistics.data.gov.uk/id/local-authority-district/23UB,Cheltenham Borough Council,453091,GS0264,LEIGHTON POPE ORGANISATION,C-1T14C1-3568,Gordon Smith-Artist Fees,13-Jul-11,"4,483.66"
http://statistics.data.gov.uk/id/local-authority-district/23UB,Cheltenham Borough Council,453853,LINC CONCERTS,LINC,C-Z12310-3940,TIC Agency-External Event Payments,22-Jul-11,560.00
http://statistics.data.gov.uk/id/local-authority-district/23UB,Cheltenham Borough Council,453853,LINC CONCERTS,LINC,C-Z12310-3940,TIC Agency-External Event Payments,22-Jul-11,-28.00
http://statistics.data.gov.uk/id/local-authority-district/23UB,Cheltenham Borough Council,453032,SETTLEMENT,LINC,C-Z12210-9128,Box Off A/C-Agent tickets paid out,08-Jul-11,"15,600.00"
http://statistics.data.gov.uk/id/local-authority-district/23UB,Cheltenham Borough Council,453032,SETTLEMENT,LINC,C-Z12210-9128,Box Off A/C-Agent tickets paid out,08-Jul-11,"-8,000.00"
http://statistics.data.gov.uk/id/local-authority-district/23UB,Cheltenham Borough Council,453520,SETTLEMENT,LINC,C-N13125-9205,ASH Ledger-Town Hall Invoices Paid,18-Jul-11,-163.96
http://statistics.data.gov.uk/id/local-authority-district/23UB,Cheltenham Borough Council,453520,SETTLEMENT,LINC,C-Z12210-9128,Box Off A/C-Agent tickets paid out,18-Jul-11,"10,976.00"
http://statistics.data.gov.uk/id/local-authority-district/23UB,Cheltenham Borough Council,453520,SETTLEMENT,LINC,C-Z12210-9128,Box Off A/C-Agent tickets paid out,18-Jul-11,"-3,000.00"
http://statistics.data.gov.uk/id/local-authority-district/23UB,Cheltenham Borough Council,452541,24/5/2011,MR M J LOVERIDGE,C-H46300-1104,Comm.Light.Mtce-Council House repairs,01-Jul-11,655.44
http://statistics.data.gov.uk/id/local-authority-district/23UB,Cheltenham Borough Council,454235,L578,MR M J LOVERIDGE,C-H33700-1162,Estate Services-St Pauls St Peters The M,27-Jul-11,"1,890.00"
http://statistics.data.gov.uk/id/local-authority-district/23UB,Cheltenham Borough Council,454231,L577,MR M J LOVERIDGE,C-H46300-1104,Comm.Light.Mtce-Council House repairs,27-Jul-11,156.00
http://statistics.data.gov.uk/id/local-authority-district/23UB,Cheltenham Borough Council,454233,26/6/2011,MR M J LOVERIDGE,C-H46300-1104,Comm.Light.Mtce-Council House repairs,27-Jul-11,665.11
http://statistics.data.gov.uk/id/local-authority-district/23UB,Cheltenham Borough Council,454232,04/07/2011,MR M J LOVERIDGE,C-H46300-1104,Comm.Light.Mtce-Council House repairs,27-Jul-11,344.15
http://statistics.data.gov.uk/id/local-authority-district/23UB,Cheltenham Borough Council,454234,29/06/2011,MR M J LOVERIDGE,C-H46300-1104,Comm.Light.Mtce-Council House repairs,27-Jul-11,910.43
http://statistics.data.gov.uk/id/local-authority-district/23UB,Cheltenham Borough Council,454090,L576,MR M J LOVERIDGE,C-HC4864-C302,Lift Refurb-Building Contractor,27-Jul-11,86.00
http://statistics.data.gov.uk/id/local-authority-district/23UB,Cheltenham Borough Council,452879,H1483,LOVELL PARTNERSHIPS LTD,C-HC4844-C302,Internal Imp-Building Contractor,08-Jul-11,"90,265.08"
http://statistics.data.gov.uk/id/local-authority-district/23UB,Cheltenham Borough Council,452651,REDACTED,DAVID MALPASS,C-HC7440-C801,DFG.96.Act-Grants,01-Jul-11,"3,478.89"
http://statistics.data.gov.uk/id/local-authority-district/23UB,Cheltenham Borough Council,454468,22518,MARCHANTS COACHES,C-Z12310-3940,TIC Agency-External Event Payments,29-Jul-11,276.00
http://statistics.data.gov.uk/id/local-authority-district/23UB,Cheltenham Borough Council,454469,22520,MARCHANTS COACHES,C-Z12310-3940,TIC Agency-External Event Payments,29-Jul-11,265.00
http://statistics.data.gov.uk/id/local-authority-district/23UB,Cheltenham Borough Council,452966,2344,MARK WROOT AGRICULTURAL & GARDENS SERV,C-C22110-3501,Parks & Gardens-Hire of outside services,08-Jul-11,"1,971.00"
http://statistics.data.gov.uk/id/local-authority-district/23UB,Cheltenham Borough Council,452882,H1486,MANSELL CONSTRUCTION SERVICES LTD,C-HC4843-C302,External Imp-Building Contractor,08-Jul-11,"112,698.96"
http://statistics.data.gov.uk/id/local-authority-district/23UB,Cheltenham Borough Council,452881,C19506,MANSELL CONSTRUCTION SERVICES LTD,C-HC4849-C302,Concrete repair-Building Contractor,08-Jul-11,"4,964.89"
http://statistics.data.gov.uk/id/local-authority-district/23UB,Cheltenham Borough Council,452886,18385,MANSELL CONSTRUCTION SERVICES LTD,C-HC4849-C302,Concrete repair-Building Contractor,08-Jul-11,"4,027.07"
http://statistics.data.gov.uk/id/local-authority-district/23UB,Cheltenham Borough Council,452887,19384,MANSELL CONSTRUCTION SERVICES LTD,C-HC4861-C302,Garage Imp-Building Contractor,08-Jul-11,"1,227.77"
http://statistics.data.gov.uk/id/local-authority-district/23UB,Cheltenham Borough Council,453712,H01492PEN,MANSELL CONSTRUCTION SERVICES LTD,C-HC4849-C302,Concrete repair-Building Contractor,20-Jul-11,"39,310.26"
http://statistics.data.gov.uk/id/local-authority-district/23UB,Cheltenham Borough Council,454054,C19507,MANSELL CONSTRUCTION SERVICES LTD,C-HC4849-C302,Concrete repair-Building Contractor,22-Jul-11,"12,940.16"
http://statistics.data.gov.uk/id/local-authority-district/23UB,Cheltenham Borough Council,453450,8944,MASSIE ELECTRICS,C-E36200-3501,On-St Car Prkng-Hire of outside services,15-Jul-11,634.00
http://statistics.data.gov.uk/id/local-authority-district/23UB,Cheltenham Borough Council,454532,8941,MASSIE ELECTRICS,C-L41100-1801,AG & M-RM-Electrical repairs,29-Jul-11,"1,000.00"
http://statistics.data.gov.uk/id/local-authority-district/23UB,Cheltenham Borough Council,454351,0019 JUNE 2011,MARK MASTERS,C-L11500-3522,Rec Facilities-Coaching scheme,27-Jul-11,378.00
http://statistics.data.gov.uk/id/local-authority-district/23UB,Cheltenham Borough Council,454351,0019 JUNE 2011,MARK MASTERS,C-L11500-3522,Rec Facilities-Coaching scheme,27-Jul-11,210.00
http://statistics.data.gov.uk/id/local-authority-district/23UB,Cheltenham Borough Council,454351,0019 JUNE 2011,MARK MASTERS,C-L11500-3522,Rec Facilities-Coaching scheme,27-Jul-11,84.00
http://statistics.data.gov.uk/id/local-authority-district/23UB,Cheltenham Borough Council,454351,0019 JUNE 2011,MARK MASTERS,C-L11500-3522,Rec Facilities-Coaching scheme,27-Jul-11,42.00
http://statistics.data.gov.uk/id/local-authority-district/23UB,Cheltenham Borough Council,454351,0019 JUNE 2011,MARK MASTERS,C-L11500-3522,Rec Facilities-Coaching scheme,27-Jul-11,42.00
http://statistics.data.gov.uk/id/local-authority-district/23UB,Cheltenham Borough Council,454351,0019 JUNE 2011,MARK MASTERS,C-L11500-3522,Rec Facilities-Coaching scheme,27-Jul-11,150.00
http://statistics.data.gov.uk/id/local-authority-district/23UB,Cheltenham Borough Council,452955,128576,MATTA PRODUCTS UK LIMITED,C-C22120-1119,Spts/Open Space-Playground Maint,08-Jul-11,535.60
http://statistics.data.gov.uk/id/local-authority-district/23UB,Cheltenham Borough Council,452650,REDACTED,MEARS HOME IMPROVEMENTS LTD,C-HC4100-C801,Dis.Adapt.HRA-Grants,01-Jul-11,"6,177.38"
http://statistics.data.gov.uk/id/local-authority-district/23UB,Cheltenham Borough Council,452646,REDACTED,MEARS HOME IMPROVEMENTS LTD,C-HC7440-C801,DFG.96.Act-Grants,01-Jul-11,"5,701.50"
http://statistics.data.gov.uk/id/local-authority-district/23UB,Cheltenham Borough Council,452647,REDACTED,MEARS HOME IMPROVEMENTS LTD,C-HC7440-C801,DFG.96.Act-Grants,01-Jul-11,"4,502.26"
http://statistics.data.gov.uk/id/local-authority-district/23UB,Cheltenham Borough Council,452648,REDACTED,MEARS HOME IMPROVEMENTS LTD,C-HC7440-C801,DFG.96.Act-Grants,01-Jul-11,"10,569.38"
http://statistics.data.gov.uk/id/local-authority-district/23UB,Cheltenham Borough Council,452649,REDACTED,MEARS HOME IMPROVEMENTS LTD,C-HC7440-C801,DFG.96.Act-Grants,01-Jul-11,"3,405.81"
http://statistics.data.gov.uk/id/local-authority-district/23UB,Cheltenham Borough Council,454028,REDACTED,MEARS HOME IMPROVEMENTS LTD,C-HC7440-C801,DFG.96.Act-Grants,22-Jul-11,"6,200.88"
http://statistics.data.gov.uk/id/local-authority-district/23UB,Cheltenham Borough Council,454030,REDACTED,MEARS HOME IMPROVEMENTS LTD,C-HC7440-C801,DFG.96.Act-Grants,22-Jul-11,"6,683.63"
http://statistics.data.gov.uk/id/local-authority-district/23UB,Cheltenham Borough Council,454033,REDACTED,MEARS HOME IMPROVEMENTS LTD,C-HC7440-C801,DFG.96.Act-Grants,22-Jul-11,"5,953.50"
http://statistics.data.gov.uk/id/local-authority-district/23UB,Cheltenham Borough Council,454032,REDACTED,MEARS HOME IMPROVEMENTS LTD,C-HC7440-C801,DFG.96.Act-Grants,22-Jul-11,"5,371.88"
http://statistics.data.gov.uk/id/local-authority-district/23UB,Cheltenham Borough Council,454031,REDACTED,MEARS HOME IMPROVEMENTS LTD,C-HC7440-C801,DFG.96.Act-Grants,22-Jul-11,"3,352.50"
http://statistics.data.gov.uk/id/local-authority-district/23UB,Cheltenham Borough Council,454029,REDACTED,MEARS HOME IMPROVEMENTS LTD,C-HC7440-C801,DFG.96.Act-Grants,22-Jul-11,"8,370.00"
http://statistics.data.gov.uk/id/local-authority-district/23UB,Cheltenham Borough Council,453244,020,MEANTIME PROJECTS,C-L23500-3156,Arts Grant/Enab-Arts Development,13-Jul-11,"1,000.00"
http://statistics.data.gov.uk/id/local-authority-district/23UB,Cheltenham Borough Council,452726,02734,MG WINDOWS CHELTENHAM LIMITED,C-H44350-1104,Window Repairs-Council House repairs,06-Jul-11,183.82
http://statistics.data.gov.uk/id/local-authority-district/23UB,Cheltenham Borough Council,452729,02733,MG WINDOWS CHELTENHAM LIMITED,C-H44350-1104,Window Repairs-Council House repairs,06-Jul-11,23.95
http://statistics.data.gov.uk/id/local-authority-district/23UB,Cheltenham Borough Council,452731,02735,MG WINDOWS CHELTENHAM LIMITED,C-H44350-1104,Window Repairs-Council House repairs,06-Jul-11,48.88
http://statistics.data.gov.uk/id/local-authority-district/23UB,Cheltenham Borough Council,452733,02745,MG WINDOWS CHELTENHAM LIMITED,C-H44350-1104,Window Repairs-Council House repairs,06-Jul-11,57.40
http://statistics.data.gov.uk/id/local-authority-district/23UB,Cheltenham Borough Council,452740,02731,MG WINDOWS CHELTENHAM LIMITED,C-H44350-1104,Window Repairs-Council House repairs,06-Jul-11,121.87
http://statistics.data.gov.uk/id/local-authority-district/23UB,Cheltenham Borough Council,452739,02742,MG WINDOWS CHELTENHAM LIMITED,C-H44350-1104,Window Repairs-Council House repairs,06-Jul-11,121.23
http://statistics.data.gov.uk/id/local-authority-district/23UB,Cheltenham Borough Council,452738,02740,MG WINDOWS CHELTENHAM LIMITED,C-H44350-1104,Window Repairs-Council House repairs,06-Jul-11,20.00
http://statistics.data.gov.uk/id/local-authority-district/23UB,Cheltenham Borough Council,452737,02738,MG WINDOWS CHELTENHAM LIMITED,C-H44350-1104,Window Repairs-Council House repairs,06-Jul-11,68.45
http://statistics.data.gov.uk/id/local-authority-district/23UB,Cheltenham Borough Council,452736,02743,MG WINDOWS CHELTENHAM LIMITED,C-H44350-1104,Window Repairs-Council House repairs,06-Jul-11,108.25
http://statistics.data.gov.uk/id/local-authority-district/23UB,Cheltenham Borough Council,452735,02744,MG WINDOWS CHELTENHAM LIMITED,C-H44350-1104,Window Repairs-Council House repairs,06-Jul-11,34.54
http://statistics.data.gov.uk/id/local-authority-district/23UB,Cheltenham Borough Council,452734,02739,MG WINDOWS CHELTENHAM LIMITED,C-H44350-1104,Window Repairs-Council House repairs,06-Jul-11,43.80
http://statistics.data.gov.uk/id/local-authority-district/23UB,Cheltenham Borough Council,452732,02741,MG WINDOWS CHELTENHAM LIMITED,C-H44350-1104,Window Repairs-Council House repairs,06-Jul-11,52.04
http://statistics.data.gov.uk/id/local-authority-district/23UB,Cheltenham Borough Council,452730,02730,MG WINDOWS CHELTENHAM LIMITED,C-H44350-1104,Window Repairs-Council House repairs,06-Jul-11,45.80
http://statistics.data.gov.uk/id/local-authority-district/23UB,Cheltenham Borough Council,452728,02746,MG WINDOWS CHELTENHAM LIMITED,C-H44350-1104,Window Repairs-Council House repairs,06-Jul-11,20.00
http://statistics.data.gov.uk/id/local-authority-district/23UB,Cheltenham Borough Council,452727,02747,MG WINDOWS CHELTENHAM LIMITED,C-H44350-1104,Window Repairs-Council House repairs,06-Jul-11,42.00
http://statistics.data.gov.uk/id/local-authority-district/23UB,Cheltenham Borough Council,453326,02752,MG WINDOWS CHELTENHAM LIMITED,C-H44350-1104,Window Repairs-Council House repairs,13-Jul-11,132.10
http://statistics.data.gov.uk/id/local-authority-district/23UB,Cheltenham Borough Council,453310,02753,MG WINDOWS CHELTENHAM LIMITED,C-H44350-1104,Window Repairs-Council House repairs,13-Jul-11,111.87
http://statistics.data.gov.uk/id/local-authority-district/23UB,Cheltenham Borough Council,453312,02749,MG WINDOWS CHELTENHAM LIMITED,C-H44350-1104,Window Repairs-Council House repairs,13-Jul-11,30.00
http://statistics.data.gov.uk/id/local-authority-district/23UB,Cheltenham Borough Council,453314,02758,MG WINDOWS CHELTENHAM LIMITED,C-H44350-1104,Window Repairs-Council House repairs,13-Jul-11,91.52
http://statistics.data.gov.uk/id/local-authority-district/23UB,Cheltenham Borough Council,453316,02757,MG WINDOWS CHELTENHAM LIMITED,C-H44350-1104,Window Repairs-Council House repairs,13-Jul-11,20.00
http://statistics.data.gov.uk/id/local-authority-district/23UB,Cheltenham Borough Council,453325,02750,MG WINDOWS CHELTENHAM LIMITED,C-H44350-1104,Window Repairs-Council House repairs,13-Jul-11,55.02
http://statistics.data.gov.uk/id/local-authority-district/23UB,Cheltenham Borough Council,453324,02748,MG WINDOWS CHELTENHAM LIMITED,C-H44350-1104,Window Repairs-Council House repairs,13-Jul-11,142.80
http://statistics.data.gov.uk/id/local-authority-district/23UB,Cheltenham Borough Council,453323,02768,MG WINDOWS CHELTENHAM LIMITED,C-H44350-1104,Window Repairs-Council House repairs,13-Jul-11,28.00
http://statistics.data.gov.uk/id/local-authority-district/23UB,Cheltenham Borough Council,453322,02764,MG WINDOWS CHELTENHAM LIMITED,C-H44350-1104,Window Repairs-Council House repairs,13-Jul-11,128.00
http://statistics.data.gov.uk/id/local-authority-district/23UB,Cheltenham Borough Council,453321,02760,MG WINDOWS CHELTENHAM LIMITED,C-H44350-1104,Window Repairs-Council House repairs,13-Jul-11,38.20
http://statistics.data.gov.uk/id/local-authority-district/23UB,Cheltenham Borough Council,453320,02762,MG WINDOWS CHELTENHAM LIMITED,C-H44350-1104,Window Repairs-Council House repairs,13-Jul-11,20.00
http://statistics.data.gov.uk/id/local-authority-district/23UB,Cheltenham Borough Council,453319,02759,MG WINDOWS CHELTENHAM LIMITED,C-H44350-1104,Window Repairs-Council House repairs,13-Jul-11,38.74
http://statistics.data.gov.uk/id/local-authority-district/23UB,Cheltenham Borough Council,453318,02761,MG WINDOWS CHELTENHAM LIMITED,C-H44350-1104,Window Repairs-Council House repairs,13-Jul-11,42.24
http://statistics.data.gov.uk/id/local-authority-district/23UB,Cheltenham Borough Council,453317,02763,MG WINDOWS CHELTENHAM LIMITED,C-H44350-1104,Window Repairs-Council House repairs,13-Jul-11,37.20
http://statistics.data.gov.uk/id/local-authority-district/23UB,Cheltenham Borough Council,453315,02755,MG WINDOWS CHELTENHAM LIMITED,C-H44350-1104,Window Repairs-Council House repairs,13-Jul-11,31.55
http://statistics.data.gov.uk/id/local-authority-district/23UB,Cheltenham Borough Council,453313,02769,MG WINDOWS CHELTENHAM LIMITED,C-H44350-1104,Window Repairs-Council House repairs,13-Jul-11,58.52
http://statistics.data.gov.uk/id/local-authority-district/23UB,Cheltenham Borough Council,453311,02751,MG WINDOWS CHELTENHAM LIMITED,C-H44350-1104,Window Repairs-Council House repairs,13-Jul-11,87.80
http://statistics.data.gov.uk/id/local-authority-district/23UB,Cheltenham Borough Council,453309,02388,MG WINDOWS CHELTENHAM LIMITED,C-H44350-1104,Window Repairs-Council House repairs,13-Jul-11,173.68
http://statistics.data.gov.uk/id/local-authority-district/23UB,Cheltenham Borough Council,453327,02765,MG WINDOWS CHELTENHAM LIMITED,C-H44350-1104,Window Repairs-Council House repairs,13-Jul-11,"2,690.00"
http://statistics.data.gov.uk/id/local-authority-district/23UB,Cheltenham Borough Council,453308,02390,MG WINDOWS CHELTENHAM LIMITED,C-H44350-1104,Window Repairs-Council House repairs,13-Jul-11,81.93
http://statistics.data.gov.uk/id/local-authority-district/23UB,Cheltenham Borough Council,453330,02325,MG WINDOWS CHELTENHAM LIMITED,C-HC4075-C302,Window Renewals-Building Contractor,13-Jul-11,1.90
http://statistics.data.gov.uk/id/local-authority-district/23UB,Cheltenham Borough Council,453943,02532,MG WINDOWS CHELTENHAM LIMITED,C-H44350-1104,Window Repairs-Council House repairs,22-Jul-11,86.60
http://statistics.data.gov.uk/id/local-authority-district/23UB,Cheltenham Borough Council,453705,2522/2548 DUP PY,MG WINDOWS CHELTENHAM LIMITED,C-H44350-1104,Window Repairs-Council House repairs,22-Jul-11,-41.82
http://statistics.data.gov.uk/id/local-authority-district/23UB,Cheltenham Borough Council,453944,02391,MG WINDOWS CHELTENHAM LIMITED,C-H44350-1104,Window Repairs-Council House repairs,22-Jul-11,83.65
http://statistics.data.gov.uk/id/local-authority-district/23UB,Cheltenham Borough Council,453947,02737,MG WINDOWS CHELTENHAM LIMITED,C-H44350-1104,Window Repairs-Council House repairs,22-Jul-11,519.00
http://statistics.data.gov.uk/id/local-authority-district/23UB,Cheltenham Borough Council,453948,02389,MG WINDOWS CHELTENHAM LIMITED,C-H44350-1104,Window Repairs-Council House repairs,22-Jul-11,35.20
http://statistics.data.gov.uk/id/local-authority-district/23UB,Cheltenham Borough Council,453705,2522/2548 DUP PY,MG WINDOWS CHELTENHAM LIMITED,C-H44350-1104,Window Repairs-Council House repairs,22-Jul-11,-122.74
http://statistics.data.gov.uk/id/local-authority-district/23UB,Cheltenham Borough Council,453946,02756,MG WINDOWS CHELTENHAM LIMITED,C-H44350-1104,Window Repairs-Council House repairs,22-Jul-11,911.00
http://statistics.data.gov.uk/id/local-authority-district/23UB,Cheltenham Borough Council,453945,01852,MG WINDOWS CHELTENHAM LIMITED,C-HC4075-C302,Window Renewals-Building Contractor,22-Jul-11,414.00
http://statistics.data.gov.uk/id/local-authority-district/23UB,Cheltenham Borough Council,454183,02729,MG WINDOWS CHELTENHAM LIMITED,C-H44350-1104,Window Repairs-Council House repairs,27-Jul-11,85.37
http://statistics.data.gov.uk/id/local-authority-district/23UB,Cheltenham Borough Council,454189,02774,MG WINDOWS CHELTENHAM LIMITED,C-H44350-1104,Window Repairs-Council House repairs,27-Jul-11,70.45
http://statistics.data.gov.uk/id/local-authority-district/23UB,Cheltenham Borough Council,454198,02797,MG WINDOWS CHELTENHAM LIMITED,C-H44350-1104,Window Repairs-Council House repairs,27-Jul-11,20.00
http://statistics.data.gov.uk/id/local-authority-district/23UB,Cheltenham Borough Council,454197,02796,MG WINDOWS CHELTENHAM LIMITED,C-H44350-1104,Window Repairs-Council House repairs,27-Jul-11,47.20
http://statistics.data.gov.uk/id/local-authority-district/23UB,Cheltenham Borough Council,454196,02794,MG WINDOWS CHELTENHAM LIMITED,C-H44350-1104,Window Repairs-Council House repairs,27-Jul-11,14.00
http://statistics.data.gov.uk/id/local-authority-district/23UB,Cheltenham Borough Council,454195,02795,MG WINDOWS CHELTENHAM LIMITED,C-H44350-1104,Window Repairs-Council House repairs,27-Jul-11,10.00
http://statistics.data.gov.uk/id/local-authority-district/23UB,Cheltenham Borough Council,454194,02792,MG WINDOWS CHELTENHAM LIMITED,C-H44350-1104,Window Repairs-Council House repairs,27-Jul-11,63.38
http://statistics.data.gov.uk/id/local-authority-district/23UB,Cheltenham Borough Council,454193,02721,MG WINDOWS CHELTENHAM LIMITED,C-H44350-1104,Window Repairs-Council House repairs,27-Jul-11,34.00
http://statistics.data.gov.uk/id/local-authority-district/23UB,Cheltenham Borough Council,454192,02772,MG WINDOWS CHELTENHAM LIMITED,C-H44350-1104,Window Repairs-Council House repairs,27-Jul-11,28.00
http://statistics.data.gov.uk/id/local-authority-district/23UB,Cheltenham Borough Council,454191,02773,MG WINDOWS CHELTENHAM LIMITED,C-H44350-1104,Window Repairs-Council House repairs,27-Jul-11,40.61
http://statistics.data.gov.uk/id/local-authority-district/23UB,Cheltenham Borough Council,454190,02778,MG WINDOWS CHELTENHAM LIMITED,C-H44350-1104,Window Repairs-Council House repairs,27-Jul-11,30.00
http://statistics.data.gov.uk/id/local-authority-district/23UB,Cheltenham Borough Council,454207,02785,MG WINDOWS CHELTENHAM LIMITED,C-H44350-1104,Window Repairs-Council House repairs,27-Jul-11,89.47
http://statistics.data.gov.uk/id/local-authority-district/23UB,Cheltenham Borough Council,454206,02805,MG WINDOWS CHELTENHAM LIMITED,C-H44350-1104,Window Repairs-Council House repairs,27-Jul-11,80.15
http://statistics.data.gov.uk/id/local-authority-district/23UB,Cheltenham Borough Council,454205,02803,MG WINDOWS CHELTENHAM LIMITED,C-H44350-1104,Window Repairs-Council House repairs,27-Jul-11,38.60
http://statistics.data.gov.uk/id/local-authority-district/23UB,Cheltenham Borough Council,454204,02806,MG WINDOWS CHELTENHAM LIMITED,C-H44350-1104,Window Repairs-Council House repairs,27-Jul-11,153.45
http://statistics.data.gov.uk/id/local-authority-district/23UB,Cheltenham Borough Council,454203,02801,MG WINDOWS CHELTENHAM LIMITED,C-H44350-1104,Window Repairs-Council House repairs,27-Jul-11,79.45
http://statistics.data.gov.uk/id/local-authority-district/23UB,Cheltenham Borough Council,454202,02802,MG WINDOWS CHELTENHAM LIMITED,C-H44350-1104,Window Repairs-Council House repairs,27-Jul-11,91.97
http://statistics.data.gov.uk/id/local-authority-district/23UB,Cheltenham Borough Council,454201,02804,MG WINDOWS CHELTENHAM LIMITED,C-H44350-1104,Window Repairs-Council House repairs,27-Jul-11,41.48
http://statistics.data.gov.uk/id/local-authority-district/23UB,Cheltenham Borough Council,454200,02800,MG WINDOWS CHELTENHAM LIMITED,C-H44350-1104,Window Repairs-Council House repairs,27-Jul-11,27.55
http://statistics.data.gov.uk/id/local-authority-district/23UB,Cheltenham Borough Council,454199,02799,MG WINDOWS CHELTENHAM LIMITED,C-H44350-1104,Window Repairs-Council House repairs,27-Jul-11,56.90
http://statistics.data.gov.uk/id/local-authority-district/23UB,Cheltenham Borough Council,454224,02816,MG WINDOWS CHELTENHAM LIMITED,C-H44350-1104,Window Repairs-Council House repairs,27-Jul-11,35.24
http://statistics.data.gov.uk/id/local-authority-district/23UB,Cheltenham Borough Council,454223,02776,MG WINDOWS CHELTENHAM LIMITED,C-H44350-1104,Window Repairs-Council House repairs,27-Jul-11,75.69
http://statistics.data.gov.uk/id/local-authority-district/23UB,Cheltenham Borough Council,454222,02771,MG WINDOWS CHELTENHAM LIMITED,C-H44350-1104,Window Repairs-Council House repairs,27-Jul-11,28.46
http://statistics.data.gov.uk/id/local-authority-district/23UB,Cheltenham Borough Council,454221,02770,MG WINDOWS CHELTENHAM LIMITED,C-H44350-1104,Window Repairs-Council House repairs,27-Jul-11,20.00
http://statistics.data.gov.uk/id/local-authority-district/23UB,Cheltenham Borough Council,454220,02791,MG WINDOWS CHELTENHAM LIMITED,C-H44350-1104,Window Repairs-Council House repairs,27-Jul-11,30.00
http://statistics.data.gov.uk/id/local-authority-district/23UB,Cheltenham Borough Council,454219,02790,MG WINDOWS CHELTENHAM LIMITED,C-H44350-1104,Window Repairs-Council House repairs,27-Jul-11,63.14
http://statistics.data.gov.uk/id/local-authority-district/23UB,Cheltenham Borough Council,454218,02788,MG WINDOWS CHELTENHAM LIMITED,C-H44350-1104,Window Repairs-Council House repairs,27-Jul-11,38.60
http://statistics.data.gov.uk/id/local-authority-district/23UB,Cheltenham Borough Council,454217,02767,MG WINDOWS CHELTENHAM LIMITED,C-H44350-1104,Window Repairs-Council House repairs,27-Jul-11,28.00
http://statistics.data.gov.uk/id/local-authority-district/23UB,Cheltenham Borough Council,454216,02736,MG WINDOWS CHELTENHAM LIMITED,C-H44350-1104,Window Repairs-Council House repairs,27-Jul-11,2.50
http://statistics.data.gov.uk/id/local-authority-district/23UB,Cheltenham Borough Council,454215,02781,MG WINDOWS CHELTENHAM LIMITED,C-H44350-1104,Window Repairs-Council House repairs,27-Jul-11,28.60
http://statistics.data.gov.uk/id/local-authority-district/23UB,Cheltenham Borough Council,454214,02787,MG WINDOWS CHELTENHAM LIMITED,C-H44350-1104,Window Repairs-Council House repairs,27-Jul-11,28.60
http://statistics.data.gov.uk/id/local-authority-district/23UB,Cheltenham Borough Council,454213,02784,MG WINDOWS CHELTENHAM LIMITED,C-H44350-1104,Window Repairs-Council House repairs,27-Jul-11,24.00
http://statistics.data.gov.uk/id/local-authority-district/23UB,Cheltenham Borough Council,454212,02732,MG WINDOWS CHELTENHAM LIMITED,C-H44350-1104,Window Repairs-Council House repairs,27-Jul-11,10.00
http://statistics.data.gov.uk/id/local-authority-district/23UB,Cheltenham Borough Council,454211,02780,MG WINDOWS CHELTENHAM LIMITED,C-H44350-1104,Window Repairs-Council House repairs,27-Jul-11,29.25
http://statistics.data.gov.uk/id/local-authority-district/23UB,Cheltenham Borough Council,454210,02779,MG WINDOWS CHELTENHAM LIMITED,C-H44350-1104,Window Repairs-Council House repairs,27-Jul-11,27.93
http://statistics.data.gov.uk/id/local-authority-district/23UB,Cheltenham Borough Council,454209,02783,MG WINDOWS CHELTENHAM LIMITED,C-H44350-1104,Window Repairs-Council House repairs,27-Jul-11,27.55
http://statistics.data.gov.uk/id/local-authority-district/23UB,Cheltenham Borough Council,454208,02786,MG WINDOWS CHELTENHAM LIMITED,C-H44350-1104,Window Repairs-Council House repairs,27-Jul-11,59.75
http://statistics.data.gov.uk/id/local-authority-district/23UB,Cheltenham Borough Council,454188,02775,MG WINDOWS CHELTENHAM LIMITED,C-H44350-1104,Window Repairs-Council House repairs,27-Jul-11,26.61
http://statistics.data.gov.uk/id/local-authority-district/23UB,Cheltenham Borough Council,454184,02810,MG WINDOWS CHELTENHAM LIMITED,C-H44350-1104,Window Repairs-Council House repairs,27-Jul-11,652.00
http://statistics.data.gov.uk/id/local-authority-district/23UB,Cheltenham Borough Council,454185,02766,MG WINDOWS CHELTENHAM LIMITED,C-H44350-1104,Window Repairs-Council House repairs,27-Jul-11,85.70
http://statistics.data.gov.uk/id/local-authority-district/23UB,Cheltenham Borough Council,454186,02798,MG WINDOWS CHELTENHAM LIMITED,C-H44350-1104,Window Repairs-Council House repairs,27-Jul-11,198.60
http://statistics.data.gov.uk/id/local-authority-district/23UB,Cheltenham Borough Council,454187,02777,MG WINDOWS CHELTENHAM LIMITED,C-H44350-1104,Window Repairs-Council House repairs,27-Jul-11,85.89
http://statistics.data.gov.uk/id/local-authority-district/23UB,Cheltenham Borough Council,454484,02782,MG WINDOWS CHELTENHAM LIMITED,C-H44350-1104,Window Repairs-Council House repairs,29-Jul-11,85.70
http://statistics.data.gov.uk/id/local-authority-district/23UB,Cheltenham Borough Council,454489,02813,MG WINDOWS CHELTENHAM LIMITED,C-H44350-1104,Window Repairs-Council House repairs,29-Jul-11,53.59
http://statistics.data.gov.uk/id/local-authority-district/23UB,Cheltenham Borough Council,454491,02807,MG WINDOWS CHELTENHAM LIMITED,C-H44350-1104,Window Repairs-Council House repairs,29-Jul-11,32.40
http://statistics.data.gov.uk/id/local-authority-district/23UB,Cheltenham Borough Council,454495,02678,MG WINDOWS CHELTENHAM LIMITED,C-H44350-1104,Window Repairs-Council House repairs,29-Jul-11,"1,300.00"
http://statistics.data.gov.uk/id/local-authority-district/23UB,Cheltenham Borough Council,454494,02818,MG WINDOWS CHELTENHAM LIMITED,C-H44350-1104,Window Repairs-Council House repairs,29-Jul-11,29.60
http://statistics.data.gov.uk/id/local-authority-district/23UB,Cheltenham Borough Council,454493,02820,MG WINDOWS CHELTENHAM LIMITED,C-H44350-1104,Window Repairs-Council House repairs,29-Jul-11,50.78
http://statistics.data.gov.uk/id/local-authority-district/23UB,Cheltenham Borough Council,454492,02815,MG WINDOWS CHELTENHAM LIMITED,C-H44350-1104,Window Repairs-Council House repairs,29-Jul-11,32.89
http://statistics.data.gov.uk/id/local-authority-district/23UB,Cheltenham Borough Council,454490,02809,MG WINDOWS CHELTENHAM LIMITED,C-H44350-1104,Window Repairs-Council House repairs,29-Jul-11,25.80
